Workbook

Sheet Инструкция
A1: Как работать с шаблоном | H1: 1
A2: Скачивайте шаблон в личном кабинете
A3: Перед каждой загрузкой файла скачивайте новый шаблон в личном кабинете. Мы регулярно обновляем шаблон, чтобы он был максимально точным и удобным. Не используйте старые шаблоны и файлы, полученные из других источников.
A4: Не меняйте структуру файла
A5: Не добавляйте и не удаляйте листы и столбцы. Не меняйте порядок столбцов и не скрывайте их.
A6: Заполняйте только поля в зеленых столбцах
A7: На листе «Товары и цены»: 1. Укажите новые цены или скидки. Если вы не хотите менять какую-то цену, оставьте ячейку пустой — для нее останется старое значение. Обновятся только значения заполненных ячеек. 2. Если вы хотите изменить текущую цену товара в большую сторону и удалить цену до скидки, необходимо указать новое значение цены в графу "Текущая цена", а в графу "Цена до скидки" установить 0. 3. Вы можете включить стратегию ценообразования «Следовать за рыночной ценой» — текущая цена будет автоматически меняться на рыночную. В графе "Автоматически применять самую выгодную цену" укажите: "ДА" — чтобы цена назначалась автоматически, "НЕТ" — чтобы цена не назначалась, или оставьте ячейку пустой — чтобы оставить настройки без изменения или не использовать автоматическое применение (если у вас нет настроек). Затем в столбце "Минимальное значение рыночной цены" укажите значение, меньше которого цена не может стать.
A8: Используемая валюта | F8: RUB
A9: Язык шаблона | F9: ru

Sheet Товары и цены
A1: Не меняйте значения этих полей | AN1: Новые цены (редактируйте только поля в зеленых столбцах) | AT1: Дополнительные настройки
A2: Основные | H2: Текущие цены и скидки | S2: Рыночные цены | X2: Параметры ценовых индексов | AB2: Комиссии и тарифы для текущей цены
A3: Артикул | B3: Ozon SKU ID | C3: Название | D3: Статус | E3: Видимость на OZON | F3: Объемный вес, кг | G3: Штрихкод | H3: Цена до скидки, руб. | I3: Текущая цена (со скидкой), руб. | J3: Скидка, % | K3: Скидка, руб. | L3: Цена с учетом акции, руб. | M3: Скидка с учетом акции, % | N3: Скидка с учетом акции, руб. | O3: НДС, % | P3: Минимальная цена, руб. | Q3: Настройка автоприменения самой выгодной цены | R3: Настройка автоматического добавления в акции | S3: Рыночная цена на Ozon, руб. | T3: Рыночная цена конкурентов, руб. | U3: Моя цена на других площадках, руб. | V3: Ссылка на рыночную цену конкурентов | W3: Ссылка на рыночную цену на мои товары | X3: Индекс цен | Y3: Ценовой индекс товара на Ozon | Z3: Ценовой индекс товара на рынке | AA3: Ценовой индекс товара на рынке на мои товары | AB3: Размер комиссии, % | AC3: Комиссия за эквайринг | AD3: Логистика Ozon, минимум, FBO | AE3: Логистика Ozon, максимум, FBO | AF3: Последняя миля, FBO | AG3: Обработка отправления, минимум FBS | AH3: Обработка отправления, максимум FBS | AI3: Логистика Ozon (РФ), FBS | AJ3: Логистика Ozon (Казахстан), FBS | AK3: Логистика КГТ Ozon, минимум, FBS | AL3: Логистика КГТ Ozon, максимум, FBS | AM3: Последняя миля, FBS | AN3: Цена до скидки, руб. | AO3: Текущая цена (со скидкой), руб. | AP3: Скидка, % | AQ3: НДС, % | AR3: Автоматически применять самую выгодную цену | AS3: Минимальная цена, руб. | AT3: Автоматически добавлять в акции | AU3: Комиссии озон | AV3: Эквайринг | AW3: Налог | AX3: Расход | AY3: Закуп | AZ3: Заработал | BA3: КФ | BB3: Рентабельность
H4: Цена отображается зачеркнутой. | I4: По этой цене товар продается на Ozon, если он не участвует в акциях. | J4: Рассчитывается от цены до скидки и текущей цены. | L4: По этой цене товар продается на Ozon, если он участвует в акции (на момент скачивания шаблона). | M4: Рассчитывается от цены до скидки и цены с учетом акции. | P4: Цена не сможет стать ниже при автоматическом применении рыночной цены. | Q4: Если указано "ДА", то для товара включено автоматическое применение самой выгодной цены. | R4: Если указано "ДА", то для товара включено автоматическое добавление в акции. | S4: Минимальная цена на Ozon (на момент скачивания шаблона). | T4: Минимальная цена конкурентов на других площадках (на момент скачивания шаблона). | U4: Ваша минимальная цена на других площадках (на момент скачивания шаблона). | V4: Ссылка на предложение на другой площадке (на момент скачивания шаблона). | W4: Ссылка на предложение на другой площадке (на момент скачивания шаблона). | X4: Расчетный показатель, показывающий текущую ситуацию с рыночными ценами товара. | Y4: Расчетный показатель отклонения ваших цен на Озон от цен других продавцов на Ozon. Максимальное значение - 1,99, минимальное значение - 0,01. | Z4: Расчетный показатель отклонения ваших цен на Озон от цен других продавцов на других площадках. Максимальное значение - 1,99, минимальное значение - 0,01. | AA4: Расчетный показатель отклонения ваших цен на Озон от ваших цен на других площадках. Максимальное значение - 1,99, минимальное значение - 0,01. | AB4: Зависит от категории товара. | AC4: Столько максимально будет стоить комиссия за безналичные платежи от покупателей. Тариф устанавливает банк. | AD4: Зависит цены товара, его объема и маршрута. Столько минимально придётся заплатить за доставку товара в регион покупателя. | AE4: Зависит цены товара, его объема и маршрута. Столько максимально придётся заплатить за доставку товара в регион покупателя. | AF4: Зависит от цены товара. | AG4: Столько минимально будет стоить отгрузка отправления в пункте приёма. | AH4: Столько максимально будет стоить отгрузка отправления в пункте приёма. | AI4: Зависит цены товара, его объема и маршрута. Столько придётся заплатить за доставку товара в регион покупателя, если Ваш склад находится в России | AJ4: Зависит цены товара, его объема и маршрута. Столько придётся заплатить за доставку товара в регион покупателя, если Ваш склад находится в Казахстане | AK4: Зависит цены товара, его объема и маршрута. Столько минимально придётся заплатить за доставку товара в регион покупателя. | AL4: Зависит цены товара, его объема и маршрута. Столько максимально придётся заплатить за доставку товара в регион покупателя. | AM4: Зависит от цены товара. | AN4: Цена будет отображаться зачеркнутой. | AO4: По этой цене товар будет продаваться на Ozon. | AP4: Рассчитывается по ценам до скидки и со скидкой. | AR4: Выберите "ДА", чтобы автоматически применять самую выгодную цену для товара. Выберите "НЕТ", чтобы отказаться от применения. Оставьте ячейку пустой, чтобы оставить настройки без изменения или не использовать автоматическое применение — если у вас нет настроек. | AS4: Укажите значение, меньше которого цена не сможет стать. Это значение не может быть больше текущей цены. | AT4: Выберите "ДА", чтобы автоматически добавлять товар в подходящие акции. Выберите "НЕТ", чтобы отказаться от применения. Оставьте ячейку пустой, чтобы оставить настройки без изменения или не использовать автоприменение — если у вас нет настроек. | AU4: Комиссии озон | AV4: Эквайринг | AW4: Налог | AX4: Расход | AY4: Закуп | AZ4: Заработал | BA4: КФ | BB4: Рентабельность
A5: Nataha1333_480_Т1044 | B5: 980204703 | C5: Конструктор/ Букет цветов Т1044 | D5: Готов к продаже | E5: да | F5: 3.5 | G5: OZN980204703 | H5: 0 | I5: 1440 | J5: 0 | K5: 0 | L5: 1440 | M5: 0 | N5: 0 | O5: Не облагается | R5: НЕТ | S5: 0 | T5: 0 | U5: 0 | Y5: 0 | Z5: 0 | AA5: 0 | AB5: 11 | AC5: 19.3 | AD5: 100 | AE5: 100 | AF5: 79.2 | AG5: 10 | AH5: 25 | AI5: 100 | AJ5: 100 | AK5: 100 | AL5: 100 | AM5: 222.9 | AN5: =AO5*3 -> 3485.521472 | AO5: 1161.840491 | AU5: =AO5*AB5% -> 127.802454 | AV5: =AO5*1.5% -> 17.42760736 | AW5: =AO5*6% -> 69.71042945 | AX5: =SUM(AL5+AM5+AU5+AV5+AW5) -> 537.8404908 | AY5: =INDEX(Закупка!A:A,MATCH(A5,Закупка!F:F,0)) -> 480 | AZ5: =AO5-AX5-AY5 -> 144 | BA5: =AZ5/AY5 -> 0.3 | BB5: =AZ5/AO5*100% -> 0.1239412821
A6: Nataha1330_3500_81955 | B6: 980204285 | C6: Конструктор Микки Маус и Минни Маус 81955 | D6: Готов к продаже | E6: да | F6: 7.9 | G6: OZN980204285 | H6: 0 | I6: 10500 | J6: 0 | K6: 0 | L6: 10500 | M6: 0 | N6: 0 | O6: Не облагается | R6: НЕТ | S6: 0 | T6: 0 | U6: 0 | Y6: 0 | Z6: 0 | AA6: 0 | AB6: 11 | AC6: 140.7 | AD6: 185 | AE6: 185 | AF6: 500 | AG6: 10 | AH6: 25 | AI6: 185 | AJ6: 185 | AK6: 185 | AL6: 185 | AM6: 1374.7 | AN6: 21845.52147 | AO6: 7281.840491 | AU6: =AO6*AB6% -> 801.002454 | AV6: =AO6*1.5% -> 109.2276074 | AW6: =AO6*6% -> 436.9104294 | AX6: =SUM(AL6+AM6+AU6+AV6+AW6) -> 2906.840491 | AY6: =INDEX(Закупка!A:A,MATCH(A6,Закупка!F:F,0)) -> 3500 | AZ6: =AO6-AX6-AY6 -> 875 | BA6: =AZ6/AY6 -> 0.25 | BB6: =AZ6/AO6*100% -> 0.120161929
A7: Nataha1332_700_Т1043 | B7: 980204088 | C7: Конструктор/Букет цветов Т1043 | D7: Готов к продаже | E7: да | F7: 3.5 | G7: OZN980204088 | H7: 0 | I7: 2100 | J7: 0 | K7: 0 | L7: 2100 | M7: 0 | N7: 0 | O7: Не облагается | R7: НЕТ | S7: 0 | T7: 0 | U7: 0 | Y7: 0 | Z7: 0 | AA7: 0 | AB7: 11 | AC7: 28.14 | AD7: 100 | AE7: 100 | AF7: 115.5 | AG7: 10 | AH7: 25 | AI7: 100 | AJ7: 100 | AK7: 100 | AL7: 100 | AM7: 304.2 | AN7: 4760.245399 | AO7: 1586.748466 | AU7: 174.5423313 | AV7: 23.80122699 | AW7: 95.20490798 | AX7: 697.7484663 | AY7: =INDEX(Закупка!A:A,MATCH(A7,Закупка!F:F,0)) -> 700 | AZ7: 189 | BA7: 0.27 | BB7: 0.1191115063
A8: Nataha1334_480_Т1044-1 | B8: 980203613 | C8: Конструктор/ Букет цветов Т1044-1 | D8: Готов к продаже | E8: да | F8: 0.5 | G8: OZN980203613 | H8: 0 | I8: 1440 | J8: 0 | K8: 0 | L8: 1440 | M8: 0 | N8: 0 | O8: Не облагается | R8: НЕТ | S8: 0 | T8: 0 | U8: 0 | Y8: 0 | Z8: 0 | AA8: 0 | AB8: 11 | AC8: 19.3 | AD8: 43 | AE8: 43 | AF8: 79.2 | AG8: 10 | AH8: 25 | AI8: 43 | AJ8: 43 | AK8: 43 | AL8: 43 | AM8: 222.9 | AN8: 3275.705521 | AO8: 1091.90184 | AU8: 120.1092025 | AV8: 16.37852761 | AW8: 65.51411043 | AX8: 467.9018405 | AY8: =INDEX(Закупка!A:A,MATCH(A8,Закупка!F:F,0)) -> 480 | AZ8: 144 | BA8: 0.3 | BB8: 0.1318799865
A9: Nataha1331_1200_19004 | B9: 980169193 | C9: Конструктор Бонсай 19004 | D9: Готов к продаже | E9: да | F9: 0.9 | G9: OZN980169193 | H9: 0 | I9: 3600 | J9: 0 | K9: 0 | L9: 3600 | M9: 0 | N9: 0 | O9: Не облагается | R9: НЕТ | S9: 0 | T9: 0 | U9: 0 | Y9: 0 | Z9: 0 | AA9: 0 | AB9: 11 | AC9: 48.24 | AD9: 49 | AE9: 49 | AF9: 198 | AG9: 10 | AH9: 25 | AI9: 49 | AJ9: 49 | AK9: 49 | AL9: 49 | AM9: 521.7 | AN9: 7710.552147 | AO9: 2570.184049 | AU9: 282.7202454 | AV9: 38.55276074 | AW9: 154.2110429 | AX9: 1046.184049 | AY9: =INDEX(Закупка!A:A,MATCH(A9,Закупка!F:F,0)) -> 1200 | AZ9: 324 | BA9: 0.27 | BB9: 0.1260610111
A10: Nataha1337_600_64138 | B10: 980203361 | C10: Конструктор/ Супергерои/ Человек-Паук 64138 | D10: Готов к продаже | E10: да | F10: 2.2 | G10: OZN980203361 | H10: 0 | I10: 1800 | J10: 0 | K10: 0 | L10: 1800 | M10: 0 | N10: 0 | O10: Не облагается | R10: НЕТ | S10: 0 | T10: 0 | U10: 0 | Y10: 0 | Z10: 0 | AA10: 0 | AB10: 11 | AC10: 24.12 | AD10: 79 | AE10: 79 | AF10: 99 | AG10: 10 | AH10: 25 | AI10: 79 | AJ10: 79 | AK10: 79 | AL10: 79 | AM10: 260.7 | AN10: 4055.337423 | AO10: 1351.779141 | AU10: 148.6957055 | AV10: =AO10*1.5% -> 20.27668712 | AW10: =AO10*6% -> 81.10674847 | AX10: =SUM(AL10+AM10+AU10+AV10+AW10) -> 589.7791411 | AY10: =INDEX(Закупка!A:A,MATCH(A10,Закупка!F:F,0)) -> 600 | AZ10: =AO10-AX10-AY10 -> 162 | BA10: =AZ10/AY10 -> 0.27 | BB10: =AZ10/AO10*100% -> 0.1198420623
A11: Nataha1338_450_64137 | B11: 980209447 | C11: Конструктор, Человек- Паук, Паучий поезд 64137 | D11: Готов к продаже | E11: да | F11: 3.5 | G11: OZN980209447 | H11: 0 | I11: 1350 | J11: 0 | K11: 0 | L11: 1350 | M11: 0 | N11: 0 | O11: Не облагается | R11: НЕТ | S11: 0 | T11: 0 | U11: 0 | Y11: 0 | Z11: 0 | AA11: 0 | AB11: 11 | AC11: 18.09 | AD11: 100 | AE11: 100 | AF11: 74.25 | AG11: 10 | AH11: 25 | AI11: 100 | AJ11: 100 | AK11: 100 | AL11: 100 | AM11: 208.95 | AN11: 3290.613497 | AO11: 1096.871166 | AU11: =AO11*AB11% -> 120.6558282 | AV11: 16.45306748 | AW11: 65.81226994 | AX11: 511.8711656 | AY11: =INDEX(Закупка!A:A,MATCH(A11,Закупка!F:F,0)) -> 450 | AZ11: 135 | BA11: 0.3 | BB11: 0.1230773533
A12: Nataha1339_520_82205 | B12: 980202434 | C12: Конструктор NINJAGO Ниндзя гонки 82205 | D12: Готов к продаже | E12: да | F12: 2.4 | G12: OZN980202434 | H12: 0 | I12: 1560 | J12: 0 | K12: 0 | L12: 1560 | M12: 0 | N12: 0 | O12: Не облагается | R12: НЕТ | S12: 0 | T12: 0 | U12: 0 | Y12: 0 | Z12: 0 | AA12: 0 | AB12: 11 | AC12: 20.9 | AD12: 79 | AE12: 79 | AF12: 85.8 | AG12: 10 | AH12: 25 | AI12: 79 | AJ12: 79 | AK12: 79 | AL12: 79 | AM12: 241.5 | AN12: 3668.09816 | AO12: 1222.699387 | AU12: 134.4969325 | AV12: 18.3404908 | AW12: 73.36196319 | AX12: 546.6993865 | AY12: =INDEX(Закупка!A:A,MATCH(A12,Закупка!F:F,0)) -> 520 | AZ12: 156 | BA12: 0.3 | BB12: 0.1275865529
A13: Nataha1336_1200_waterGun | B13: 980169244 | C13: Водяной пистолет | D13: Готов к продаже | E13: да | F13: 1.6 | G13: OZN980169244 | H13: 0 | I13: 3600 | J13: 0 | K13: 0 | L13: 3600 | M13: 0 | N13: 0 | O13: Не облагается | R13: НЕТ | S13: 0 | T13: 0 | U13: 0 | Y13: 0 | Z13: 0 | AA13: 0 | AB13: 11 | AC13: 48.24 | AD13: 67 | AE13: 67 | AF13: 198 | AG13: 10 | AH13: 25 | AI13: 67 | AJ13: 67 | AK13: 67 | AL13: 67 | AM13: 521.7 | AN13: 7776.809816 | AO13: 2592.269939 | AU13: 285.1496933 | AV13: 38.88404908 | AW13: 155.5361963 | AX13: 1068.269939 | AY13: =INDEX(Закупка!A:A,MATCH(A13,Закупка!F:F,0)) -> 1200 | AZ13: 324 | BA13: 0.27 | BB13: 0.1249869835
A14: Nataha1335_600_катапульта | B14: 980176415 | C14: Самолет с катапультой | D14: Готов к продаже | E14: да | F14: 1.6 | G14: OZN980176415 | H14: 0 | I14: 1800 | J14: 0 | K14: 0 | L14: 1800 | M14: 0 | N14: 0 | O14: Не облагается | R14: НЕТ | S14: 0 | T14: 0 | U14: 0 | Y14: 0 | Z14: 0 | AA14: 0 | AB14: 11 | AC14: 24.12 | AD14: 67 | AE14: 67 | AF14: 99 | AG14: 10 | AH14: 25 | AI14: 67 | AJ14: 67 | AK14: 67 | AL14: 67 | AM14: 260.7 | AN14: 4011.165644 | AO14: 1337.055215 | AU14: 147.0760736 | AV14: 20.05582822 | AW14: 80.22331288 | AX14: 575.0552147 | AY14: =INDEX(Закупка!A:A,MATCH(A14,Закупка!F:F,0)) -> 600 | AZ14: 162 | BA14: 0.27 | BB14: 0.1211617876
A15: sonia_29_500_11475 | B15: 980498861 | C15: Конструктор My World Minecraft, Питомник панд , 210 деталей | D15: Готов к продаже | E15: да | F15: 0.7 | G15: OZN980498861 | H15: 2000 | I15: 900 | J15: 55 | K15: 1100 | L15: 900 | M15: 55 | N15: 1100 | O15: Не облагается | R15: НЕТ | S15: 0 | T15: 0 | U15: 0 | Y15: 0 | Z15: 0 | AA15: 0 | AB15: 11 | AC15: 12.06 | AD15: 45 | AE15: 45 | AF15: 49.5 | AG15: 10 | AH15: 25 | AI15: 45 | AJ15: 45 | AK15: 45 | AL15: 45 | AM15: 199.2 | AN15: 3291.533742 | AO15: 1097.177914 | AU15: 120.6895706 | AV15: 16.45766871 | AW15: 65.83067485 | AX15: 447.1779141 | AY15: =INDEX(Закупка!A:A,MATCH(A15,Закупка!F:F,0)) -> 500 | AZ15: 150 | BA15: 0.3 | BB15: 0.1367143816
A16: sonia_292_3800_40015 | B16: 980498811 | C16: Конструктор Сити Скоростной пассажирский поезд | D16: Готов к продаже | E16: да | F16: 4.1 | G16: OZN980498811 | H16: 27186 | I16: 8655 | J16: 69 | K16: 18531 | L16: 8655 | M16: 69 | N16: 18531 | O16: Не облагается | R16: НЕТ | S16: 0 | T16: 0 | U16: 0 | Y16: 0 | Z16: 0 | AA16: 0 | AB16: 11 | AC16: 115.98 | AD16: 120 | AE16: 120 | AF16: 476.03 | AG16: 10 | AH16: 25 | AI16: 120 | AJ16: 120 | AK16: 120 | AL16: 120 | AM16: 1675.73 | AN16: 28695.93865 | AO16: 9565.312883 | AU16: 1052.184417 | AV16: 143.4796933 | AW16: 573.918773 | AX16: 3565.312883 | AY16: =INDEX(Закупка!A:A,MATCH(A16,Закупка!F:F,0)) -> 4800 | AZ16: 1200 | BA16: 0.25 | BB16: 0.125453293
A17: sonia_287_650_10008-6 | B17: 980503543 | C17: Конструктор История маленького городка "Кафе" 297 деталей | D17: Готов к продаже | E17: да | F17: 1.7 | G17: OZN980503543 | H17: 2600 | I17: 1274 | J17: 51 | K17: 1326 | L17: 1274 | M17: 51 | N17: 1326 | O17: Не облагается | R17: НЕТ | S17: 0 | T17: 0 | U17: 0 | Y17: 0 | Z17: 0 | AA17: 0 | AB17: 11 | AC17: 17.07 | AD17: 69 | AE17: 69 | AF17: 70.07 | AG17: 10 | AH17: 25 | AI17: 69 | AJ17: 69 | AK17: 69 | AL17: 69 | AM17: 245.27 | AN17: 4195.472393 | AO17: 1398.490798 | AU17: 153.8339877 | AV17: 20.97736196 | AW17: 83.90944785 | AX17: 572.9907975 | AY17: =INDEX(Закупка!A:A,MATCH(A17,Закупка!F:F,0)) -> 650 | AZ17: 175.5 | BA17: 0.27 | BB17: 0.1254924239
A18: sonia_293_400_11577 | B18: 980498879 | C18: Конструктор, Мир Юрского периода, Побег детёнышей динозавра, | D18: Готов к продаже | E18: да | F18: 0.6 | G18: OZN980498879 | H18: 1600 | I18: 736 | J18: 54 | K18: 864 | L18: 736 | M18: 54 | N18: 864 | O18: Не облагается | R18: НЕТ | S18: 0 | T18: 0 | U18: 0 | Y18: 0 | Z18: 0 | AA18: 0 | AB18: 11 | AC18: 9.86 | AD18: 45 | AE18: 45 | AF18: 40.48 | AG18: 10 | AH18: 25 | AI18: 45 | AJ18: 45 | AK18: 45 | AL18: 45 | AM18: 160.18 | AN18: 2669.374233 | AO18: 889.791411 | AU18: 97.87705521 | AV18: 13.34687117 | AW18: 53.38748466 | AX18: 369.791411 | AY18: =INDEX(Закупка!A:A,MATCH(A18,Закупка!F:F,0)) -> 400 | AZ18: 120 | BA18: 0.3 | BB18: 0.1348630685
A19: sonia_289_550_KY81047 | B19: 980498819 | C19: Конструктор ,Fireline Alert,391 деталь,81047 | D19: Готов к продаже | E19: да | F19: 1.3 | G19: OZN980498819 | H19: 3376 | I19: 1086 | J19: 68 | K19: 2290 | L19: 1086 | M19: 68 | N19: 2290 | O19: Не облагается | R19: НЕТ | S19: 0 | T19: 0 | U19: 0 | Y19: 0 | Z19: 0 | AA19: 0 | AB19: 11 | AC19: 14.55 | AD19: 61 | AE19: 61 | AF19: 59.73 | AG19: 10 | AH19: 25 | AI19: 61 | AJ19: 61 | AK19: 61 | AL19: 61 | AM19: 224.43 | AN19: 3682.564417 | AO19: 1227.521472 | AU19: 135.027362 | AV19: 18.41282209 | AW19: 73.65128834 | AX19: 512.5214724 | AY19: =INDEX(Закупка!A:A,MATCH(A19,Закупка!F:F,0)) -> 550 | AZ19: 165 | BA19: 0.3 | BB19: 0.1344172006
A20: sonia_294_3200_19021 | B20: 980493475 | C20: Конструктор, Пираты Карибского моря, Корабль Месть Королевы | D20: Готов к продаже | E20: да | F20: 6.2 | G20: OZN980493475 | H20: 18512 | I20: 5899 | J20: 69 | K20: 12613 | L20: 5899 | M20: 69 | N20: 12613 | O20: Не облагается | R20: НЕТ | S20: 0 | T20: 0 | U20: 0 | Y20: 0 | Z20: 0 | AA20: 0 | AB20: 11 | AC20: 79.05 | AD20: 160 | AE20: 160 | AF20: 324.45 | AG20: 10 | AH20: 25 | AI20: 160 | AJ20: 160 | AK20: 160 | AL20: 160 | AM20: 1124.15 | AN20: 19450.8589 | AO20: 6483.619632 | AU20: 713.1981595 | AV20: 97.25429448 | AW20: 389.0171779 | AX20: 2483.619632 | AY20: =INDEX(Закупка!A:A,MATCH(A20,Закупка!F:F,0)) -> 3200 | AZ20: 800 | BA20: 0.25 | BB20: 0.1233878675
A21: sonia_295_1800_6002 | B21: 980499499 | C21: Конструктор. Pirate Treasure,Черная жемчужина, 6002 > | D21: Готов к продаже | E21: да | F21: 4.6 | G21: OZN980499499 | H21: 7200 | I21: 3168 | J21: 56 | K21: 4032 | L21: 3168 | M21: 56 | N21: 4032 | O21: Не облагается | R21: НЕТ | S21: 0 | T21: 0 | U21: 0 | Y21: 0 | Z21: 0 | AA21: 0 | AB21: 11 | AC21: 42.45 | AD21: 120 | AE21: 120 | AF21: 174.24 | AG21: 10 | AH21: 25 | AI21: 120 | AJ21: 120 | AK21: 120 | AL21: 120 | AM21: 615.94 | AN21: 10593.64417 | AO21: 3531.214724 | AU21: 388.4336196 | AV21: 52.96822086 | AW21: 211.8728834 | AX21: 1389.214724 | AY21: =INDEX(Закупка!A:A,MATCH(A21,Закупка!F:F,0)) -> 1700 | AZ21: 442 | BA21: 0.26 | BB21: 0.125169392
A22: sonia_296_2400_6001 | B22: 980505521 | C22: Конструктор , Пираты карибского моря , Месть королевы Анны | D22: Готов к продаже | E22: да | F22: 5 | G22: OZN980505521 | H22: 14058 | I22: 3501 | J22: 76 | K22: 10557 | L22: 3501 | M22: 76 | N22: 10557 | O22: Не облагается | R22: НЕТ | S22: 0 | T22: 0 | U22: 0 | Y22: 0 | Z22: 0 | AA22: 0 | AB22: 11 | AC22: 46.91 | AD22: 135 | AE22: 135 | AF22: 192.56 | AG22: 10 | AH22: 25 | AI22: 135 | AJ22: 135 | AK22: 135 | AL22: 135 | AM22: 816.26 | AN22: 14632.8589 | AO22: 4877.619632 | AU22: 536.5381595 | AV22: 73.16429448 | AW22: 292.6571779 | AX22: 1853.619632 | AY22: =INDEX(Закупка!A:A,MATCH(A22,Закупка!F:F,0)) -> 2400 | AZ22: 624 | BA22: 0.26 | BB22: 0.1279312548
A23: sonia_299_3900_19003 | B23: 980493236 | C23: Конструктор Корабль Имперский флагман, 19003 | D23: Готов к продаже | E23: да | F23: 9.6 | G23: OZN980493236 | H23: 22561 | I23: 7190 | J23: 69 | K23: 15371 | L23: 7190 | M23: 69 | N23: 15371 | O23: Не облагается | R23: НЕТ | S23: 0 | T23: 0 | U23: 0 | Y23: 0 | Z23: 0 | AA23: 0 | AB23: 11 | AC23: 96.35 | AD23: 225 | AE23: 225 | AF23: 395.45 | AG23: 10 | AH23: 25 | AI23: 225 | AJ23: 225 | AK23: 225 | AL23: 225 | AM23: 1370.15 | AN23: 23816.50307 | AO23: 7938.834356 | AU23: 873.2717791 | AV23: 119.0825153 | AW23: 476.3300613 | AX23: 3063.834356 | AY23: =INDEX(Закупка!A:A,MATCH(A23,Закупка!F:F,0)) -> 3900 | AZ23: 975 | BA23: 0.25 | BB23: 0.1228139997
A24: sonia_3_750_LB608 | B24: 980496796 | C24: Конструктор Мой Мир Майнкрафт Сражение за белую крепость | D24: Готов к продаже | E24: да | F24: 2.4 | G24: OZN980496796 | H24: 4014 | I24: 1281 | J24: 69 | K24: 2733 | L24: 1281 | M24: 69 | N24: 2733 | O24: Не облагается | R24: НЕТ | S24: 0 | T24: 0 | U24: 0 | Y24: 0 | Z24: 0 | AA24: 0 | AB24: 11 | AC24: 17.17 | AD24: 79 | AE24: 79 | AF24: 70.46 | AG24: 10 | AH24: 25 | AI24: 79 | AJ24: 79 | AK24: 79 | AL24: 79 | AM24: 253.76 | AN24: 4403.779141 | AO24: 1467.92638 | AU24: 161.4719018 | AV24: 22.01889571 | AW24: 88.07558282 | AX24: 604.3263804 | AY24: =INDEX(Закупка!A:A,MATCH(A24,Закупка!F:F,0)) -> 680 | AZ24: 183.6 | BA24: 0.27 | BB24: 0.1250743923
A25: sonia_30_400_1061 | B25: 980498908 | C25: Конструктор Мой Мир Майнкрафт Мерзость из джунглей | D25: Готов к продаже | E25: да | F25: 1.2 | G25: OZN980498908 | H25: 2454 | I25: 789 | J25: 68 | K25: 1665 | L25: 789 | M25: 68 | N25: 1665 | O25: Не облагается | R25: НЕТ | S25: 0 | T25: 0 | U25: 0 | Y25: 0 | Z25: 0 | AA25: 0 | AB25: 11 | AC25: 10.57 | AD25: 57 | AE25: 57 | AF25: 43.4 | AG25: 10 | AH25: 25 | AI25: 57 | AJ25: 57 | AK25: 57 | AL25: 57 | AM25: 163.1 | AN25: 2724.294479 | AO25: 908.0981595 | AU25: 99.89079755 | AV25: 13.62147239 | AW25: 54.48588957 | AX25: 388.0981595 | AY25: =INDEX(Закупка!A:A,MATCH(A25,Закупка!F:F,0)) -> 400 | AZ25: 120 | BA25: 0.3 | BB25: 0.1321443048
A26: sonia_301_4000_35002 | B26: 980498820 | C26: Конструктор Звездные войны, Сокол Тысячелетия, 35002 | D26: Готов к продаже | E26: да | F26: 7.2 | G26: OZN980498820 | H26: 16000 | I26: 6720 | J26: 58 | K26: 9280 | L26: 6720 | M26: 58 | N26: 9280 | O26: Не облагается | R26: НЕТ | S26: 0 | T26: 0 | U26: 0 | Y26: 0 | Z26: 0 | AA26: 0 | AB26: 11 | AC26: 90.05 | AD26: 185 | AE26: 185 | AF26: 369.6 | AG26: 10 | AH26: 25 | AI26: 185 | AJ26: 185 | AK26: 185 | AL26: 185 | AM26: 1369.3 | AN26: 24126.25767 | AO26: 8042.08589 | AU26: 884.6294479 | AV26: 120.6312883 | AW26: 482.5251534 | AX26: 3042.08589 | AY26: =INDEX(Закупка!A:A,MATCH(A26,Закупка!F:F,0)) -> 4000 | AZ26: 1000 | BA26: 0.25 | BB26: 0.1243458493
A27: sonia_300_3800_99024 | B27: 981284571 | C27: Конструктор, Pirates, Тихая Мэри, 99024 | D27: Готов к продаже | E27: да | F27: 9.4 | G27: OZN981284571 | H27: 21982 | I27: 7005 | J27: 69 | K27: 14977 | L27: 7005 | M27: 69 | N27: 14977 | O27: Не облагается | R27: НЕТ | S27: 0 | T27: 5909 | U27: 0 | V27: https://wildberries.ru/catalog/135465782/detail.aspx | X27: Невыгодный | Y27: 0 | Z27: 1.16 | AA27: 0 | AB27: 11 | AC27: 93.87 | AD27: 225 | AE27: 225 | AF27: 385.28 | AG27: 10 | AH27: 25 | AI27: 225 | AJ27: 225 | AK27: 225 | AL27: 225 | AM27: 1384.98 | AN27: 24331.21472 | AO27: 8110.404908 | AU27: 892.1445399 | AV27: 121.6560736 | AW27: 486.6242945 | AX27: 3110.404908 | AY27: =INDEX(Закупка!A:A,MATCH(A27,Закупка!F:F,0)) -> 4000 | AZ27: 1000 | BA27: 0.25 | BB27: 0.1232984063
A28: sonia_302_6900_66011 | B28: 980493484 | C28: Конструктор Пираты Флагманский трёхмачтовый корабль 66011 | D28: Готов к продаже | E28: да | F28: 9.7 | G28: OZN980493484 | H28: 27600 | I28: 27600 | J28: 0 | K28: 0 | L28: 27600 | M28: 0 | N28: 0 | O28: Не облагается | R28: НЕТ | S28: 0 | T28: 0 | U28: 0 | Y28: 0 | Z28: 0 | AA28: 0 | AB28: 11 | AC28: 369.84 | AD28: 225 | AE28: 225 | AF28: 500 | AG28: 10 | AH28: 25 | AI28: 225 | AJ28: 225 | AK28: 225 | AL28: 225 | AM28: 2224.7 | AN28: 40765.76687 | AO28: 13588.58896 | AU28: 1494.744785 | AV28: 203.8288344 | AW28: 815.3153374 | AX28: 4963.588957 | AY28: =INDEX(Закупка!A:A,MATCH(A28,Закупка!F:F,0)) -> 6900 | AZ28: 1725 | BA28: 0.25 | BB28: 0.1269447479
A29: sonia_303_2200_727 | B29: 980699611 | C29: Конструктор, Катана 727, 781 деталей | D29: Готов к продаже | E29: да | F29: 2.5 | G29: OZN980699611 | H29: 12887 | I29: 4083 | J29: 69 | K29: 8804 | L29: 4083 | M29: 69 | N29: 8804 | O29: Не облагается | R29: НЕТ | S29: 0 | T29: 0 | U29: 0 | Y29: 0 | Z29: 0 | AA29: 0 | AB29: 11 | AC29: 54.71 | AD29: 79 | AE29: 79 | AF29: 224.57 | AG29: 10 | AH29: 25 | AI29: 79 | AJ29: 79 | AK29: 79 | AL29: 79 | AM29: 796.27 | AN29: 13425.53374 | AO29: 4475.177914 | AU29: 492.2695706 | AV29: 67.12766871 | AW29: 268.5106748 | AX29: 1703.177914 | AY29: =INDEX(Закупка!A:A,MATCH(A29,Закупка!F:F,0)) -> 2200 | AZ29: 572 | BA29: 0.26 | BB29: 0.1278161474
A30: sonia_304_2200_731 | B30: 980498893 | C30: Конструктор, Катана Кёнджуро Ренгоку,731, 806 деталей | D30: Готов к продаже | E30: да | F30: 2.1 | G30: OZN980498893 | H30: 12887 | I30: 4083 | J30: 69 | K30: 8804 | L30: 4083 | M30: 69 | N30: 8804 | O30: Не облагается | R30: НЕТ | S30: 0 | T30: 0 | U30: 0 | Y30: 0 | Z30: 0 | AA30: 0 | AB30: 11 | AC30: 54.71 | AD30: 79 | AE30: 79 | AF30: 224.57 | AG30: 10 | AH30: 25 | AI30: 79 | AJ30: 79 | AK30: 79 | AL30: 79 | AM30: 796.27 | AN30: 13425.53374 | AO30: 4475.177914 | AU30: 492.2695706 | AV30: 67.12766871 | AW30: 268.5106748 | AX30: 1703.177914 | AY30: =INDEX(Закупка!A:A,MATCH(A30,Закупка!F:F,0)) -> 2200 | AZ30: 572 | BA30: 0.26 | BB30: 0.1278161474
A31: sonia_307_6900_66010 | B31: 980498829 | C31: Конструктор Пираты Месть королевы Анны 66010 | D31: Готов к продаже | E31: да | F31: 5.9 | G31: OZN980498829 | H31: 37739 | I31: 11994 | J31: 69 | K31: 25745 | L31: 11994 | M31: 69 | N31: 25745 | O31: Не облагается | R31: НЕТ | S31: 0 | T31: 0 | U31: 0 | Y31: 0 | Z31: 0 | AA31: 0 | AB31: 11 | AC31: 160.72 | AD31: 135 | AE31: 135 | AF31: 500 | AG31: 10 | AH31: 25 | AI31: 135 | AJ31: 135 | AK31: 135 | AL31: 135 | AM31: 2224.7 | AN31: 40434.47853 | AO31: 13478.15951 | AU31: 1482.597546 | AV31: 202.1723926 | AW31: 808.6895706 | AX31: 4853.159509 | AY31: =INDEX(Закупка!A:A,MATCH(A31,Закупка!F:F,0)) -> 6900 | AZ31: 1725 | BA31: 0.25 | BB31: 0.1279848335
A32: sonia_305_2200_721 | B32: 981312190 | C32: Конструктор Ниндзяго Ниндзя Катана721 1016 деталей | D32: Готов к продаже | E32: да | F32: 2.5 | G32: OZN981312190 | H32: 12887 | I32: 4083 | J32: 69 | K32: 8804 | L32: 4083 | M32: 69 | N32: 8804 | O32: Не облагается | R32: НЕТ | S32: 0 | T32: 3740 | U32: 0 | V32: https://market.yandex.ru/product--/1757849134/?sku=101779763159 | X32: Невыгодный | Y32: 0 | Z32: 1.08 | AA32: 0 | AB32: 11 | AC32: 54.71 | AD32: 79 | AE32: 79 | AF32: 224.57 | AG32: 10 | AH32: 25 | AI32: 79 | AJ32: 79 | AK32: 79 | AL32: 79 | AM32: 796.27 | AN32: 13425.53374 | AO32: 4475.177914 | AU32: 492.2695706 | AV32: 67.12766871 | AW32: 268.5106748 | AX32: 1703.177914 | AY32: =INDEX(Закупка!A:A,MATCH(A32,Закупка!F:F,0)) -> 2200 | AZ32: 572 | BA32: 0.26 | BB32: 0.1278161474
A33: sonia_308_6200_17004 | B33: 980493248 | C33: Конструктор,Тауэрский мост, 17004, 4295 деталей | D33: Готов к продаже | E33: да | F33: 8.2 | G33: OZN980493248 | H33: 24800 | I33: 10416 | J33: 58 | K33: 14384 | L33: 10416 | M33: 58 | N33: 14384 | O33: Не облагается | R33: НЕТ | S33: 0 | T33: 0 | U33: 0 | Y33: 0 | Z33: 0 | AA33: 0 | AB33: 11 | AC33: 139.57 | AD33: 210 | AE33: 210 | AF33: 500 | AG33: 10 | AH33: 25 | AI33: 210 | AJ33: 210 | AK33: 210 | AL33: 210 | AM33: 2049.7 | AN33: 36845.52147 | AO33: 12281.84049 | AU33: 1351.002454 | AV33: 184.2276074 | AW33: 736.9104294 | AX33: 4531.840491 | AY33: =INDEX(Закупка!A:A,MATCH(A33,Закупка!F:F,0)) -> 6200 | AZ33: 1550 | BA33: 0.25 | BB33: 0.1262025835
A34: sonia_31_220_1015 | B34: 980499459 | C34: Конструктор Майнкрафт Коралловый риф, 1015 | D34: Готов к продаже | E34: да | F34: 0.5 | G34: OZN980499459 | H34: 1398 | I34: 450 | J34: 68 | K34: 948 | L34: 450 | M34: 68 | N34: 948 | O34: Не облагается | R34: НЕТ | S34: 0 | T34: 0 | U34: 0 | Y34: 0 | Z34: 0 | AA34: 0 | AB34: 11 | AC34: 6.03 | AD34: 43 | AE34: 43 | AF34: 24.75 | AG34: 10 | AH34: 25 | AI34: 43 | AJ34: 43 | AK34: 43 | AL34: 43 | AM34: 90.45 | AN34: 1543.98773 | AO34: 514.6625767 | AU34: 56.61288344 | AV34: 7.71993865 | AW34: 30.8797546 | AX34: 228.6625767 | AY34: =INDEX(Закупка!A:A,MATCH(A34,Закупка!F:F,0)) -> 220 | AZ34: 66 | BA34: 0.3 | BB34: 0.1282393611
A35: sonia_311_1100_MXCF0087 | B35: 980493477 | C35: Конструктор детский автомат M4, MXCF0087, 417 деталей | D35: Готов к продаже | E35: да | F35: 1.9 | G35: OZN980493477 | H35: 4400 | I35: 2024 | J35: 54 | K35: 2376 | L35: 2024 | M35: 54 | N35: 2376 | O35: Не облагается | R35: НЕТ | S35: 0 | T35: 0 | U35: 0 | Y35: 0 | Z35: 0 | AA35: 0 | AB35: 11 | AC35: 27.12 | AD35: 71 | AE35: 71 | AF35: 111.32 | AG35: 10 | AH35: 25 | AI35: 71 | AJ35: 71 | AK35: 71 | AL35: 71 | AM35: 394.52 | AN35: 6622.159509 | AO35: 2207.386503 | AU35: 242.8125153 | AV35: 33.11079755 | AW35: 132.4431902 | AX35: 873.8865031 | AY35: =INDEX(Закупка!A:A,MATCH(A35,Закупка!F:F,0)) -> 1050 | AZ35: 283.5 | BA35: 0.27 | BB35: 0.1284324243
A36: sonia_313_850_77001 | B36: 980498896 | C36: Конструктор Пистолет Пустынный орел 408 деталей 77001 | D36: Готов к продаже | E36: да | F36: 1.1 | G36: OZN980498896 | H36: 5039 | I36: 1608 | J36: 69 | K36: 3431 | L36: 1608 | M36: 69 | N36: 3431 | O36: Не облагается | R36: НЕТ | S36: 0 | T36: 0 | U36: 0 | Y36: 0 | Z36: 0 | AA36: 0 | AB36: 11 | AC36: 21.55 | AD36: 55 | AE36: 55 | AF36: 88.44 | AG36: 10 | AH36: 25 | AI36: 55 | AJ36: 55 | AK36: 55 | AL36: 55 | AM36: 317.64 | AN36: 5345.300613 | AO36: 1781.766871 | AU36: 195.9943558 | AV36: 26.72650307 | AW36: 106.9060123 | AX36: 702.2668712 | AY36: =INDEX(Закупка!A:A,MATCH(A36,Закупка!F:F,0)) -> 850 | AZ36: 229.5 | BA36: 0.27 | BB36: 0.1288047296
A37: sonia_309_3800_10680 | B37: 980493259 | C37: Конструктор, Пираты Карибского Моря, Тихая Мэри | D37: Готов к продаже | E37: да | F37: 6.6 | G37: OZN980493259 | H37: 24700 | I37: 7869 | J37: 69 | K37: 16831 | L37: 7869 | M37: 69 | N37: 16831 | O37: Не облагается | R37: НЕТ | S37: 0 | T37: 0 | U37: 0 | Y37: 0 | Z37: 0 | AA37: 0 | AB37: 11 | AC37: 105.44 | AD37: 160 | AE37: 160 | AF37: 432.8 | AG37: 10 | AH37: 25 | AI37: 160 | AJ37: 160 | AK37: 160 | AL37: 160 | AM37: 1507.5 | AN37: 25923.31288 | AO37: 8641.104294 | AU37: 950.5214724 | AV37: 129.6165644 | AW37: 518.4662577 | AX37: 3266.104294 | AY37: =INDEX(Закупка!A:A,MATCH(A37,Закупка!F:F,0)) -> 4300 | AZ37: 1075 | BA37: 0.25 | BB37: 0.1244053958
A38: sonia_314_650_23003 | B38: 980499471 | C38: Конструктор, Техник, Бульдозер | D38: Готов к продаже | E38: да | F38: 2.6 | G38: OZN980499471 | H38: 3704 | I38: 1182 | J38: 69 | K38: 2522 | L38: 1182 | M38: 69 | N38: 2522 | O38: Не облагается | R38: НЕТ | S38: 0 | T38: 0 | U38: 0 | Y38: 0 | Z38: 0 | AA38: 0 | AB38: 11 | AC38: 15.84 | AD38: 79 | AE38: 79 | AF38: 65.01 | AG38: 10 | AH38: 25 | AI38: 79 | AJ38: 79 | AK38: 79 | AL38: 79 | AM38: 232.11 | AN38: 4043.595092 | AO38: 1347.865031 | AU38: 148.2651534 | AV38: 20.21797546 | AW38: 80.87190184 | AX38: 560.4650307 | AY38: =INDEX(Закупка!A:A,MATCH(A38,Закупка!F:F,0)) -> 620 | AZ38: 167.4 | BA38: 0.27 | BB38: 0.1241964115
A39: sonia_315_1100_XB-03038 | B39: 980498838 | C39: Конструктор, Техник, Тяжелый Экскаватор | D39: Готов к продаже | E39: да | F39: 2.9 | G39: OZN980498838 | H39: 6502 | I39: 2074 | J39: 69 | K39: 4428 | L39: 2074 | M39: 69 | N39: 4428 | O39: Не облагается | R39: НЕТ | S39: 0 | T39: 0 | U39: 0 | Y39: 0 | Z39: 0 | AA39: 0 | AB39: 11 | AC39: 27.79 | AD39: 79 | AE39: 79 | AF39: 114.07 | AG39: 10 | AH39: 25 | AI39: 79 | AJ39: 79 | AK39: 79 | AL39: 79 | AM39: 410.77 | AN39: 6945.165644 | AO39: 2315.055215 | AU39: 254.6560736 | AV39: 34.72582822 | AW39: 138.9033129 | AX39: 918.0552147 | AY39: =INDEX(Закупка!A:A,MATCH(A39,Закупка!F:F,0)) -> 1100 | AZ39: 297 | BA39: 0.27 | BB39: 0.1282906767
A40: sonia_316_1100_XB-03035 | B40: 980496836 | C40: Конструктор Карьерный экскаватор XB-03035 | D40: Готов к продаже | E40: да | F40: 2.9 | G40: OZN980496836 | H40: 4400 | I40: 2156 | J40: 51 | K40: 2244 | L40: 2156 | M40: 51 | N40: 2244 | O40: Не облагается | R40: НЕТ | S40: 0 | T40: 0 | U40: 0 | Y40: 0 | Z40: 0 | AA40: 0 | AB40: 11 | AC40: 28.89 | AD40: 79 | AE40: 79 | AF40: 118.58 | AG40: 10 | AH40: 25 | AI40: 79 | AJ40: 79 | AK40: 79 | AL40: 79 | AM40: 415.28 | AN40: 6961.766871 | AO40: 2320.588957 | AU40: 255.2647853 | AV40: 34.80883436 | AW40: 139.2353374 | AX40: 923.5889571 | AY40: =INDEX(Закупка!A:A,MATCH(A40,Закупка!F:F,0)) -> 1100 | AZ40: 297 | BA40: 0.27 | BB40: 0.1279847511
A41: sonia_317_1100_7008 | B41: 980496811 | C41: Конструктор,Новогодний поезд 4 в 1,7008 | D41: Готов к продаже | E41: да | F41: 3.2 | G41: OZN980496811 | H41: 6502 | I41: 2074 | J41: 69 | K41: 4428 | L41: 2074 | M41: 69 | N41: 4428 | O41: Не облагается | R41: НЕТ | S41: 0 | T41: 0 | U41: 0 | Y41: 0 | Z41: 0 | AA41: 0 | AB41: 11 | AC41: 27.79 | AD41: 100 | AE41: 100 | AF41: 114.07 | AG41: 10 | AH41: 25 | AI41: 100 | AJ41: 100 | AK41: 100 | AL41: 100 | AM41: 410.77 | AN41: 7022.466258 | AO41: 2340.822086 | AU41: 257.4904294 | AV41: 35.11233129 | AW41: 140.4493252 | AX41: 943.8220859 | AY41: =INDEX(Закупка!A:A,MATCH(A41,Закупка!F:F,0)) -> 1100 | AZ41: 297 | BA41: 0.27 | BB41: 0.1268785021
A42: sonia_319_1200_4202 | B42: 980498867 | C42: Конструктор Ретро грузовой поезд 4202 | D42: Готов к продаже | E42: да | F42: 2.5 | G42: OZN980498867 | H42: 7093 | I42: 2263 | J42: 69 | K42: 4830 | L42: 2263 | M42: 69 | N42: 4830 | O42: Не облагается | R42: НЕТ | S42: 0 | T42: 0 | U42: 0 | Y42: 0 | Z42: 0 | AA42: 0 | AB42: 11 | AC42: 30.32 | AD42: 79 | AE42: 79 | AF42: 124.47 | AG42: 10 | AH42: 25 | AI42: 79 | AJ42: 79 | AK42: 79 | AL42: 79 | AM42: 448.17 | AN42: 7550.319018 | AO42: 2516.773006 | AU42: 276.8450307 | AV42: 37.75159509 | AW42: 151.0063804 | AX42: 992.7730061 | AY42: =INDEX(Закупка!A:A,MATCH(A42,Закупка!F:F,0)) -> 1200 | AZ42: 324 | BA42: 0.27 | BB42: 0.1287362822
A43: sonia_318_1100_4143 | B43: 980496717 | C43: Конструктор Городской трамвай, 545 деталей,4143 | D43: Готов к продаже | E43: да | F43: 2.9 | G43: OZN980496717 | H43: 6502 | I43: 2074 | J43: 69 | K43: 4428 | L43: 2074 | M43: 69 | N43: 4428 | O43: Не облагается | R43: НЕТ | S43: 0 | T43: 0 | U43: 0 | Y43: 0 | Z43: 0 | AA43: 0 | AB43: 11 | AC43: 27.79 | AD43: 79 | AE43: 79 | AF43: 114.07 | AG43: 10 | AH43: 25 | AI43: 79 | AJ43: 79 | AK43: 79 | AL43: 79 | AM43: 410.77 | AN43: 6945.165644 | AO43: 2315.055215 | AU43: 254.6560736 | AV43: 34.72582822 | AW43: 138.9033129 | AX43: 918.0552147 | AY43: =INDEX(Закупка!A:A,MATCH(A43,Закупка!F:F,0)) -> 1100 | AZ43: 297 | BA43: 0.27 | BB43: 0.1282906767
A44: sonia_32_560_60073 | B44: 980496853 | C44: Конструктор. Мой Мир. Майнкрафт, Конюшня, 247 деталей | D44: Готов к продаже | E44: да | F44: 0.7 | G44: OZN980496853 | H44: 2240 | I44: 1008 | J44: 55 | K44: 1232 | L44: 1008 | M44: 55 | N44: 1232 | O44: Не облагается | R44: НЕТ | S44: 0 | T44: 0 | U44: 0 | Y44: 0 | Z44: 0 | AA44: 0 | AB44: 11 | AC44: 13.51 | AD44: 45 | AE44: 45 | AF44: 55.44 | AG44: 10 | AH44: 25 | AI44: 45 | AJ44: 45 | AK44: 45 | AL44: 45 | AM44: 206.34 | AN44: 3543.092025 | AO44: 1181.030675 | AU44: 129.9133742 | AV44: 17.71546012 | AW44: 70.86184049 | AX44: 469.8306748 | AY44: =INDEX(Закупка!A:A,MATCH(A44,Закупка!F:F,0)) -> 560 | AZ44: 151.2 | BA44: 0.27 | BB44: 0.1280237704
A45: sonia_321_4800_40012 | B45: 980493393 | C45: Конструктор , Френдс , Подружки, Прибрежный парк развлечений | D45: Готов к продаже | E45: да | F45: 4.1 | G45: OZN980493393 | H45: 27186 | I45: 8655 | J45: 69 | K45: 18531 | L45: 8655 | M45: 69 | N45: 18531 | O45: Не облагается | R45: НЕТ | S45: 0 | T45: 0 | U45: 0 | Y45: 0 | Z45: 0 | AA45: 0 | AB45: 11 | AC45: 115.98 | AD45: 120 | AE45: 120 | AF45: 476.03 | AG45: 10 | AH45: 25 | AI45: 120 | AJ45: 120 | AK45: 120 | AL45: 120 | AM45: 1675.73 | AN45: 28695.93865 | AO45: 9565.312883 | AU45: 1052.184417 | AV45: 143.4796933 | AW45: 573.918773 | AX45: 3565.312883 | AY45: =INDEX(Закупка!A:A,MATCH(A45,Закупка!F:F,0)) -> 4800 | AZ45: 1200 | BA45: 0.25 | BB45: 0.125453293
A46: sonia_320_5100_12010 | B46: 980498872 | C46: Конструктор Хогвартс-Экспресс | D46: Готов к продаже | E46: да | F46: 3.1 | G46: OZN980498872 | H46: 28426 | I46: 9043 | J46: 69 | K46: 19383 | L46: 9043 | M46: 69 | N46: 19383 | O46: Не облагается | R46: НЕТ | S46: 0 | T46: 0 | U46: 0 | Y46: 0 | Z46: 0 | AA46: 0 | AB46: 11 | AC46: 121.18 | AD46: 100 | AE46: 100 | AF46: 497.37 | AG46: 10 | AH46: 25 | AI46: 100 | AJ46: 100 | AK46: 100 | AL46: 100 | AM46: 1772.07 | AN46: 30357.31288 | AO46: 10119.10429 | AU46: 1113.101472 | AV46: 151.7865644 | AW46: 607.1462577 | AX46: 3744.104294 | AY46: =INDEX(Закупка!A:A,MATCH(A46,Закупка!F:F,0)) -> 5100 | AZ46: 1275 | BA46: 0.25 | BB46: 0.1259992943
A47: sonia_322_3800_X19049 | B47: 981347702 | C47: Конструктор, Грузовой поезд МАЕРSК, X19049 | D47: Готов к продаже | E47: да | F47: 4.5 | G47: OZN981347702 | H47: 21845 | I47: 6960 | J47: 69 | K47: 14885 | L47: 6960 | M47: 69 | N47: 14885 | O47: Не облагается | R47: НЕТ | S47: 0 | T47: 4233 | U47: 0 | V47: https://wildberries.ru/catalog/126830582/detail.aspx | X47: Невыгодный | Y47: 0 | Z47: 1.39 | AA47: 0 | AB47: 11 | AC47: 93.26 | AD47: 120 | AE47: 120 | AF47: 382.8 | AG47: 10 | AH47: 25 | AI47: 120 | AJ47: 120 | AK47: 120 | AL47: 120 | AM47: 1207.5 | AN47: 20070.55215 | AO47: 6690.184049 | AU47: 735.9202454 | AV47: 100.3527607 | AW47: 401.4110429 | AX47: 2565.184049 | AY47: =INDEX(Закупка!A:A,MATCH(A47,Закупка!F:F,0)) -> 3300 | AZ47: 825 | BA47: 0.25 | BB47: 0.1233149931
A48: sonia_325_2600_88021 | B48: 980493482 | C48: Конструктор Мотоцикл BMW R 1250, 88021-1 | D48: Готов к продаже | E48: да | F48: 1.4 | G48: OZN980493482 | H48: 10400 | I48: 4264 | J48: 59 | K48: 6136 | L48: 4264 | M48: 59 | N48: 6136 | O48: Не облагается | R48: НЕТ | S48: 0 | T48: 0 | U48: 0 | Y48: 0 | Z48: 0 | AA48: 0 | AB48: 11 | AC48: 57.14 | AD48: 63 | AE48: 63 | AF48: 234.52 | AG48: 10 | AH48: 25 | AI48: 63 | AJ48: 63 | AK48: 63 | AL48: 63 | AM48: 910.22 | AN48: 15641.30061 | AO48: 5213.766871 | AU48: 573.5143558 | AV48: 78.20650307 | AW48: 312.8260123 | AX48: 1937.766871 | AY48: =INDEX(Закупка!A:A,MATCH(A48,Закупка!F:F,0)) -> 2600 | AZ48: 676 | BA48: 0.26 | BB48: 0.129656737
A49: sonia_328_750_4189 | B49: 980493434 | C49: Конструктор, Полярное спасение, 4189 | D49: Готов к продаже | E49: да | F49: 1.4 | G49: OZN980493434 | H49: 4408 | I49: 1406 | J49: 69 | K49: 3002 | L49: 1406 | M49: 69 | N49: 3002 | O49: Не облагается | R49: НЕТ | S49: 0 | T49: 0 | U49: 0 | Y49: 0 | Z49: 0 | AA49: 0 | AB49: 11 | AC49: 18.84 | AD49: 63 | AE49: 63 | AF49: 77.33 | AG49: 10 | AH49: 25 | AI49: 63 | AJ49: 63 | AK49: 63 | AL49: 63 | AM49: 279.53 | AN49: 4766.981595 | AO49: 1588.993865 | AU49: 174.7893252 | AV49: 23.83490798 | AW49: 95.3396319 | AX49: 636.493865 | AY49: =INDEX(Закупка!A:A,MATCH(A49,Закупка!F:F,0)) -> 750 | AZ49: 202.5 | BA49: 0.27 | BB49: 0.1274391327
A50: sonia_327_330_3920 | B50: 980498883 | C50: Конструктор, Полицейская погоня, 3920 | D50: Готов к продаже | E50: да | F50: 0.8 | G50: OZN980498883 | H50: 2027 | I50: 652 | J50: 68 | K50: 1375 | L50: 652 | M50: 68 | N50: 1375 | O50: Не облагается | R50: НЕТ | S50: 0 | T50: 0 | U50: 0 | Y50: 0 | Z50: 0 | AA50: 0 | AB50: 11 | AC50: 8.74 | AD50: 47 | AE50: 47 | AF50: 35.86 | AG50: 10 | AH50: 25 | AI50: 47 | AJ50: 47 | AK50: 47 | AL50: 47 | AM50: 134.56 | AN50: 2247.460123 | AO50: 749.1533742 | AU50: 82.40687117 | AV50: 11.23730061 | AW50: 44.94920245 | AX50: 320.1533742 | AY50: =INDEX(Закупка!A:A,MATCH(A50,Закупка!F:F,0)) -> 330 | AZ50: 99 | BA50: 0.3 | BB50: 0.1321491745
A51: sonia_329_600_100136 | B51: 980493407 | C51: Конструктор Racing Series Lamborghini, 100136 | D51: Готов к продаже | E51: да | F51: 1.5 | G51: OZN980493407 | H51: 3537 | I51: 1128 | J51: 69 | K51: 2409 | L51: 1128 | M51: 69 | N51: 2409 | O51: Не облагается | R51: НЕТ | S51: 0 | T51: 0 | U51: 0 | Y51: 0 | Z51: 0 | AA51: 0 | AB51: 11 | AC51: 15.12 | AD51: 65 | AE51: 65 | AF51: 62.04 | AG51: 10 | AH51: 25 | AI51: 65 | AJ51: 65 | AK51: 65 | AL51: 65 | AM51: 223.74 | AN51: 3867.754601 | AO51: 1289.251534 | AU51: 141.8176687 | AV51: 19.33877301 | AW51: 77.35509202 | AX51: 527.2515337 | AY51: =INDEX(Закупка!A:A,MATCH(A51,Закупка!F:F,0)) -> 600 | AZ51: 162 | BA51: 0.27 | BB51: 0.1256543008
A52: sonia_33_150_10190 | B52: 980496872 | C52: Конструктор Майнкрафт Стив и Крипер 10190 53 детали | D52: Готов к продаже | E52: да | F52: 0.3 | G52: OZN980496872 | H52: 1561 | I52: 443 | J52: 72 | K52: 1118 | L52: 443 | M52: 72 | N52: 1118 | O52: Не облагается | R52: НЕТ | S52: 0 | T52: 0 | U52: 0 | Y52: 0 | Z52: 0 | AA52: 0 | AB52: 11 | AC52: 5.94 | AD52: 42 | AE52: 42 | AF52: 24.37 | AG52: 10 | AH52: 25 | AI52: 42 | AJ52: 42 | AK52: 42 | AL52: 42 | AM52: 99.07 | AN52: 1347.496933 | AO52: 449.1656442 | AU52: 49.40822086 | AV52: 6.737484663 | AW52: 26.94993865 | AX52: 224.1656442 | AY52: =INDEX(Закупка!A:A,MATCH(A52,Закупка!F:F,0)) -> 150 | AZ52: 75 | BA52: 0.5 | BB52: 0.1669762614
A53: sonia_330_600_100140 | B53: 980493487 | C53: Конструктор Racing Series Lamborghini Sian, 100140 | D53: Готов к продаже | E53: да | F53: 1.5 | G53: OZN980493487 | H53: 3537 | I53: 1128 | J53: 69 | K53: 2409 | L53: 1128 | M53: 69 | N53: 2409 | O53: Не облагается | R53: НЕТ | S53: 0 | T53: 0 | U53: 0 | Y53: 0 | Z53: 0 | AA53: 0 | AB53: 11 | AC53: 15.12 | AD53: 65 | AE53: 65 | AF53: 62.04 | AG53: 10 | AH53: 25 | AI53: 65 | AJ53: 65 | AK53: 65 | AL53: 65 | AM53: 223.74 | AN53: 3867.754601 | AO53: 1289.251534 | AU53: 141.8176687 | AV53: 19.33877301 | AW53: 77.35509202 | AX53: 527.2515337 | AY53: =INDEX(Закупка!A:A,MATCH(A53,Закупка!F:F,0)) -> 600 | AZ53: 162 | BA53: 0.27 | BB53: 0.1256543008
A54: sonia_332_400_Car 096 (все цвета) | B54: 980493505 | C54: Конструктор Cars Спортивный автомобиль серый, 096 | D54: Готов к продаже | E54: да | F54: 1.2 | G54: OZN980493505 | H54: 2454 | I54: 789 | J54: 68 | K54: 1665 | L54: 789 | M54: 68 | N54: 1665 | O54: Не облагается | R54: НЕТ | S54: 0 | T54: 0 | U54: 0 | Y54: 0 | Z54: 0 | AA54: 0 | AB54: 11 | AC54: 10.57 | AD54: 57 | AE54: 57 | AF54: 43.4 | AG54: 10 | AH54: 25 | AI54: 57 | AJ54: 57 | AK54: 57 | AL54: 57 | AM54: 163.1 | AN54: 2724.294479 | AO54: 908.0981595 | AU54: 99.89079755 | AV54: 13.62147239 | AW54: 54.48588957 | AX54: 388.0981595 | AY54: =INDEX(Закупка!A:A,MATCH(A54,Закупка!F:F,0)) -> 400 | AZ54: 120 | BA54: 0.3 | BB54: 0.1321443048
A55: sonia_331_600_100142 | B55: 980493480 | C55: Конструктор Racing Series Toyota AE86 Trueno, 100142 | D55: Готов к продаже | E55: да | F55: 1.5 | G55: OZN980493480 | H55: 2400 | I55: 1056 | J55: 56 | K55: 1344 | L55: 1056 | M55: 56 | N55: 1344 | O55: Не облагается | R55: НЕТ | S55: 0 | T55: 0 | U55: 0 | Y55: 0 | Z55: 0 | AA55: 0 | AB55: 11 | AC55: 14.15 | AD55: 65 | AE55: 65 | AF55: 58.08 | AG55: 10 | AH55: 25 | AI55: 65 | AJ55: 65 | AK55: 65 | AL55: 65 | AM55: 222.78 | AN55: 3691.214724 | AO55: 1230.404908 | AU55: 135.3445399 | AV55: 18.45607362 | AW55: 73.82429448 | AX55: 515.404908 | AY55: =INDEX(Закупка!A:A,MATCH(A55,Закупка!F:F,0)) -> 550 | AZ55: 165 | BA55: 0.3 | BB55: 0.1341021959
A56: sonia_334_400_11620 | B56: 980496724 | C56: Конструктор Сити Морская полиция: захват-маяк | D56: Готов к продаже | E56: да | F56: 1 | G56: OZN980496724 | H56: 1600 | I56: 736 | J56: 54 | K56: 864 | L56: 736 | M56: 54 | N56: 864 | O56: Не облагается | R56: НЕТ | S56: 0 | T56: 0 | U56: 0 | Y56: 0 | Z56: 0 | AA56: 0 | AB56: 11 | AC56: 9.86 | AD56: 51 | AE56: 51 | AF56: 40.48 | AG56: 10 | AH56: 25 | AI56: 51 | AJ56: 51 | AK56: 51 | AL56: 51 | AM56: 160.18 | AN56: 2691.460123 | AO56: 897.1533742 | AU56: 98.68687117 | AV56: 13.45730061 | AW56: 53.82920245 | AX56: 377.1533742 | AY56: =INDEX(Закупка!A:A,MATCH(A56,Закупка!F:F,0)) -> 400 | AZ56: 120 | BA56: 0.3 | BB56: 0.1337563938
A57: sonia_333_350_10873 | B57: 980493441 | C57: Конструктор Город Сити Бригада шахтеров | D57: Готов к продаже | E57: да | F57: 0.6 | G57: OZN980493441 | H57: 1853 | I57: 596 | J57: 68 | K57: 1257 | L57: 596 | M57: 68 | N57: 1257 | O57: Не облагается | R57: НЕТ | S57: 0 | T57: 0 | U57: 0 | Y57: 0 | Z57: 0 | AA57: 0 | AB57: 11 | AC57: 7.99 | AD57: 45 | AE57: 45 | AF57: 32.78 | AG57: 10 | AH57: 25 | AI57: 45 | AJ57: 45 | AK57: 45 | AL57: 45 | AM57: 122.48 | AN57: 2052.07362 | AO57: 684.0245399 | AU57: 75.24269939 | AV57: 10.2603681 | AW57: 41.04147239 | AX57: 294.0245399 | AY57: =INDEX(Закупка!A:A,MATCH(A57,Закупка!F:F,0)) -> 300 | AZ57: 90 | BA57: 0.3 | BB57: 0.1315742269
A58: sonia_336_880_XB-58006 | B58: 980498852 | C58: Конструктор, Конвейерная автомойка | D58: Готов к продаже | E58: да | F58: 1.7 | G58: OZN980498852 | H58: 5172 | I58: 1650 | J58: 69 | K58: 3522 | L58: 1650 | M58: 69 | N58: 3522 | O58: Не облагается | R58: НЕТ | S58: 0 | T58: 0 | U58: 0 | Y58: 0 | Z58: 0 | AA58: 0 | AB58: 11 | AC58: 22.11 | AD58: 69 | AE58: 69 | AF58: 90.75 | AG58: 10 | AH58: 25 | AI58: 69 | AJ58: 69 | AK58: 69 | AL58: 69 | AM58: 328.05 | AN58: 5575.398773 | AO58: 1858.466258 | AU58: 204.4312883 | AV58: 27.87699387 | AW58: 111.5079755 | AX58: 740.8662577 | AY58: =INDEX(Закупка!A:A,MATCH(A58,Закупка!F:F,0)) -> 880 | AZ58: 237.6 | BA58: 0.27 | BB58: 0.1278473575
A59: sonia_338_450_11527 | B59: 980493326 | C59: Конструктор,City Гоночные машины,11527 | D59: Готов к продаже | E59: да | F59: 0.9 | G59: OZN980493326 | H59: 2706 | I59: 870 | J59: 68 | K59: 1836 | L59: 870 | M59: 68 | N59: 1836 | O59: Не облагается | R59: НЕТ | S59: 0 | T59: 0 | U59: 0 | Y59: 0 | Z59: 0 | AA59: 0 | AB59: 11 | AC59: 11.66 | AD59: 49 | AE59: 49 | AF59: 47.85 | AG59: 10 | AH59: 25 | AI59: 49 | AJ59: 49 | AK59: 49 | AL59: 49 | AM59: 182.55 | AN59: 3005.705521 | AO59: 1001.90184 | AU59: 110.2092025 | AV59: 15.02852761 | AW59: 60.11411043 | AX59: 416.9018405 | AY59: =INDEX(Закупка!A:A,MATCH(A59,Закупка!F:F,0)) -> 450 | AZ59: 135 | BA59: 0.3 | BB59: 0.1347437389
A60: sonia_339_3750_T5023 | B60: 980496823 | C60: Конструктор,Technic,Ауди универсал,5023 | D60: Готов к продаже | E60: да | F60: 6.2 | G60: OZN980496823 | H60: 24709 | I60: 7872 | J60: 69 | K60: 16837 | L60: 7872 | M60: 69 | N60: 16837 | O60: Не облагается | R60: НЕТ | S60: 0 | T60: 0 | U60: 0 | Y60: 0 | Z60: 0 | AA60: 0 | AB60: 11 | AC60: 105.48 | AD60: 160 | AE60: 160 | AF60: 432.96 | AG60: 10 | AH60: 25 | AI60: 160 | AJ60: 160 | AK60: 160 | AL60: 160 | AM60: 1507.66 | AN60: 25923.90184 | AO60: 8641.300613 | AU60: 950.5430675 | AV60: 129.6195092 | AW60: 518.4780368 | AX60: 3266.300613 | AY60: =INDEX(Закупка!A:A,MATCH(A60,Закупка!F:F,0)) -> 4300 | AZ60: 1075 | BA60: 0.25 | BB60: 0.1244025695
A61: sonia_34_250_3D152-4 | B61: 980496894 | C61: Конструктор Майнкрафт , Черный дракон | D61: Готов к продаже | E61: да | F61: 0.7 | G61: OZN980496894 | H61: 1000 | I61: 480 | J61: 52 | K61: 520 | L61: 480 | M61: 52 | N61: 520 | O61: Не облагается | R61: НЕТ | S61: 0 | T61: 0 | U61: 0 | Y61: 0 | Z61: 0 | AA61: 0 | AB61: 11 | AC61: 6.43 | AD61: 45 | AE61: 45 | AF61: 26.4 | AG61: 10 | AH61: 25 | AI61: 45 | AJ61: 45 | AK61: 45 | AL61: 45 | AM61: 101.1 | AN61: 1734.110429 | AO61: 578.0368098 | AU61: 63.58404908 | AV61: 8.670552147 | AW61: 34.68220859 | AX61: 253.0368098 | AY61: =INDEX(Закупка!A:A,MATCH(A61,Закупка!F:F,0)) -> 250 | AZ61: 75 | BA61: 0.3 | BB61: 0.1297495224
A62: sonia_340_12000_13088 | B62: 980496738 | C62: Конструктор Avtoros Shaman, 13088 | D62: Готов к продаже | E62: да | F62: 8.7 | G62: OZN980496738 | H62: 66564 | I62: 19425 | J62: 71 | K62: 47139 | L62: 19425 | M62: 71 | N62: 47139 | O62: Не облагается | R62: НЕТ | S62: 0 | T62: 0 | U62: 0 | Y62: 0 | Z62: 0 | AA62: 0 | AB62: 11 | AC62: 260.3 | AD62: 210 | AE62: 210 | AF62: 500 | AG62: 10 | AH62: 25 | AI62: 210 | AJ62: 210 | AK62: 210 | AL62: 210 | AM62: 3019.7 | AN62: 65336.31902 | AO62: 21778.77301 | AU62: 2395.665031 | AV62: 326.6815951 | AW62: 1306.72638 | AX62: 7258.773006 | AY62: =INDEX(Закупка!A:A,MATCH(A62,Закупка!F:F,0)) -> 12000 | AZ62: 2520 | BA62: 0.21 | BB62: 0.1157089979
A63: sonia_341_4500_92011 | B63: 980496679 | C63: Конструктор Спорткар, 92011, 1182 детали | D63: Готов к продаже | E63: да | F63: 5.8 | G63: OZN980496679 | H63: 25692 | I63: 8183 | J63: 69 | K63: 17509 | L63: 8183 | M63: 69 | N63: 17509 | O63: Не облагается | R63: НЕТ | S63: 0 | T63: 0 | U63: 0 | Y63: 0 | Z63: 0 | AA63: 0 | AB63: 11 | AC63: 109.65 | AD63: 135 | AE63: 135 | AF63: 450.07 | AG63: 10 | AH63: 25 | AI63: 135 | AJ63: 135 | AK63: 135 | AL63: 135 | AM63: 1574.77 | AN63: 26999.15337 | AO63: 8999.717791 | AU63: 989.9689571 | AV63: 134.9957669 | AW63: 539.9830675 | AX63: 3374.717791 | AY63: =INDEX(Закупка!A:A,MATCH(A63,Закупка!F:F,0)) -> 4500 | AZ63: 1125 | BA63: 0.25 | BB63: 0.1250039197
A64: sonia_342_5200_MY88012 | B64: 980493417 | C64: Конструктор Спорткар Ford Spectre R42, MY88012 | D64: Готов к продаже | E64: да | F64: 7.5 | G64: OZN980493417 | H64: 29542 | I64: 9407 | J64: 69 | K64: 20135 | L64: 9407 | M64: 69 | N64: 20135 | O64: Не облагается | R64: НЕТ | S64: 0 | T64: 0 | U64: 0 | Y64: 0 | Z64: 0 | AA64: 0 | AB64: 11 | AC64: 126.05 | AD64: 185 | AE64: 185 | AF64: 500 | AG64: 10 | AH64: 25 | AI64: 185 | AJ64: 185 | AK64: 185 | AL64: 185 | AM64: 1799.7 | AN64: 31232.02454 | AO64: 10410.67485 | AU64: 1145.174233 | AV64: 156.1601227 | AW64: 624.6404908 | AX64: 3910.674847 | AY64: =INDEX(Закупка!A:A,MATCH(A64,Закупка!F:F,0)) -> 5200 | AZ64: 1300 | BA64: 0.25 | BB64: 0.1248718281
A65: sonia_344_4200_19009 | B65: 981294081 | C65: Конструктор Фургон Volkswagen Camper, 19009 | D65: Готов к продаже | E65: да | F65: 8.1 | G65: OZN981294081 | H65: 24296 | I65: 7743 | J65: 69 | K65: 16553 | L65: 7743 | M65: 69 | N65: 16553 | O65: Не облагается | R65: НЕТ | S65: 0 | T65: 7043 | U65: 0 | V65: https://wildberries.ru/catalog/133994196/detail.aspx | X65: Невыгодный | Y65: 0 | Z65: 1.09 | AA65: 0 | AB65: 11 | AC65: 103.76 | AD65: 210 | AE65: 210 | AF65: 425.87 | AG65: 10 | AH65: 25 | AI65: 210 | AJ65: 210 | AK65: 210 | AL65: 210 | AM65: 1475.57 | AN65: 25529.70552 | AO65: 8509.90184 | AU65: 936.0892025 | AV65: 127.6485276 | AW65: 510.5941104 | AX65: 3259.90184 | AY65: =INDEX(Закупка!A:A,MATCH(A65,Закупка!F:F,0)) -> 4200 | AZ65: 1050 | BA65: 0.25 | BB65: 0.123385677
A66: sonia_346_4300_33017 | B66: 980496682 | C66: Конструктор, Porsche, 1198 деталей, 33017 | D66: Готов к продаже | E66: да | F66: 4.9 | G66: OZN980496682 | H66: 19102 | I66: 6088 | J66: 69 | K66: 13014 | L66: 6088 | M66: 69 | N66: 13014 | O66: Не облагается | R66: НЕТ | S66: 0 | T66: 0 | U66: 0 | Y66: 0 | Z66: 0 | AA66: 0 | AB66: 11 | AC66: 81.58 | AD66: 120 | AE66: 120 | AF66: 334.84 | AG66: 10 | AH66: 25 | AI66: 120 | AJ66: 120 | AK66: 120 | AL66: 120 | AM66: 932.54 | AN66: 14541.86503 | AO66: 4847.288344 | AU66: 533.2017178 | AV66: 72.70932515 | AW66: 290.8373006 | AX66: 1949.288344 | AY66: =INDEX(Закупка!A:A,MATCH(A66,Закупка!F:F,0)) -> 2300 | AZ66: 598 | BA66: 0.26 | BB66: 0.1233679446
A67: sonia_343_5200_MY88010 | B67: 980493390 | C67: Конструктор Сорткар Lamborghini Urus, MY88010 | D67: Готов к продаже | E67: да | F67: 7.5 | G67: OZN980493390 | H67: 28048 | I67: 8934 | J67: 69 | K67: 19114 | L67: 8934 | M67: 69 | N67: 19114 | O67: Не облагается | R67: НЕТ | S67: 0 | T67: 0 | U67: 0 | Y67: 0 | Z67: 0 | AA67: 0 | AB67: 11 | AC67: 119.72 | AD67: 185 | AE67: 185 | AF67: 491.37 | AG67: 10 | AH67: 25 | AI67: 185 | AJ67: 185 | AK67: 185 | AL67: 185 | AM67: 1716.07 | AN67: 29543.81595 | AO67: 9847.93865 | AU67: 1083.273252 | AV67: 147.7190798 | AW67: 590.876319 | AX67: 3722.93865 | AY67: =INDEX(Закупка!A:A,MATCH(A67,Закупка!F:F,0)) -> 4900 | AZ67: 1225 | BA67: 0.25 | BB67: 0.1243915142
A68: sonia_347_1600_KY1037 | B68: 980496715 | C68: Конструктор. Спортивный автомобиль, 661 деталь, KY1037 | D68: Готов к продаже | E68: да | F68: 5.5 | G68: OZN980496715 | H68: 6400 | I68: 2816 | J68: 56 | K68: 3584 | L68: 2816 | M68: 56 | N68: 3584 | O68: Не облагается | R68: НЕТ | S68: 0 | T68: 0 | U68: 0 | Y68: 0 | Z68: 0 | AA68: 0 | AB68: 11 | AC68: 37.73 | AD68: 135 | AE68: 135 | AF68: 154.88 | AG68: 10 | AH68: 25 | AI68: 135 | AJ68: 135 | AK68: 135 | AL68: 135 | AM68: 570.58 | AN68: 10018.08589 | AO68: 3339.361963 | AU68: 367.329816 | AV68: 50.09042945 | AW68: 200.3617178 | AX68: 1323.361963 | AY68: =INDEX(Закупка!A:A,MATCH(A68,Закупка!F:F,0)) -> 1600 | AZ68: 416 | BA68: 0.26 | BB68: 0.1245746956
A69: sonia_345_3800_10775 | B69: 980498930 | C69: Конструктор Create Лондонский автобус два этажа 1686 деталей | D69: Готов к продаже | E69: да | F69: 4.7 | G69: OZN980498930 | H69: 21845 | I69: 6960 | J69: 69 | K69: 14885 | L69: 6960 | M69: 69 | N69: 14885 | O69: Не облагается | R69: НЕТ | S69: 0 | T69: 0 | U69: 0 | Y69: 0 | Z69: 0 | AA69: 0 | AB69: 11 | AC69: 93.26 | AD69: 120 | AE69: 120 | AF69: 382.8 | AG69: 10 | AH69: 25 | AI69: 120 | AJ69: 120 | AK69: 120 | AL69: 120 | AM69: 1332.5 | AN69: =AO69*3 -> 22831.28834 | AO69: 7610.429448 | AU69: 837.1472393 | AV69: 114.1564417 | AW69: 456.6257669 | AX69: 2860.429448 | AY69: =INDEX(Закупка!A:A,MATCH(A69,Закупка!F:F,0)) -> 3800 | AZ69: 950 | BA69: 0.25 | BB69: 0.1248286981
A70: sonia_348_4500_T19080 | B70: 981443884 | C70: Конструктор Внедорожник Land Rover Defender, T19080 | D70: Готов к продаже | E70: да | F70: 5.7 | G70: OZN981443884 | H70: 0 | I70: 18000 | J70: 0 | K70: 0 | L70: 18000 | M70: 0 | N70: 0 | O70: Не облагается | R70: НЕТ | S70: 8695.09 | T70: 9513 | U70: 0 | V70: https://wildberries.ru/catalog/143700639/detail.aspx | X70: Невыгодный | Y70: 1.52 | Z70: 1.47 | AA70: 0 | AB70: 11 | AC70: 241.2 | AD70: 135 | AE70: 135 | AF70: 500 | AG70: 10 | AH70: 25 | AI70: 135 | AJ70: 135 | AK70: 135 | AL70: 135 | AM70: 1799.7 | AN70: 31047.97546 | AO70: 10349.32515 | AU70: 1138.425767 | AV70: 155.2398773 | AW70: 620.9595092 | AX70: 3849.325153 | AY70: =INDEX(Закупка!A:A,MATCH(A70,Закупка!F:F,0)) -> 5200 | AZ70: 1300 | BA70: 0.25 | BB70: 0.125612055
A71: sonia_35_250_3D152-2 | B71: 980493404 | C71: Конструктор Майнкрафт , Розовая свинья и зомби-ребенок | D71: Готов к продаже | E71: да | F71: 0.7 | G71: OZN980493404 | H71: 1572 | I71: 506 | J71: 68 | K71: 1066 | L71: 506 | M71: 68 | N71: 1066 | O71: Не облагается | R71: НЕТ | S71: 0 | T71: 0 | U71: 0 | Y71: 0 | Z71: 0 | AA71: 0 | AB71: 11 | AC71: 6.78 | AD71: 45 | AE71: 45 | AF71: 27.83 | AG71: 10 | AH71: 25 | AI71: 45 | AJ71: 45 | AK71: 45 | AL71: 45 | AM71: 102.53 | AN71: 1739.374233 | AO71: 579.791411 | AU71: =AO71*AB71% -> 63.77705521 | AV71: =AO71*1.5% -> 8.696871166 | AW71: =AO71*6% -> 34.78748466 | AX71: =SUM(AL71+AM71+AU71+AV71+AW71) -> 254.791411 | AY71: =INDEX(Закупка!A:A,MATCH(A71,Закупка!F:F,0)) -> 250 | AZ71: =AO71-AX71-AY71 -> 75 | BA71: =AZ71/AY71 -> 0.3 | BB71: =AZ71/AO71*100% -> 0.1293568662
A72: sonia_349_1100_T3030 | B72: 980496662 | C72: Конструктор,Техник,Optimus Prime | D72: Готов к продаже | E72: да | F72: 4.5 | G72: OZN980496662 | H72: 6484 | I72: 2068 | J72: 69 | K72: 4416 | L72: 2068 | M72: 69 | N72: 4416 | O72: Не облагается | R72: НЕТ | S72: 0 | T72: 0 | U72: 0 | Y72: 0 | Z72: 0 | AA72: 0 | AB72: 11 | AC72: 27.71 | AD72: 120 | AE72: 120 | AF72: 113.74 | AG72: 10 | AH72: 25 | AI72: 120 | AJ72: 120 | AK72: 120 | AL72: 120 | AM72: 410.44 | AN72: 7094.871166 | AO72: 2364.957055 | AU72: 260.1452761 | AV72: 35.47435583 | AW72: 141.8974233 | AX72: 967.9570552 | AY72: =INDEX(Закупка!A:A,MATCH(A72,Закупка!F:F,0)) -> 1100 | AZ72: 297 | BA72: 0.27 | BB72: 0.1255836758
A73: sonia_351_4100_T5017 | B73: 980493378 | C73: Конструктор Спорткар Shelby GT500 красный, T5017 | D73: Готов к продаже | E73: да | F73: 5.5 | G73: OZN980493378 | H73: 16400 | I73: 6888 | J73: 58 | K73: 9512 | L73: 6888 | M73: 58 | N73: 9512 | O73: Не облагается | R73: НЕТ | S73: 0 | T73: 0 | U73: 0 | Y73: 0 | Z73: 0 | AA73: 0 | AB73: 11 | AC73: 92.3 | AD73: 135 | AE73: 135 | AF73: 378.84 | AG73: 10 | AH73: 25 | AI73: 135 | AJ73: 135 | AK73: 135 | AL73: 135 | AM73: 1403.54 | AN73: 24528.3681 | AO73: 8176.122699 | AU73: 899.3734969 | AV73: 122.6418405 | AW73: 490.567362 | AX73: 3051.122699 | AY73: =INDEX(Закупка!A:A,MATCH(A73,Закупка!F:F,0)) -> 4100 | AZ73: 1025 | BA73: 0.25 | BB73: 0.1253650462
A74: sonia_350_2500_T2018 | B74: 980498942 | C74: Конструктор Гоночный болид, T2018 | D74: Готов к продаже | E74: да | F74: 4.9 | G74: OZN980498942 | H74: 14602 | I74: 4625 | J74: 69 | K74: 9977 | L74: 4625 | M74: 69 | N74: 9977 | O74: Не облагается | R74: НЕТ | S74: 0 | T74: 0 | U74: 0 | Y74: 0 | Z74: 0 | AA74: 0 | AB74: 11 | AC74: 61.98 | AD74: 120 | AE74: 120 | AF74: 254.38 | AG74: 10 | AH74: 25 | AI74: 120 | AJ74: 120 | AK74: 120 | AL74: 120 | AM74: 904.08 | AN74: 15364.71166 | AO74: 5121.570552 | AU74: 563.3727607 | AV74: 76.82355828 | AW74: 307.2942331 | AX74: 1971.570552 | AY74: =INDEX(Закупка!A:A,MATCH(A74,Закупка!F:F,0)) -> 2500 | AZ74: 650 | BA74: 0.26 | BB74: 0.1269141943
A75: sonia_356_6800_T5020 бел. | B75: 980493379 | C75: Конструктор Внедорожник Jeep белый,3173 деталей,Т 5020 | D75: Готов к продаже | E75: да | F75: 7.9 | G75: OZN980493379 | H75: 37513 | I75: 11928 | J75: 69 | K75: 25585 | L75: 11928 | M75: 69 | N75: 25585 | O75: Не облагается | R75: НЕТ | S75: 0 | T75: 0 | U75: 0 | Y75: 0 | Z75: 0 | AA75: 0 | AB75: 11 | AC75: 159.84 | AD75: 185 | AE75: 185 | AF75: 500 | AG75: 10 | AH75: 25 | AI75: 185 | AJ75: 185 | AK75: 185 | AL75: 185 | AM75: 2074.7 | AN75: 37305.64417 | AO75: 12435.21472 | AU75: 1367.87362 | AV75: 186.5282209 | AW75: 746.1128834 | AX75: 4560.214724 | AY75: =INDEX(Закупка!A:A,MATCH(A75,Закупка!F:F,0)) -> 6300 | AZ75: 1575 | BA75: 0.25 | BB75: 0.1266564378
A76: sonia_353_3500_T5006 | B76: 980496600 | C76: Конструктор,Technic,Болид Formula 1 | D76: Готов к продаже | E76: да | F76: 7.1 | G76: OZN980496600 | H76: 20247 | I76: 6452 | J76: 69 | K76: 13795 | L76: 6452 | M76: 69 | N76: 13795 | O76: Не облагается | R76: НЕТ | S76: 0 | T76: 0 | U76: 0 | Y76: 0 | Z76: 0 | AA76: 0 | AB76: 11 | AC76: 86.46 | AD76: 185 | AE76: 185 | AF76: 354.86 | AG76: 10 | AH76: 25 | AI76: 185 | AJ76: 185 | AK76: 185 | AL76: 185 | AM76: 1229.56 | AN76: 21311.2638 | AO76: 7103.754601 | AU76: 781.4130061 | AV76: 106.556319 | AW76: 426.2252761 | AX76: 2728.754601 | AY76: =INDEX(Закупка!A:A,MATCH(A76,Закупка!F:F,0)) -> 3500 | AZ76: 875 | BA76: 0.25 | BB76: 0.1231742999
A77: sonia_352_4900_MY88010B | B77: 980496732 | C77: Конструктор Спорткар Lamborghini Urus, MY88010В | D77: Готов к продаже | E77: да | F77: 6.3 | G77: OZN980496732 | H77: 19600 | I77: 8232 | J77: 58 | K77: 11368 | L77: 8232 | M77: 58 | N77: 11368 | O77: Не облагается | R77: НЕТ | S77: 0 | T77: 0 | U77: 0 | Y77: 0 | Z77: 0 | AA77: 0 | AB77: 11 | AC77: 110.31 | AD77: 160 | AE77: 160 | AF77: 452.76 | AG77: 10 | AH77: 25 | AI77: 160 | AJ77: 160 | AK77: 160 | AL77: 160 | AM77: 1677.46 | AN77: 29309.66871 | AO77: 9769.889571 | AU77: 1074.687853 | AV77: 146.5483436 | AW77: 586.1933742 | AX77: 3644.889571 | AY77: =INDEX(Закупка!A:A,MATCH(A77,Закупка!F:F,0)) -> 4900 | AZ77: 1225 | BA77: 0.25 | BB77: 0.1253852453
A78: sonia_354_4700_T5021 | B78: 980498899 | C78: Конструктор,Technic,Грузовик City Truck | D78: Готов к продаже | E78: да | F78: 5.5 | G78: OZN980498899 | H78: 26765 | I78: 8523 | J78: 69 | K78: 18242 | L78: 8523 | M78: 69 | N78: 18242 | O78: Не облагается | R78: НЕТ | S78: 0 | T78: 0 | U78: 0 | Y78: 0 | Z78: 0 | AA78: 0 | AB78: 11 | AC78: 114.21 | AD78: 135 | AE78: 135 | AF78: 468.77 | AG78: 10 | AH78: 25 | AI78: 135 | AJ78: 135 | AK78: 135 | AL78: 135 | AM78: 1643.47 | AN78: 28172.28221 | AO78: 9390.760736 | AU78: 1032.983681 | AV78: 140.861411 | AW78: 563.4456442 | AX78: 3515.760736 | AY78: =INDEX(Закупка!A:A,MATCH(A78,Закупка!F:F,0)) -> 4700 | AZ78: 1175 | BA78: 0.25 | BB78: 0.1251229834
A79: sonia_357_6800_T5020 чер. | B79: 980493424 | C79: Конструктор Внедорожник Jeep черный,3173 деталей,Т 5020 | D79: Готов к продаже | E79: да | F79: 7.9 | G79: OZN980493424 | H79: 37513 | I79: 11928 | J79: 69 | K79: 25585 | L79: 11928 | M79: 69 | N79: 25585 | O79: Не облагается | R79: НЕТ | S79: 0 | T79: 0 | U79: 0 | Y79: 0 | Z79: 0 | AA79: 0 | AB79: 11 | AC79: 159.84 | AD79: 185 | AE79: 185 | AF79: 500 | AG79: 10 | AH79: 25 | AI79: 185 | AJ79: 185 | AK79: 185 | AL79: 185 | AM79: 2074.7 | AN79: 37305.64417 | AO79: 12435.21472 | AU79: 1367.87362 | AV79: 186.5282209 | AW79: 746.1128834 | AX79: 4560.214724 | AY79: =INDEX(Закупка!A:A,MATCH(A79,Закупка!F:F,0)) -> 6300 | AZ79: 1575 | BA79: 0.25 | BB79: 0.1266564378
A80: sonia_359_6100_T5014 кр. | B80: 980493458 | C80: Конструктор Форд F-150 Раптор красный, T5014 | D80: Готов к продаже | E80: да | F80: 7.9 | G80: OZN980493458 | H80: 34026 | I80: 10825 | J80: 69 | K80: 23201 | L80: 10825 | M80: 69 | N80: 23201 | O80: Не облагается | R80: НЕТ | S80: 0 | T80: 0 | U80: 0 | Y80: 0 | Z80: 0 | AA80: 0 | AB80: 11 | AC80: 145.06 | AD80: 185 | AE80: 185 | AF80: 500 | AG80: 10 | AH80: 25 | AI80: 185 | AJ80: 185 | AK80: 185 | AL80: 185 | AM80: 2024.7 | AN80: 36201.34969 | AO80: 12067.11656 | AU80: 1327.382822 | AV80: 181.0067485 | AW80: 724.0269939 | AX80: 4442.116564 | AY80: =INDEX(Закупка!A:A,MATCH(A80,Закупка!F:F,0)) -> 6100 | AZ80: 1525 | BA80: 0.25 | BB80: 0.1263765036
A81: sonia_358_4600_T5010 | B81: 980496757 | C81: Конструктор Внедорожник, T5010 | D81: Готов к продаже | E81: да | F81: 7.4 | G81: OZN980496757 | H81: 26501 | I81: 8444 | J81: 69 | K81: 18057 | L81: 8444 | M81: 69 | N81: 18057 | O81: Не облагается | R81: НЕТ | S81: 0 | T81: 0 | U81: 0 | Y81: 0 | Z81: 0 | AA81: 0 | AB81: 11 | AC81: 113.15 | AD81: 185 | AE81: 185 | AF81: 464.42 | AG81: 10 | AH81: 25 | AI81: 185 | AJ81: 185 | AK81: 185 | AL81: 185 | AM81: 1614.12 | AN81: 27788.17178 | AO81: 9262.723926 | AU81: 1018.899632 | AV81: 138.9408589 | AW81: 555.7634356 | AX81: 3512.723926 | AY81: =INDEX(Закупка!A:A,MATCH(A81,Закупка!F:F,0)) -> 4600 | AZ81: 1150 | BA81: 0.25 | BB81: 0.1241535437
A82: sonia_36_250_3D152-3 | B82: 980493396 | C82: Конструктор Майнкрафт , Синий дракон | D82: Готов к продаже | E82: да | F82: 0.7 | G82: OZN980493396 | H82: 1572 | I82: 506 | J82: 68 | K82: 1066 | L82: 506 | M82: 68 | N82: 1066 | O82: Не облагается | R82: НЕТ | S82: 0 | T82: 0 | U82: 0 | Y82: 0 | Z82: 0 | AA82: 0 | AB82: 11 | AC82: 6.78 | AD82: 45 | AE82: 45 | AF82: 27.83 | AG82: 10 | AH82: 25 | AI82: 45 | AJ82: 45 | AK82: 45 | AL82: 45 | AM82: 102.53 | AN82: 1739.374233 | AO82: 579.791411 | AU82: 63.77705521 | AV82: 8.696871166 | AW82: 34.78748466 | AX82: 254.791411 | AY82: =INDEX(Закупка!A:A,MATCH(A82,Закупка!F:F,0)) -> 250 | AZ82: 75 | BA82: 0.3 | BB82: 0.1293568662
A83: sonia_360_6100_T5014 оран. | B83: 980493422 | C83: Конструктор Форд F-150 оранжевый, T5014 | D83: Готов к продаже | E83: да | F83: 7.9 | G83: OZN980493422 | H83: 34026 | I83: 10825 | J83: 69 | K83: 23201 | L83: 10825 | M83: 69 | N83: 23201 | O83: Не облагается | R83: НЕТ | S83: 0 | T83: 0 | U83: 0 | Y83: 0 | Z83: 0 | AA83: 0 | AB83: 11 | AC83: 145.06 | AD83: 185 | AE83: 185 | AF83: 500 | AG83: 10 | AH83: 25 | AI83: 185 | AJ83: 185 | AK83: 185 | AL83: 185 | AM83: 2024.7 | AN83: 36201.34969 | AO83: 12067.11656 | AU83: 1327.382822 | AV83: 181.0067485 | AW83: 724.0269939 | AX83: 4442.116564 | AY83: =INDEX(Закупка!A:A,MATCH(A83,Закупка!F:F,0)) -> 6100 | AZ83: 1525 | BA83: 0.25 | BB83: 0.1263765036
A84: sonia_361_6900_T5013 | B84: 980496660 | C84: Конструктор,Гоночная машина GTR | D84: Готов к продаже | E84: да | F84: 8.7 | G84: OZN980496660 | H84: 38102 | I84: 12116 | J84: 69 | K84: 25986 | L84: 12116 | M84: 69 | N84: 25986 | O84: Не облагается | R84: НЕТ | S84: 0 | T84: 0 | U84: 0 | Y84: 0 | Z84: 0 | AA84: 0 | AB84: 11 | AC84: 162.35 | AD84: 210 | AE84: 210 | AF84: 500 | AG84: 10 | AH84: 25 | AI84: 210 | AJ84: 210 | AK84: 210 | AL84: 210 | AM84: 2224.7 | AN84: 40710.55215 | AO84: 13570.18405 | AU84: 1492.720245 | AV84: 203.5527607 | AW84: 814.2110429 | AX84: 4945.184049 | AY84: =INDEX(Закупка!A:A,MATCH(A84,Закупка!F:F,0)) -> 6900 | AZ84: 1725 | BA84: 0.25 | BB84: 0.12711692
A85: sonia_363_900_8601 | B85: 980598860 | C85: Конструктор Подружки Поп-звезда: Дом Ливи | D85: Готов к продаже | E85: да | F85: 1.6 | G85: OZN980598860 | H85: 5290 | I85: 1687 | J85: 69 | K85: 3603 | L85: 1687 | M85: 69 | N85: 3603 | O85: Не облагается | R85: НЕТ | S85: 0 | T85: 0 | U85: 0 | Y85: 0 | Z85: 0 | AA85: 0 | AB85: 11 | AC85: 22.61 | AD85: 67 | AE85: 67 | AF85: 92.79 | AG85: 10 | AH85: 25 | AI85: 67 | AJ85: 67 | AK85: 67 | AL85: 67 | AM85: 335.49 | AN85: 5688.920245 | AO85: 1896.306748 | AU85: 208.5937423 | AV85: 28.44460123 | AW85: 113.7784049 | AX85: 753.3067485 | AY85: =INDEX(Закупка!A:A,MATCH(A85,Закупка!F:F,0)) -> 900 | AZ85: 243 | BA85: 0.27 | BB85: 0.1281438249
A86: sonia_362_7200_T5012 | B86: 981272282 | C86: Конструктор Гоночная машина T5012 | D86: Готов к продаже | E86: да | F86: 7.9 | G86: OZN981272282 | H86: 40553 | I86: 12296 | J86: 70 | K86: 28257 | L86: 12296 | M86: 70 | N86: 28257 | O86: Не облагается | R86: НЕТ | S86: 0 | T86: 11280 | U86: 0 | V86: https://market.yandex.ru/product--/1770737867/?sku=101824202648 | X86: Невыгодный | Y86: 0 | Z86: 1.08 | AA86: 0 | AB86: 11 | AC86: 164.77 | AD86: 185 | AE86: 185 | AF86: 500 | AG86: 10 | AH86: 25 | AI86: 185 | AJ86: 185 | AK86: 185 | AL86: 185 | AM86: 2155.7 | AN86: 41214.84663 | AO86: 13738.28221 | AU86: 1511.211043 | AV86: 206.0742331 | AW86: 824.2969325 | AX86: 4882.282209 | AY86: =INDEX(Закупка!A:A,MATCH(A86,Закупка!F:F,0)) -> 7200 | AZ86: 1656 | BA86: 0.23 | BB86: 0.1205390874
A87: sonia_364_2000_11035 | B87: 980496690 | C87: Конструктор Фриендс Курорт Хартлейк-Сити | D87: Готов к продаже | E87: да | F87: 5.2 | G87: OZN980496690 | H87: 14038 | I87: 4447 | J87: 69 | K87: 9591 | L87: 4447 | M87: 69 | N87: 9591 | O87: Не облагается | R87: НЕТ | S87: 0 | T87: 0 | U87: 0 | Y87: 0 | Z87: 0 | AA87: 0 | AB87: 11 | AC87: 59.59 | AD87: 135 | AE87: 135 | AF87: 244.59 | AG87: 10 | AH87: 25 | AI87: 135 | AJ87: 135 | AK87: 135 | AL87: 135 | AM87: 868.29 | AN87: 14824.38037 | AO87: 4941.460123 | AU87: 543.5606135 | AV87: 74.12190184 | AW87: 296.4876074 | AX87: 1917.460123 | AY87: =INDEX(Закупка!A:A,MATCH(A87,Закупка!F:F,0)) -> 2400 | AZ87: 624 | BA87: 0.26 | BB87: 0.1262784652
A88: sonia_365_1400_LX.A463 | B88: 980493439 | C88: Конструктор Френдс Дом Дружбы LX.A463 | D88: Готов к продаже | E88: да | F88: 3.3 | G88: OZN980493439 | H88: 8252 | I88: 2632 | J88: 69 | K88: 5620 | L88: 2632 | M88: 69 | N88: 5620 | O88: Не облагается | R88: НЕТ | S88: 0 | T88: 0 | U88: 0 | Y88: 0 | Z88: 0 | AA88: 0 | AB88: 11 | AC88: 35.27 | AD88: 100 | AE88: 100 | AF88: 144.76 | AG88: 10 | AH88: 25 | AI88: 100 | AJ88: 100 | AK88: 100 | AL88: 100 | AM88: 522.46 | AN88: 8836.04908 | AO88: 2945.349693 | AU88: 323.9884663 | AV88: 44.1802454 | AW88: 176.7209816 | AX88: 1167.349693 | AY88: =INDEX(Закупка!A:A,MATCH(A88,Закупка!F:F,0)) -> 1400 | AZ88: 378 | BA88: 0.27 | BB88: 0.1283379019
A89: sonia_366_1150_3020 | B89: 980498941 | C89: Конструктор Френдс Дом Мии | D89: Готов к продаже | E89: да | F89: 4 | G89: OZN980498941 | H89: 4600 | I89: 2629 | J89: 43 | K89: 1971 | L89: 2629 | M89: 43 | N89: 1971 | O89: Не облагается | R89: НЕТ | S89: 0 | T89: 0 | U89: 0 | Y89: 0 | Z89: 0 | AA89: 0 | AB89: 11 | AC89: 35.23 | AD89: 120 | AE89: 120 | AF89: 144.6 | AG89: 10 | AH89: 25 | AI89: 120 | AJ89: 120 | AK89: 120 | AL89: 120 | AM89: 522.3 | AN89: 8909.079755 | AO89: 2969.693252 | AU89: 326.6662577 | AV89: 44.54539877 | AW89: 178.1815951 | AX89: 1191.693252 | AY89: =INDEX(Закупка!A:A,MATCH(A89,Закупка!F:F,0)) -> 1400 | AZ89: 378 | BA89: 0.27 | BB89: 0.1272858737
A90: sonia_367_1750_11204 | B90: 980493429 | C90: Конструктор Friends Френдс Дом Мии | D90: Готов к продаже | E90: да | F90: 3.5 | G90: OZN980493429 | H90: 11097 | I90: 3515 | J90: 69 | K90: 7582 | L90: 3515 | M90: 69 | N90: 7582 | O90: Не облагается | R90: НЕТ | S90: 0 | T90: 0 | U90: 0 | Y90: 0 | Z90: 0 | AA90: 0 | AB90: 11 | AC90: 47.1 | AD90: 100 | AE90: 100 | AF90: 193.33 | AG90: 10 | AH90: 25 | AI90: 100 | AJ90: 100 | AK90: 100 | AL90: 100 | AM90: 687.03 | AN90: 11709.31288 | AO90: 3903.104294 | AU90: 429.3414724 | AV90: 58.54656442 | AW90: 234.1862577 | AX90: 1509.104294 | AY90: =INDEX(Закупка!A:A,MATCH(A90,Закупка!F:F,0)) -> 1900 | AZ90: 494 | BA90: 0.26 | BB90: 0.1265659236
A91: sonia_368_1600_10612 | B91: 981269566 | C91: Конструктор Friends Дом Стефани 10612 | D91: Готов к продаже | E91: да | F91: 2.4 | G91: OZN981269566 | H91: 9346 | I91: 2960 | J91: 69 | K91: 6386 | L91: 2960 | M91: 69 | N91: 6386 | O91: Не облагается | R91: НЕТ | S91: 0 | T91: 2343 | U91: 0 | V91: https://market.yandex.ru/product--/101777285153/?sku=101777285153 | X91: Невыгодный | Y91: 0 | Z91: 1.21 | AA91: 0 | AB91: 11 | AC91: 39.66 | AD91: 79 | AE91: 79 | AF91: 162.8 | AG91: 10 | AH91: 25 | AI91: 79 | AJ91: 79 | AK91: 79 | AL91: 79 | AM91: 578.5 | AN91: 9841.104294 | AO91: 3280.368098 | AU91: 360.8404908 | AV91: 49.20552147 | AW91: 196.8220859 | AX91: 1264.368098 | AY91: =INDEX(Закупка!A:A,MATCH(A91,Закупка!F:F,0)) -> 1600 | AZ91: 416 | BA91: 0.26 | BB91: 0.1268150365
A92: sonia_369_1350_11372 | B92: 980493341 | C92: Конструктор Френдс Подружки Спасательный центр на маяке | D92: Готов к продаже | E92: да | F92: 3.2 | G92: OZN980493341 | H92: 9352 | I92: 2963 | J92: 69 | K92: 6389 | L92: 2963 | M92: 69 | N92: 6389 | O92: Не облагается | R92: НЕТ | S92: 0 | T92: 0 | U92: 0 | Y92: 0 | Z92: 0 | AA92: 0 | AB92: 11 | AC92: 39.7 | AD92: 100 | AE92: 100 | AF92: 162.97 | AG92: 10 | AH92: 25 | AI92: 100 | AJ92: 100 | AK92: 100 | AL92: 100 | AM92: 578.67 | AN92: 9919.030675 | AO92: 3306.343558 | AU92: 363.6977914 | AV92: 49.59515337 | AW92: 198.3806135 | AX92: 1290.343558 | AY92: =INDEX(Закупка!A:A,MATCH(A92,Закупка!F:F,0)) -> 1600 | AZ92: 416 | BA92: 0.26 | BB92: 0.1258187459
A93: sonia_37_400_3D117 | B93: 980493391 | C93: Конструктор Майнкрафт , Шерстяная ферма | D93: Готов к продаже | E93: да | F93: 0.8 | G93: OZN980493391 | H93: 1600 | I93: 736 | J93: 54 | K93: 864 | L93: 736 | M93: 54 | N93: 864 | O93: Не облагается | R93: НЕТ | S93: 0 | T93: 0 | U93: 0 | Y93: 0 | Z93: 0 | AA93: 0 | AB93: 11 | AC93: 9.86 | AD93: 47 | AE93: 47 | AF93: 40.48 | AG93: 10 | AH93: 25 | AI93: 47 | AJ93: 47 | AK93: 47 | AL93: 47 | AM93: 160.18 | AN93: 2676.736196 | AO93: 892.2453988 | AU93: 98.14699387 | AV93: 13.38368098 | AW93: 53.53472393 | AX93: 372.2453988 | AY93: =INDEX(Закупка!A:A,MATCH(A93,Закупка!F:F,0)) -> 400 | AZ93: 120 | BA93: 0.3 | BB93: 0.1344921477
A94: sonia_370_2600_3040 | B94: 980498925 | C94: Конструктор Френдс Гранд-отель 1552 деталей 3040 | D94: Готов к продаже | E94: да | F94: 5.5 | G94: OZN980498925 | H94: 15230 | I94: 4825 | J94: 69 | K94: 10405 | L94: 4825 | M94: 69 | N94: 10405 | O94: Не облагается | R94: НЕТ | S94: 0 | T94: 0 | U94: 0 | Y94: 0 | Z94: 0 | AA94: 0 | AB94: 11 | AC94: 64.66 | AD94: 135 | AE94: 135 | AF94: 265.38 | AG94: 10 | AH94: 25 | AI94: 135 | AJ94: 135 | AK94: 135 | AL94: 135 | AM94: 941.08 | AN94: 16019.92638 | AO94: 5339.97546 | AU94: 587.3973006 | AV94: 80.0996319 | AW94: 320.3985276 | AX94: 2063.97546 | AY94: =INDEX(Закупка!A:A,MATCH(A94,Закупка!F:F,0)) -> 2600 | AZ94: 676 | BA94: 0.26 | BB94: 0.1265923421
A95: sonia_372_2700_60145 | B95: 980493405 | C95: Конструктор Гранд-отель Хартлейк Сити, 60145 | D95: Готов к продаже | E95: да | F95: 3.9 | G95: OZN980493405 | H95: 15770 | I95: 4995 | J95: 69 | K95: 10775 | L95: 4995 | M95: 69 | N95: 10775 | O95: Не облагается | R95: НЕТ | S95: 0 | T95: 0 | U95: 0 | Y95: 0 | Z95: 0 | AA95: 0 | AB95: 11 | AC95: 66.93 | AD95: 100 | AE95: 100 | AF95: 274.73 | AG95: 10 | AH95: 25 | AI95: 100 | AJ95: 100 | AK95: 100 | AL95: 100 | AM95: 898.43 | AN95: 14806.4908 | AO95: 4935.496933 | AU95: 542.9046626 | AV95: 74.03245399 | AW95: 296.129816 | AX95: 1911.496933 | AY95: =INDEX(Закупка!A:A,MATCH(A95,Закупка!F:F,0)) -> 2400 | AZ95: 624 | BA95: 0.26 | BB95: 0.126431038
A96: sonia_374_2800_10563 | B96: 980496687 | C96: Конструктор Friend Парк развлечений Подарок для ребенка | D96: Готов к продаже | E96: да | F96: 4.8 | G96: OZN980496687 | H96: 14052 | I96: 4452 | J96: 69 | K96: 9600 | L96: 4452 | M96: 69 | N96: 9600 | O96: Не облагается | R96: НЕТ | S96: 0 | T96: 0 | U96: 0 | Y96: 0 | Z96: 0 | AA96: 0 | AB96: 11 | AC96: 59.66 | AD96: 120 | AE96: 120 | AF96: 244.86 | AG96: 10 | AH96: 25 | AI96: 120 | AJ96: 120 | AK96: 120 | AL96: 120 | AM96: 842.56 | AN96: 14210.65031 | AO96: 4736.883436 | AU96: 521.0571779 | AV96: 71.05325153 | AW96: 284.2130061 | AX96: 1838.883436 | AY96: =INDEX(Закупка!A:A,MATCH(A96,Закупка!F:F,0)) -> 2300 | AZ96: 598 | BA96: 0.26 | BB96: 0.1262433429
A97: sonia_373_3400_10547 | B97: 980505511 | C97: Конструктор, Friend, Гранд-отель, 1585 деталей | D97: Готов к продаже | E97: да | F97: 5.1 | G97: OZN980505511 | H97: 19669 | I97: 6268 | J97: 69 | K97: 13401 | L97: 6268 | M97: 69 | N97: 13401 | O97: Не облагается | R97: НЕТ | S97: 0 | T97: 0 | U97: 0 | Y97: 0 | Z97: 0 | AA97: 0 | AB97: 11 | AC97: 83.99 | AD97: 135 | AE97: 135 | AF97: 344.74 | AG97: 10 | AH97: 25 | AI97: 135 | AJ97: 135 | AK97: 135 | AL97: 135 | AM97: 1194.44 | AN97: 20537.81595 | AO97: 6845.93865 | AU97: 753.0532515 | AV97: 102.6890798 | AW97: 410.756319 | AX97: 2595.93865 | AY97: =INDEX(Закупка!A:A,MATCH(A97,Закупка!F:F,0)) -> 3400 | AZ97: 850 | BA97: 0.25 | BB97: 0.1241612061
A98: sonia_371_1800_3041 | B98: 980504945 | C98: Конструктор, Френдс Американские горки | D98: Готов к продаже | E98: да | F98: 4.1 | G98: OZN980504945 | H98: 10544 | I98: 3340 | J98: 69 | K98: 7204 | L98: 3340 | M98: 69 | N98: 7204 | O98: Не облагается | R98: НЕТ | S98: 0 | T98: 0 | U98: 0 | Y98: 0 | Z98: 0 | AA98: 0 | AB98: 11 | AC98: 44.76 | AD98: 120 | AE98: 120 | AF98: 183.7 | AG98: 10 | AH98: 25 | AI98: 120 | AJ98: 120 | AK98: 120 | AL98: 120 | AM98: 651.4 | AN98: 11187.97546 | AO98: 3729.325153 | AU98: 410.2257669 | AV98: 55.9398773 | AW98: 223.7595092 | AX98: 1461.325153 | AY98: =INDEX(Закупка!A:A,MATCH(A98,Закупка!F:F,0)) -> 1800 | AZ98: 468 | BA98: 0.26 | BB98: 0.1254918734
A99: sonia_375_1450_3070 | B99: 980496758 | C99: Конструктор 3 в 1 Tyrannosaurus | D99: Готов к продаже | E99: да | F99: 4 | G99: OZN980496758 | H99: 5800 | I99: 2552 | J99: 56 | K99: 3248 | L99: 2552 | M99: 56 | N99: 3248 | O99: Не облагается | R99: НЕТ | S99: 0 | T99: 0 | U99: 0 | Y99: 0 | Z99: 0 | AA99: 0 | AB99: 11 | AC99: 34.2 | AD99: 120 | AE99: 120 | AF99: 140.36 | AG99: 10 | AH99: 25 | AI99: 120 | AJ99: 120 | AK99: 120 | AL99: 120 | AM99: 531.56 | AN99: 9176.907975 | AO99: 3058.969325 | AU99: 336.4866258 | AV99: 45.88453988 | AW99: 183.5381595 | AX99: 1217.469325 | AY99: =INDEX(Закупка!A:A,MATCH(A99,Закупка!F:F,0)) -> 1450 | AZ99: 391.5 | BA99: 0.27 | BB99: 0.1279842844
A100: sonia_376_1350_3066 | B100: 980496700 | C100: Конструктор Френдс Подружки Дом Стефани Подарок девочке | D100: Готов к продаже | E100: да | F100: 3.4 | G100: OZN980496700 | H100: 7058 | I100: 2251 | J100: 69 | K100: 4807 | L100: 2251 | M100: 69 | N100: 4807 | O100: Не облагается | R100: НЕТ | S100: 0 | T100: 0 | U100: 0 | Y100: 0 | Z100: 0 | AA100: 0 | AB100: 11 | AC100: 30.16 | AD100: 100 | AE100: 100 | AF100: 123.81 | AG100: 10 | AH100: 25 | AI100: 100 | AJ100: 100 | AK100: 100 | AL100: 100 | AM100: 488.01 | AN100: 8475.496933 | AO100: 2825.165644 | AU100: 310.7682209 | AV100: 42.37748466 | AW100: 169.5099387 | AX100: 1110.665644 | AY100: =INDEX(Закупка!A:A,MATCH(A100,Закупка!F:F,0)) -> 1350 | AZ100: 364.5 | BA100: 0.27 | BB100: 0.1290189836
A101: sonia_377_1200_7009 | B101: 980493443 | C101: Конструктор Френдс, Подружки, Автобус для друзей 7009 | D101: Готов к продаже | E101: да | F101: 3.6 | G101: OZN980493443 | H101: 4800 | I101: 4800 | J101: 0 | K101: 0 | L101: 4800 | M101: 0 | N101: 0 | O101: Не облагается | R101: НЕТ | S101: 0 | T101: 0 | U101: 0 | Y101: 0 | Z101: 0 | AA101: 0 | AB101: 11 | AC101: 64.32 | AD101: 100 | AE101: 100 | AF101: 264 | AG101: 10 | AH101: 25 | AI101: 100 | AJ101: 100 | AK101: 100 | AL101: 100 | AM101: 587.7 | AN101: 8141.226994 | AO101: 2713.742331 | AU101: 298.5116564 | AV101: 40.70613497 | AW101: 162.8245399 | AX101: 1189.742331 | AY101: =INDEX(Закупка!A:A,MATCH(A101,Закупка!F:F,0)) -> 1200 | AZ101: 324 | BA101: 0.27 | BB101: 0.1193923226
A102: sonia_379_95_10600 | B102: 980498868 | C102: Конструктор Френдс Подружки Щенок Далматинец | D102: Готов к продаже | E102: да | F102: 0.4 | G102: OZN980498868 | H102: 1069 | I102: 307 | J102: 72 | K102: 762 | L102: 307 | M102: 72 | N102: 762 | O102: Не облагается | R102: НЕТ | S102: 0 | T102: 0 | U102: 0 | Y102: 0 | Z102: 0 | AA102: 0 | AB102: 11 | AC102: 4.11 | AD102: 43 | AE102: 43 | AF102: 20 | AG102: 10 | AH102: 25 | AI102: 43 | AJ102: 43 | AK102: 43 | AL102: 43 | AM102: 67.2 | AN102: 930.1840491 | AO102: 310.0613497 | AU102: 34.10674847 | AV102: 4.650920245 | AW102: 18.60368098 | AX102: 167.5613497 | AY102: =INDEX(Закупка!A:A,MATCH(A102,Закупка!F:F,0)) -> 95 | AZ102: 47.5 | BA102: 0.5 | BB102: 0.1531954887
A103: sonia_38_450_10988 | B103: 980496677 | C103: Конструктор, Майнкрафт, Арена-череп | D103: Готов к продаже | E103: да | F103: 0.7 | G103: OZN980496677 | H103: 2698 | I103: 867 | J103: 68 | K103: 1831 | L103: 867 | M103: 68 | N103: 1831 | O103: Не облагается | R103: НЕТ | S103: 0 | T103: 0 | U103: 0 | Y103: 0 | Z103: 0 | AA103: 0 | AB103: 11 | AC103: 11.62 | AD103: 45 | AE103: 45 | AF103: 47.69 | AG103: 10 | AH103: 25 | AI103: 45 | AJ103: 45 | AK103: 45 | AL103: 45 | AM103: 182.39 | AN103: 2990.392638 | AO103: 996.797546 | AU103: 109.6477301 | AV103: 14.95196319 | AW103: 59.80785276 | AX103: 411.797546 | AY103: =INDEX(Закупка!A:A,MATCH(A103,Закупка!F:F,0)) -> 450 | AZ103: 135 | BA103: 0.3 | BB103: 0.1354337203
A104: sonia_380_240_60010 | B104: 980499411 | C104: Конструктор Спасательный автомобиль ветеринарной клиники | D104: Готов к продаже | E104: да | F104: 0.5 | G104: OZN980499411 | H104: 1510 | I104: 486 | J104: 68 | K104: 1024 | L104: 486 | M104: 68 | N104: 1024 | O104: Не облагается | R104: НЕТ | S104: 0 | T104: 0 | U104: 0 | Y104: 0 | Z104: 0 | AA104: 0 | AB104: 11 | AC104: 6.51 | AD104: 43 | AE104: 43 | AF104: 26.73 | AG104: 10 | AH104: 25 | AI104: 43 | AJ104: 43 | AK104: 43 | AL104: 43 | AM104: 98.43 | AN104: 1669.067485 | AO104: 556.3558282 | AU104: 61.1991411 | AV104: 8.345337423 | AW104: 33.38134969 | AX104: 244.3558282 | AY104: =INDEX(Закупка!A:A,MATCH(A104,Закупка!F:F,0)) -> 240 | AZ104: 72 | BA104: 0.3 | BB104: 0.1294135809
A105: sonia_381_850_10856 | B105: 980498951 | C105: Конструктор, Френдс Арт-кафе Эммы, 384 детали | D105: Готов к продаже | E105: да | F105: 1.5 | G105: OZN980498951 | H105: 3400 | I105: 1496 | J105: 56 | K105: 1904 | L105: 1496 | M105: 56 | N105: 1904 | O105: Не облагается | R105: НЕТ | S105: 0 | T105: 0 | U105: 0 | Y105: 0 | Z105: 0 | AA105: 0 | AB105: 11 | AC105: 20.05 | AD105: 65 | AE105: 65 | AF105: 82.28 | AG105: 10 | AH105: 25 | AI105: 65 | AJ105: 65 | AK105: 65 | AL105: 65 | AM105: 311.48 | AN105: 5359.435583 | AO105: 1786.478528 | AU105: 196.512638 | AV105: 26.79717791 | AW105: 107.1887117 | AX105: 706.9785276 | AY105: =INDEX(Закупка!A:A,MATCH(A105,Закупка!F:F,0)) -> 850 | AZ105: 229.5 | BA105: 0.27 | BB105: 0.1284650201
A106: sonia_383_420_10491 | B106: 980493451 | C106: Конструктор Подружки Художественная студия Эммы,10491 | D106: Готов к продаже | E106: да | F106: 1 | G106: OZN980493451 | H106: 2550 | I106: 820 | J106: 68 | K106: 1730 | L106: 820 | M106: 68 | N106: 1730 | O106: Не облагается | R106: НЕТ | S106: 0 | T106: 0 | U106: 0 | Y106: 0 | Z106: 0 | AA106: 0 | AB106: 11 | AC106: 10.99 | AD106: 51 | AE106: 51 | AF106: 45.1 | AG106: 10 | AH106: 25 | AI106: 51 | AJ106: 51 | AK106: 51 | AL106: 51 | AM106: 170.8 | AN106: 2826.257669 | AO106: 942.0858896 | AU106: 103.6294479 | AV106: 14.13128834 | AW106: 56.52515337 | AX106: 396.0858896 | AY106: =INDEX(Закупка!A:A,MATCH(A106,Закупка!F:F,0)) -> 420 | AZ106: 126 | BA106: 0.3 | BB106: 0.1337457671
A107: sonia_385_800_10162 | B107: 980498948 | C107: Конструктор. Friend,Кафе в городском парке , 221 деталь | D107: Готов к продаже | E107: да | F107: 1.5 | G107: OZN980498948 | H107: 3200 | I107: 1408 | J107: 56 | K107: 1792 | L107: 1408 | M107: 56 | N107: 1792 | O107: Не облагается | R107: НЕТ | S107: 0 | T107: 0 | U107: 0 | Y107: 0 | Z107: 0 | AA107: 0 | AB107: 11 | AC107: 18.87 | AD107: 65 | AE107: 65 | AF107: 77.44 | AG107: 10 | AH107: 25 | AI107: 65 | AJ107: 65 | AK107: 65 | AL107: 65 | AM107: 293.14 | AN107: 5058.184049 | AO107: 1686.06135 | AU107: 185.4667485 | AV107: 25.29092025 | AW107: 101.163681 | AX107: 670.0613497 | AY107: =INDEX(Закупка!A:A,MATCH(A107,Закупка!F:F,0)) -> 800 | AZ107: 216 | BA107: 0.27 | BB107: 0.1281092174
A108: sonia_386_650_11378 | B108: 980496772 | C108: Конструктор Подружки Аттракцион Весёлый осьминог | D108: Готов к продаже | E108: да | F108: 1.3 | G108: OZN980496772 | H108: 3831 | I108: 1222 | J108: 69 | K108: 2609 | L108: 1222 | M108: 69 | N108: 2609 | O108: Не облагается | R108: НЕТ | S108: 0 | T108: 0 | U108: 0 | Y108: 0 | Z108: 0 | AA108: 0 | AB108: 11 | AC108: 16.37 | AD108: 61 | AE108: 61 | AF108: 67.21 | AG108: 10 | AH108: 25 | AI108: 61 | AJ108: 61 | AK108: 61 | AL108: 61 | AM108: 242.41 | AN108: 4155.496933 | AO108: 1385.165644 | AU108: 152.3682209 | AV108: 20.77748466 | AW108: 83.10993865 | AX108: 559.6656442 | AY108: =INDEX(Закупка!A:A,MATCH(A108,Закупка!F:F,0)) -> 650 | AZ108: 175.5 | BA108: 0.27 | BB108: 0.1266996483
A109: sonia_388_780_60118 | B109: 980496857 | C109: Конструктор, Френдс, Подружки, Парк Хартлейк Сити | D109: Готов к продаже | E109: да | F109: 1.6 | G109: OZN980496857 | H109: 4584 | I109: 1462 | J109: 69 | K109: 3122 | L109: 1462 | M109: 69 | N109: 3122 | O109: Не облагается | R109: НЕТ | S109: 0 | T109: 0 | U109: 0 | Y109: 0 | Z109: 0 | AA109: 0 | AB109: 11 | AC109: 19.59 | AD109: 67 | AE109: 67 | AF109: 80.41 | AG109: 10 | AH109: 25 | AI109: 67 | AJ109: 67 | AK109: 67 | AL109: 67 | AM109: 290.71 | AN109: 4963.104294 | AO109: 1654.368098 | AU109: 181.9804908 | AV109: 24.81552147 | AW109: 99.26208589 | AX109: 663.7680982 | AY109: =INDEX(Закупка!A:A,MATCH(A109,Закупка!F:F,0)) -> 780 | AZ109: 210.6 | BA109: 0.27 | BB109: 0.1272993599
A110: sonia_389_1200_10690 | B110: 980498871 | C110: Конструктор, Супер Герои девочки, Фабрика Криптонитов | D110: Готов к продаже | E110: да | F110: 2.1 | G110: OZN980498871 | H110: 7053 | I110: 2250 | J110: 69 | K110: 4803 | L110: 2250 | M110: 69 | N110: 4803 | O110: Не облагается | R110: НЕТ | S110: 0 | T110: 0 | U110: 0 | Y110: 0 | Z110: 0 | AA110: 0 | AB110: 11 | AC110: 30.15 | AD110: 79 | AE110: 79 | AF110: 123.75 | AG110: 10 | AH110: 25 | AI110: 79 | AJ110: 79 | AK110: 79 | AL110: 79 | AM110: 388.05 | AN110: 6300.552147 | AO110: 2100.184049 | AU110: 231.0202454 | AV110: 31.50276074 | AW110: 126.0110429 | AX110: 855.5840491 | AY110: =INDEX(Закупка!A:A,MATCH(A110,Закупка!F:F,0)) -> 980 | AZ110: 264.6 | BA110: 0.27 | BB110: 0.125988958
A111: sonia_39_550_60155 | B111: 980498959 | C111: Конструктор. Мой Мир, Майнкрафт, Грибной дом 60155 > | D111: Готов к продаже | E111: да | F111: 1.2 | G111: OZN980498959 | H111: 2200 | I111: 990 | J111: 55 | K111: 1210 | L111: 990 | M111: 55 | N111: 1210 | O111: Не облагается | R111: НЕТ | S111: 0 | T111: 0 | U111: 0 | Y111: 0 | Z111: 0 | AA111: 0 | AB111: 11 | AC111: 13.27 | AD111: 57 | AE111: 57 | AF111: 54.45 | AG111: 10 | AH111: 25 | AI111: 57 | AJ111: 57 | AK111: 57 | AL111: 57 | AM111: 219.15 | AN111: 3648.404908 | AO111: 1216.134969 | AU111: 133.7748466 | AV111: 18.24202454 | AW111: 72.96809816 | AX111: 501.1349693 | AY111: =INDEX(Закупка!A:A,MATCH(A111,Закупка!F:F,0)) -> 550 | AZ111: 165 | BA111: 0.3 | BB111: 0.1356757302
A112: sonia_390_1100_10540 | B112: 980498962 | C112: Конструктор, Френдс, Подружки, Маяк Хартлейк Сити | D112: Готов к продаже | E112: да | F112: 2.2 | G112: OZN980498962 | H112: 6465 | I112: 2062 | J112: 69 | K112: 4403 | L112: 2062 | M112: 69 | N112: 4403 | O112: Не облагается | R112: НЕТ | S112: 0 | T112: 0 | U112: 0 | Y112: 0 | Z112: 0 | AA112: 0 | AB112: 11 | AC112: 27.63 | AD112: 79 | AE112: 79 | AF112: 113.41 | AG112: 10 | AH112: 25 | AI112: 79 | AJ112: 79 | AK112: 79 | AL112: 79 | AM112: 410.11 | AN112: 6942.736196 | AO112: 2314.245399 | AU112: 254.5669939 | AV112: 34.71368098 | AW112: 138.8547239 | AX112: 917.2453988 | AY112: =INDEX(Закупка!A:A,MATCH(A112,Закупка!F:F,0)) -> 1100 | AZ112: 297 | BA112: 0.27 | BB112: 0.128335569
A113: sonia_391_1000_10561 | B113: 980493461 | C113: Конструктор Френдс Подружки,Ветеринарная машина | D113: Готов к продаже | E113: да | F113: 1.8 | G113: OZN980493461 | H113: 4000 | I113: 1760 | J113: 56 | K113: 2240 | L113: 1760 | M113: 56 | N113: 2240 | O113: Не облагается | R113: НЕТ | S113: 0 | T113: 0 | U113: 0 | Y113: 0 | Z113: 0 | AA113: 0 | AB113: 11 | AC113: 23.58 | AD113: 70 | AE113: 70 | AF113: 96.8 | AG113: 10 | AH113: 25 | AI113: 70 | AJ113: 70 | AK113: 70 | AL113: 70 | AM113: 366.5 | AN113: 6281.595092 | AO113: 2093.865031 | AU113: 230.3251534 | AV113: 31.40797546 | AW113: 125.6319018 | AX113: 823.8650307 | AY113: =INDEX(Закупка!A:A,MATCH(A113,Закупка!F:F,0)) -> 1000 | AZ113: 270 | BA113: 0.27 | BB113: 0.1289481395
A114: sonia_392_1050_10406 | B114: 980493426 | C114: Конструктор Френдс Подружки Поп звезда: сцена | D114: Готов к продаже | E114: да | F114: 2.1 | G114: OZN980493426 | H114: 6171 | I114: 1968 | J114: 69 | K114: 4203 | L114: 1968 | M114: 69 | N114: 4203 | O114: Не облагается | R114: НЕТ | S114: 0 | T114: 0 | U114: 0 | Y114: 0 | Z114: 0 | AA114: 0 | AB114: 11 | AC114: 26.37 | AD114: 79 | AE114: 79 | AF114: 108.24 | AG114: 10 | AH114: 25 | AI114: 79 | AJ114: 79 | AK114: 79 | AL114: 79 | AM114: 391.44 | AN114: 6640.269939 | AO114: 2213.423313 | AU114: 243.4765644 | AV114: 33.20134969 | AW114: 132.8053988 | AX114: 879.9233129 | AY114: =INDEX(Закупка!A:A,MATCH(A114,Закупка!F:F,0)) -> 1050 | AZ114: 283.5 | BA114: 0.27 | BB114: 0.1280821424
A115: sonia_394_950_10857 | B115: 980493401 | C115: Конструктор .Френдс. Подружки, Спортивная арена для Стефани | D115: Готов к продаже | E115: да | F115: 2.4 | G115: OZN980493401 | H115: 3800 | I115: 1672 | J115: 56 | K115: 2128 | L115: 1672 | M115: 56 | N115: 2128 | O115: Не облагается | R115: НЕТ | S115: 0 | T115: 0 | U115: 0 | Y115: 0 | Z115: 0 | AA115: 0 | AB115: 11 | AC115: 22.4 | AD115: 79 | AE115: 79 | AF115: 91.96 | AG115: 10 | AH115: 25 | AI115: 79 | AJ115: 79 | AK115: 79 | AL115: 79 | AM115: 348.16 | AN115: 6013.472393 | AO115: 2004.490798 | AU115: 220.4939877 | AV115: 30.06736196 | AW115: 120.2694479 | AX115: 797.9907975 | AY115: =INDEX(Закупка!A:A,MATCH(A115,Закупка!F:F,0)) -> 950 | AZ115: 256.5 | BA115: 0.27 | BB115: 0.1279626728
A116: sonia_395_630_67046 | B116: 980498915 | C116: Конструктор Френдс ,Friends Домик в джунглях | D116: Готов к продаже | E116: да | F116: 1.7 | G116: OZN980498915 | H116: 3338 | I116: 1073 | J116: 68 | K116: 2265 | L116: 1073 | M116: 68 | N116: 2265 | O116: Не облагается | R116: НЕТ | S116: 0 | T116: 0 | U116: 0 | Y116: 0 | Z116: 0 | AA116: 0 | AB116: 11 | AC116: 14.38 | AD116: 69 | AE116: 69 | AF116: 59.02 | AG116: 10 | AH116: 25 | AI116: 69 | AJ116: 69 | AK116: 69 | AL116: 69 | AM116: 223.72 | AN116: 3709.398773 | AO116: 1236.466258 | AU116: 136.0112883 | AV116: 18.54699387 | AW116: 74.18797546 | AX116: 521.4662577 | AY116: =INDEX(Закупка!A:A,MATCH(A116,Закупка!F:F,0)) -> 550 | AZ116: 165 | BA116: 0.3 | BB116: 0.1334448061
A117: sonia_396_550_7010 | B117: 980499425 | C117: Конструктор,Friend,Путешествие на шаре | D117: Готов к продаже | E117: да | F117: 2.7 | G117: OZN980499425 | H117: 3377 | I117: 1086 | J117: 68 | K117: 2291 | L117: 1086 | M117: 68 | N117: 2291 | O117: Не облагается | R117: НЕТ | S117: 0 | T117: 0 | U117: 0 | Y117: 0 | Z117: 0 | AA117: 0 | AB117: 11 | AC117: 14.55 | AD117: 79 | AE117: 79 | AF117: 59.73 | AG117: 10 | AH117: 25 | AI117: 79 | AJ117: 79 | AK117: 79 | AL117: 79 | AM117: 224.43 | AN117: 3748.822086 | AO117: 1249.607362 | AU117: 137.4568098 | AV117: 18.74411043 | AW117: 74.97644172 | AX117: 534.607362 | AY117: =INDEX(Закупка!A:A,MATCH(A117,Закупка!F:F,0)) -> 550 | AZ117: 165 | BA117: 0.3 | BB117: 0.1320414756
A118: sonia_397_700_67045 | B118: 981263612 | C118: Конструктор Подружки Гранд Отель Friendships, 433 детали | D118: Готов к продаже | E118: да | F118: 2.3 | G118: OZN981263612 | H118: 4126 | I118: 1316 | J118: 69 | K118: 2810 | L118: 1316 | M118: 69 | N118: 2810 | O118: Не облагается | R118: НЕТ | S118: 0 | T118: 1237 | U118: 1403 | V118: https://wildberries.ru/catalog/118208732/detail.aspx | W118: https://wildberries.ru/catalog/81458152/detail.aspx | X118: Умеренный | Y118: 0 | Z118: 1.06 | AA118: 0.94 | AB118: 11 | AC118: 17.63 | AD118: 79 | AE118: 79 | AF118: 72.38 | AG118: 10 | AH118: 25 | AI118: 79 | AJ118: 79 | AK118: 79 | AL118: 79 | AM118: 261.08 | AN118: 4524.220859 | AO118: 1508.07362 | AU118: 165.8880982 | AV118: 22.62110429 | AW118: 90.48441718 | AX118: 619.0736196 | AY118: =INDEX(Закупка!A:A,MATCH(A118,Закупка!F:F,0)) -> 700 | AZ118: 189 | BA118: 0.27 | BB118: 0.1253254467
A119: sonia_393_850_11034 | B119: 980496720 | C119: Конструктор Подружки Шкатулка дружбы | D119: Готов к продаже | E119: да | F119: 2.5 | G119: OZN980496720 | H119: 5010 | I119: 1598 | J119: 69 | K119: 3412 | L119: 1598 | M119: 69 | N119: 3412 | O119: Не облагается | R119: НЕТ | S119: 0 | T119: 0 | U119: 0 | Y119: 0 | Z119: 0 | AA119: 0 | AB119: 11 | AC119: 21.41 | AD119: 79 | AE119: 79 | AF119: 87.89 | AG119: 10 | AH119: 25 | AI119: 79 | AJ119: 79 | AK119: 79 | AL119: 79 | AM119: 317.09 | AN119: 5431.619632 | AO119: 1810.539877 | AU119: 199.1593865 | AV119: 27.15809816 | AW119: 108.6323926 | AX119: 731.0398773 | AY119: =INDEX(Закупка!A:A,MATCH(A119,Закупка!F:F,0)) -> 850 | AZ119: 229.5 | BA119: 0.27 | BB119: 0.1267577715
A120: sonia_399_400_10646 | B120: 980499434 | C120: Конструктор Город Рыболовный катер 10646 (60147) 160 дет | D120: Готов к продаже | E120: да | F120: 0.8 | G120: OZN980499434 | H120: 2418 | I120: 777 | J120: 68 | K120: 1641 | L120: 777 | M120: 68 | N120: 1641 | O120: Не облагается | R120: НЕТ | S120: 0 | T120: 0 | U120: 0 | Y120: 0 | Z120: 0 | AA120: 0 | AB120: 11 | AC120: 10.41 | AD120: 47 | AE120: 47 | AF120: 42.74 | AG120: 10 | AH120: 25 | AI120: 47 | AJ120: 47 | AK120: 47 | AL120: 47 | AM120: 162.44 | AN120: 2685.055215 | AO120: 895.0184049 | AU120: 98.45202454 | AV120: 13.42527607 | AW120: 53.70110429 | AX120: 375.0184049 | AY120: =INDEX(Закупка!A:A,MATCH(A120,Закупка!F:F,0)) -> 400 | AZ120: 120 | BA120: 0.3 | BB120: 0.1340754551
A121: sonia_398_400_11221 | B121: 980496688 | C121: Конструктор Сити Яхта для дайвинга | D121: Готов к продаже | E121: да | F121: 0.8 | G121: OZN980496688 | H121: 1600 | I121: 736 | J121: 54 | K121: 864 | L121: 736 | M121: 54 | N121: 864 | O121: Не облагается | R121: НЕТ | S121: 0 | T121: 0 | U121: 0 | Y121: 0 | Z121: 0 | AA121: 0 | AB121: 11 | AC121: 9.86 | AD121: 47 | AE121: 47 | AF121: 40.48 | AG121: 10 | AH121: 25 | AI121: 47 | AJ121: 47 | AK121: 47 | AL121: 47 | AM121: 160.18 | AN121: 2676.736196 | AO121: 892.2453988 | AU121: 98.14699387 | AV121: 13.38368098 | AW121: 53.53472393 | AX121: 372.2453988 | AY121: =INDEX(Закупка!A:A,MATCH(A121,Закупка!F:F,0)) -> 400 | AZ121: 120 | BA121: 0.3 | BB121: 0.1344921477
A122: sonia_40_700_60157 | B122: 980496740 | C122: Конструктор. Мой Мир, Майнкрафт, Кроличье ранчо | D122: Готов к продаже | E122: да | F122: 1 | G122: OZN980496740 | H122: 2800 | I122: 1232 | J122: 56 | K122: 1568 | L122: 1232 | M122: 56 | N122: 1568 | O122: Не облагается | R122: НЕТ | S122: 0 | T122: 0 | U122: 0 | Y122: 0 | Z122: 0 | AA122: 0 | AB122: 11 | AC122: 16.51 | AD122: 51 | AE122: 51 | AF122: 67.76 | AG122: 10 | AH122: 25 | AI122: 51 | AJ122: 51 | AK122: 51 | AL122: 51 | AM122: 256.46 | AN122: 4404.147239 | AO122: 1468.04908 | AU122: 161.4853988 | AV122: 22.0207362 | AW122: 88.08294479 | AX122: 579.0490798 | AY122: =INDEX(Закупка!A:A,MATCH(A122,Закупка!F:F,0)) -> 700 | AZ122: 189 | BA122: 0.27 | BB122: 0.1287422898
A123: sonia_4_750_LB616 | B123: 980499421 | C123: Конструктор, Майнкрафт, Сражение за огненную крепость | D123: Готов к продаже | E123: да | F123: 2.6 | G123: OZN980499421 | H123: 4014 | I123: 1281 | J123: 69 | K123: 2733 | L123: 1281 | M123: 69 | N123: 2733 | O123: Не облагается | R123: НЕТ | S123: 0 | T123: 0 | U123: 0 | Y123: 0 | Z123: 0 | AA123: 0 | AB123: 11 | AC123: 17.17 | AD123: 79 | AE123: 79 | AF123: 70.46 | AG123: 10 | AH123: 25 | AI123: 79 | AJ123: 79 | AK123: 79 | AL123: 79 | AM123: 253.76 | AN123: 4403.779141 | AO123: 1467.92638 | AU123: 161.4719018 | AV123: 22.01889571 | AW123: 88.07558282 | AX123: 604.3263804 | AY123: =INDEX(Закупка!A:A,MATCH(A123,Закупка!F:F,0)) -> 680 | AZ123: 183.6 | BA123: 0.27 | BB123: 0.1250743923
A124: sonia_401_400_11383 | B124: 980498881 | C124: Конструктор,Космос, Тест-драйв вездехода, | D124: Готов к продаже | E124: да | F124: 0.9 | G124: OZN980498881 | H124: 1600 | I124: 736 | J124: 54 | K124: 864 | L124: 736 | M124: 54 | N124: 864 | O124: Не облагается | R124: НЕТ | S124: 0 | T124: 0 | U124: 0 | Y124: 0 | Z124: 0 | AA124: 0 | AB124: 11 | AC124: 9.86 | AD124: 49 | AE124: 49 | AF124: 40.48 | AG124: 10 | AH124: 25 | AI124: 49 | AJ124: 49 | AK124: 49 | AL124: 49 | AM124: 160.18 | AN124: 2684.09816 | AO124: 894.6993865 | AU124: 98.41693252 | AV124: 13.4204908 | AW124: 53.68196319 | AX124: 374.6993865 | AY124: =INDEX(Закупка!A:A,MATCH(A124,Закупка!F:F,0)) -> 400 | AZ124: 120 | BA124: 0.3 | BB124: 0.1341232617
A125: sonia_402_400_11207 | B125: 980496763 | C125: Конструктор, Воздушная полиция:погоня дронов | D125: Готов к продаже | E125: да | F125: 0.9 | G125: OZN980496763 | H125: 2425 | I125: 780 | J125: 68 | K125: 1645 | L125: 780 | M125: 68 | N125: 1645 | O125: Не облагается | R125: НЕТ | S125: 0 | T125: 0 | U125: 0 | Y125: 0 | Z125: 0 | AA125: 0 | AB125: 11 | AC125: 10.45 | AD125: 49 | AE125: 49 | AF125: 42.9 | AG125: 10 | AH125: 25 | AI125: 49 | AJ125: 49 | AK125: 49 | AL125: 49 | AM125: 162.6 | AN125: 2693.006135 | AO125: 897.6687117 | AU125: 98.74355828 | AV125: 13.46503067 | AW125: 53.8601227 | AX125: 377.6687117 | AY125: =INDEX(Закупка!A:A,MATCH(A125,Закупка!F:F,0)) -> 400 | AZ125: 120 | BA125: 0.3 | BB125: 0.1336796063
A126: sonia_405_400_11619 | B126: 980496760 | C126: Конструктор, City,Полицейская погоня за бурильщиком | D126: Готов к продаже | E126: да | F126: 0.9 | G126: OZN980496760 | H126: 2425 | I126: 780 | J126: 68 | K126: 1645 | L126: 780 | M126: 68 | N126: 1645 | O126: Не облагается | R126: НЕТ | S126: 0 | T126: 0 | U126: 0 | Y126: 0 | Z126: 0 | AA126: 0 | AB126: 11 | AC126: 10.45 | AD126: 49 | AE126: 49 | AF126: 42.9 | AG126: 10 | AH126: 25 | AI126: 49 | AJ126: 49 | AK126: 49 | AL126: 49 | AM126: 162.6 | AN126: 2693.006135 | AO126: 897.6687117 | AU126: 98.74355828 | AV126: 13.46503067 | AW126: 53.8601227 | AX126: 377.6687117 | AY126: =INDEX(Закупка!A:A,MATCH(A126,Закупка!F:F,0)) -> 400 | AZ126: 120 | BA126: 0.3 | BB126: 0.1336796063
A127: sonia_406_750_11614 | B127: 980499427 | C127: Конструктор Океан: подводная лодка | D127: Готов к продаже | E127: да | F127: 1.3 | G127: OZN980499427 | H127: 3000 | I127: 1320 | J127: 56 | K127: 1680 | L127: 1320 | M127: 56 | N127: 1680 | O127: Не облагается | R127: НЕТ | S127: 0 | T127: 0 | U127: 0 | Y127: 0 | Z127: 0 | AA127: 0 | AB127: 11 | AC127: 17.69 | AD127: 61 | AE127: 61 | AF127: 72.6 | AG127: 10 | AH127: 25 | AI127: 61 | AJ127: 61 | AK127: 61 | AL127: 61 | AM127: 274.8 | AN127: 4742.208589 | AO127: 1580.736196 | AU127: 173.8809816 | AV127: 23.71104294 | AW127: 94.84417178 | AX127: 628.2361963 | AY127: =INDEX(Закупка!A:A,MATCH(A127,Закупка!F:F,0)) -> 750 | AZ127: 202.5 | BA127: 0.27 | BB127: 0.1281048669
A128: sonia_407_150_10707 | B128: 980496750 | C128: Конструктор Город Сити Багги для поездок по джунглям | D128: Готов к продаже | E128: да | F128: 0.4 | G128: OZN980496750 | H128: 1379 | I128: 392 | J128: 72 | K128: 987 | L128: 392 | M128: 72 | N128: 987 | O128: Не облагается | R128: НЕТ | S128: 0 | T128: 0 | U128: 0 | Y128: 0 | Z128: 0 | AA128: 0 | AB128: 11 | AC128: 5.25 | AD128: 43 | AE128: 43 | AF128: 21.56 | AG128: 10 | AH128: 25 | AI128: 43 | AJ128: 43 | AK128: 43 | AL128: 43 | AM128: 86.26 | AN128: 1193.595092 | AO128: 397.8650307 | AU128: 43.76515337 | AV128: 5.96797546 | AW128: 23.87190184 | AX128: 202.8650307 | AY128: =INDEX(Закупка!A:A,MATCH(A128,Закупка!F:F,0)) -> 130 | AZ128: 65 | BA128: 0.5 | BB128: 0.1633719854
A129: sonia_408_850_3728 | B129: 980493410 | C129: Конструктор Спецтехника Кран-вышка 3 в 1, 3728 | D129: Готов к продаже | E129: да | F129: 2.2 | G129: OZN980493410 | H129: 5010 | I129: 1598 | J129: 69 | K129: 3412 | L129: 1598 | M129: 69 | N129: 3412 | O129: Не облагается | R129: НЕТ | S129: 0 | T129: 0 | U129: 0 | Y129: 0 | Z129: 0 | AA129: 0 | AB129: 11 | AC129: 21.41 | AD129: 79 | AE129: 79 | AF129: 87.89 | AG129: 10 | AH129: 25 | AI129: 79 | AJ129: 79 | AK129: 79 | AL129: 79 | AM129: 317.09 | AN129: 5431.619632 | AO129: 1810.539877 | AU129: 199.1593865 | AV129: 27.15809816 | AW129: 108.6323926 | AX129: 731.0398773 | AY129: =INDEX(Закупка!A:A,MATCH(A129,Закупка!F:F,0)) -> 850 | AZ129: 229.5 | BA129: 0.27 | BB129: 0.1267577715
A130: sonia_41_650_11582 | B130: 980598840 | C130: Конструктор,My World Minecraft Заброшенная шахта,подарок | D130: Готов к продаже | E130: да | F130: 1.2 | G130: OZN980598840 | H130: 3831 | I130: 1222 | J130: 69 | K130: 2609 | L130: 1222 | M130: 69 | N130: 2609 | O130: Не облагается | R130: НЕТ | S130: 0 | T130: 0 | U130: 0 | Y130: 0 | Z130: 0 | AA130: 0 | AB130: 11 | AC130: 16.37 | AD130: 57 | AE130: 57 | AF130: 67.21 | AG130: 10 | AH130: 25 | AI130: 57 | AJ130: 57 | AK130: 57 | AL130: 57 | AM130: 242.41 | AN130: 4140.773006 | AO130: 1380.257669 | AU130: 151.8283436 | AV130: 20.70386503 | AW130: 82.81546012 | AX130: 554.7576687 | AY130: =INDEX(Закупка!A:A,MATCH(A130,Закупка!F:F,0)) -> 650 | AZ130: 175.5 | BA130: 0.27 | BB130: 0.127150172
A131: sonia_409_950_11386 | B131: 980499431 | C131: Конструктор Лунная космическая станция | D131: Готов к продаже | E131: да | F131: 2 | G131: OZN980499431 | H131: 3800 | I131: 1672 | J131: 56 | K131: 2128 | L131: 1672 | M131: 56 | N131: 2128 | O131: Не облагается | R131: НЕТ | S131: 0 | T131: 0 | U131: 0 | Y131: 0 | Z131: 0 | AA131: 0 | AB131: 11 | AC131: 22.4 | AD131: 79 | AE131: 79 | AF131: 91.96 | AG131: 10 | AH131: 25 | AI131: 79 | AJ131: 79 | AK131: 79 | AL131: 79 | AM131: 348.16 | AN131: 6013.472393 | AO131: 2004.490798 | AU131: 220.4939877 | AV131: 30.06736196 | AW131: 120.2694479 | AX131: 797.9907975 | AY131: =INDEX(Закупка!A:A,MATCH(A131,Закупка!F:F,0)) -> 950 | AZ131: 256.5 | BA131: 0.27 | BB131: 0.1279626728
A132: sonia_411_750_10639 | B132: 980496704 | C132: Конструктор Сити Вездеход для вулканов | D132: Готов к продаже | E132: да | F132: 1.7 | G132: OZN980496704 | H132: 4421 | I132: 1410 | J132: 69 | K132: 3011 | L132: 1410 | M132: 69 | N132: 3011 | O132: Не облагается | R132: НЕТ | S132: 0 | T132: 0 | U132: 0 | Y132: 0 | Z132: 0 | AA132: 0 | AB132: 11 | AC132: 18.89 | AD132: 69 | AE132: 69 | AF132: 77.55 | AG132: 10 | AH132: 25 | AI132: 69 | AJ132: 69 | AK132: 69 | AL132: 69 | AM132: 279.75 | AN132: 4789.877301 | AO132: 1596.625767 | AU132: 175.6288344 | AV132: 23.9493865 | AW132: 95.79754601 | AX132: 644.1257669 | AY132: =INDEX(Закупка!A:A,MATCH(A132,Закупка!F:F,0)) -> 750 | AZ132: 202.5 | BA132: 0.27 | BB132: 0.1268299712
A133: sonia_410_1000_11532 | B133: 980498840 | C133: Конструктор Сити Станция технического обслуживания | D133: Готов к продаже | E133: да | F133: 1.9 | G133: OZN980498840 | H133: 4000 | I133: 1760 | J133: 56 | K133: 2240 | L133: 1760 | M133: 56 | N133: 2240 | O133: Не облагается | R133: НЕТ | S133: 0 | T133: 0 | U133: 0 | Y133: 0 | Z133: 0 | AA133: 0 | AB133: 11 | AC133: 23.58 | AD133: 71 | AE133: 71 | AF133: 96.8 | AG133: 10 | AH133: 25 | AI133: 71 | AJ133: 71 | AK133: 71 | AL133: 71 | AM133: 366.5 | AN133: =AO133*3 -> 6285.276074 | AO133: 2095.092025 | AU133: 230.4601227 | AV133: 31.42638037 | AW133: 125.7055215 | AX133: 825.0920245 | AY133: =INDEX(Закупка!A:A,MATCH(A133,Закупка!F:F,0)) -> 1000 | AZ133: 270 | BA133: 0.27 | BB133: 0.1288726208
A134: sonia_412_950_10754 | B134: 980499406 | C134: Конструктор. Город, Сверхмощный спасательный вертолет | D134: Готов к продаже | E134: да | F134: 2.2 | G134: OZN980499406 | H134: 3800 | I134: 1710 | J134: 55 | K134: 2090 | L134: 1710 | M134: 55 | N134: 2090 | O134: Не облагается | R134: НЕТ | S134: 0 | T134: 0 | U134: 0 | Y134: 0 | Z134: 0 | AA134: 0 | AB134: 11 | AC134: 22.91 | AD134: 79 | AE134: 79 | AF134: 94.05 | AG134: 10 | AH134: 25 | AI134: 79 | AJ134: 79 | AK134: 79 | AL134: 79 | AM134: 350.25 | AN134: 6021.165644 | AO134: 2007.055215 | AU134: 220.7760736 | AV134: 30.10582822 | AW134: 120.4233129 | AX134: 800.5552147 | AY134: =INDEX(Закупка!A:A,MATCH(A134,Закупка!F:F,0)) -> 950 | AZ134: 256.5 | BA134: 0.27 | BB134: 0.1277991747
A135: sonia_413_800_11531 | B135: 980499444 | C135: Конструктор City Полицейский вертолетный транспорт | D135: Готов к продаже | E135: да | F135: 1.8 | G135: OZN980499444 | H135: 4587 | I135: 1463 | J135: 69 | K135: 3124 | L135: 1463 | M135: 69 | N135: 3124 | O135: Не облагается | R135: НЕТ | S135: 0 | T135: 0 | U135: 0 | Y135: 0 | Z135: 0 | AA135: 0 | AB135: 11 | AC135: 19.6 | AD135: 70 | AE135: 70 | AF135: 80.47 | AG135: 10 | AH135: 25 | AI135: 70 | AJ135: 70 | AK135: 70 | AL135: 70 | AM135: 290.77 | AN135: 4974.368098 | AO135: 1658.122699 | AU135: =AO135*AB135% -> 182.3934969 | AV135: =AO135*1.5% -> 24.87184049 | AW135: =AO135*6% -> 99.48736196 | AX135: =SUM(AL135+AM135+AU135+AV135+AW135) -> 667.5226994 | AY135: =INDEX(Закупка!A:A,MATCH(A135,Закупка!F:F,0)) -> 780 | AZ135: =AO135-AX135-AY135 -> 210.6 | BA135: =AZ135/AY135 -> 0.27 | BB135: =AZ135/AO135*100% -> 0.1270111072
A136: sonia_414_750_11213 | B136: 980501974 | C136: Конструктор, Сити Пожар в бургер кафе | D136: Готов к продаже | E136: да | F136: 1.6 | G136: OZN980501974 | H136: 4243 | I136: 1354 | J136: 69 | K136: 2889 | L136: 1354 | M136: 69 | N136: 2889 | O136: Не облагается | R136: НЕТ | S136: 0 | T136: 0 | U136: 0 | Y136: 0 | Z136: 0 | AA136: 0 | AB136: 11 | AC136: 18.14 | AD136: 67 | AE136: 67 | AF136: 74.47 | AG136: 10 | AH136: 25 | AI136: 67 | AJ136: 67 | AK136: 67 | AL136: 67 | AM136: 268.57 | AN136: 4601.116564 | AO136: 1533.705521 | AU136: 168.7076074 | AV136: 23.00558282 | AW136: 92.02233129 | AX136: 619.3055215 | AY136: =INDEX(Закупка!A:A,MATCH(A136,Закупка!F:F,0)) -> 720 | AZ136: 194.4 | BA136: 0.27 | BB136: 0.126751842
A137: sonia_415_750_10875 | B137: 980501995 | C137: Конструктор. Сити, Город, Тяжёлый бур для горных работ | D137: Готов к продаже | E137: да | F137: 2.2 | G137: OZN980501995 | H137: 3000 | I137: 1350 | J137: 55 | K137: 1650 | L137: 1350 | M137: 55 | N137: 1650 | O137: Не облагается | R137: НЕТ | S137: 0 | T137: 0 | U137: 0 | Y137: 0 | Z137: 0 | AA137: 0 | AB137: 11 | AC137: 18.09 | AD137: 79 | AE137: 79 | AF137: 74.25 | AG137: 10 | AH137: 25 | AI137: 79 | AJ137: 79 | AK137: 79 | AL137: 79 | AM137: 276.45 | AN137: 4814.539877 | AO137: 1604.846626 | AU137: 176.5331288 | AV137: 24.07269939 | AW137: 96.29079755 | AX137: 652.3466258 | AY137: =INDEX(Закупка!A:A,MATCH(A137,Закупка!F:F,0)) -> 750 | AZ137: 202.5 | BA137: 0.27 | BB137: 0.1261802821
A138: sonia_417_600_10829 | B138: 980499518 | C138: Конструктор Cities Пожарная команда быстрого реагирования | D138: Готов к продаже | E138: да | F138: 1.1 | G138: OZN980499518 | H138: 3415 | I138: 1089 | J138: 69 | K138: 2326 | L138: 1089 | M138: 69 | N138: 2326 | O138: Не облагается | R138: НЕТ | S138: 0 | T138: 0 | U138: 0 | Y138: 0 | Z138: 0 | AA138: 0 | AB138: 11 | AC138: 14.59 | AD138: 55 | AE138: 55 | AF138: 59.9 | AG138: 10 | AH138: 25 | AI138: 55 | AJ138: 55 | AK138: 55 | AL138: 55 | AM138: 216.2 | AN138: 3709.693252 | AO138: 1236.564417 | AU138: 136.0220859 | AV138: 18.54846626 | AW138: 74.19386503 | AX138: 499.9644172 | AY138: =INDEX(Закупка!A:A,MATCH(A138,Закупка!F:F,0)) -> 580 | AZ138: 156.6 | BA138: 0.27 | BB138: 0.1266411987
A139: sonia_416_750_10710 | B139: 980499449 | C139: Конструктор CityМиссия: Исследование джунглей 397 деталей | D139: Готов к продаже | E139: да | F139: 1.6 | G139: OZN980499449 | H139: 5755 | I139: 1835 | J139: 69 | K139: 3920 | L139: 1835 | M139: 69 | N139: 3920 | O139: Не облагается | R139: НЕТ | S139: 0 | T139: 0 | U139: 0 | Y139: 0 | Z139: 0 | AA139: 0 | AB139: 11 | AC139: 24.59 | AD139: 67 | AE139: 67 | AF139: 100.93 | AG139: 10 | AH139: 25 | AI139: 67 | AJ139: 67 | AK139: 67 | AL139: 67 | AM139: 365.23 | AN139: 6172.380368 | AO139: 2057.460123 | AU139: 226.3206135 | AV139: 30.86190184 | AW139: 123.4476074 | AX139: 812.8601227 | AY139: =INDEX(Закупка!A:A,MATCH(A139,Закупка!F:F,0)) -> 980 | AZ139: 264.6 | BA139: 0.27 | BB139: 0.1286051657
A140: sonia_419_750_60067 | B140: 980499438 | C140: Конструктор Сити Автовоз 354 детали 60067 | D140: Готов к продаже | E140: да | F140: 1.7 | G140: OZN980499438 | H140: 4421 | I140: 1410 | J140: 69 | K140: 3011 | L140: 1410 | M140: 69 | N140: 3011 | O140: Не облагается | R140: НЕТ | S140: 0 | T140: 0 | U140: 0 | Y140: 0 | Z140: 0 | AA140: 0 | AB140: 11 | AC140: 18.89 | AD140: 69 | AE140: 69 | AF140: 77.55 | AG140: 10 | AH140: 25 | AI140: 69 | AJ140: 69 | AK140: 69 | AL140: 69 | AM140: 279.75 | AN140: 4789.877301 | AO140: 1596.625767 | AU140: 175.6288344 | AV140: 23.9493865 | AW140: 95.79754601 | AX140: 644.1257669 | AY140: =INDEX(Закупка!A:A,MATCH(A140,Закупка!F:F,0)) -> 750 | AZ140: 202.5 | BA140: 0.27 | BB140: 0.1268299712
A141: sonia_418_850_11214 | B141: 980493449 | C141: Конструктор. Сити, Город, Пожарный самолёт | D141: Готов к продаже | E141: да | F141: 1.8 | G141: OZN980493449 | H141: 3400 | I141: 3400 | J141: 0 | K141: 0 | L141: 3400 | M141: 0 | N141: 0 | O141: Не облагается | R141: НЕТ | S141: 0 | T141: 0 | U141: 0 | Y141: 0 | Z141: 0 | AA141: 0 | AB141: 11 | AC141: 45.56 | AD141: 70 | AE141: 70 | AF141: 187 | AG141: 10 | AH141: 25 | AI141: 70 | AJ141: 70 | AK141: 70 | AL141: 70 | AM141: 416.2 | AN141: 5763.312883 | AO141: 1921.104294 | AU141: 211.3214724 | AV141: 28.81656442 | AW141: 115.2662577 | AX141: 841.6042945 | AY141: =INDEX(Закупка!A:A,MATCH(A141,Закупка!F:F,0)) -> 850 | AZ141: 229.5 | BA141: 0.27 | BB141: 0.1194625407
A142: sonia_42_550_10468 | B142: 980499535 | C142: Конструктор. Мой Мор. Майнкрафт, Железный голем 10468 > | D142: Готов к продаже | E142: да | F142: 2 | G142: OZN980499535 | H142: 2200 | I142: 990 | J142: 55 | K142: 1210 | L142: 990 | M142: 55 | N142: 1210 | O142: Не облагается | R142: НЕТ | S142: 0 | T142: 0 | U142: 0 | Y142: 0 | Z142: 0 | AA142: 0 | AB142: 11 | AC142: 13.27 | AD142: 79 | AE142: 79 | AF142: 54.45 | AG142: 10 | AH142: 25 | AI142: 79 | AJ142: 79 | AK142: 79 | AL142: 79 | AM142: 195.15 | AN142: 3258.220859 | AO142: 1086.07362 | AU142: 119.4680982 | AV142: 16.29110429 | AW142: 65.16441718 | AX142: 475.0736196 | AY142: =INDEX(Закупка!A:A,MATCH(A142,Закупка!F:F,0)) -> 470 | AZ142: 141 | BA142: 0.3 | BB142: 0.1298254533
A143: sonia_421_550_10752 | B143: 980499461 | C143: Конструктор, Операция по спасению, 206 деталей | D143: Готов к продаже | E143: да | F143: 1.3 | G143: OZN980499461 | H143: 3146 | I143: 1011 | J143: 68 | K143: 2135 | L143: 1011 | M143: 68 | N143: 2135 | O143: Не облагается | R143: НЕТ | S143: 0 | T143: 0 | U143: 0 | Y143: 0 | Z143: 0 | AA143: 0 | AB143: 11 | AC143: 13.55 | AD143: 61 | AE143: 61 | AF143: 55.61 | AG143: 10 | AH143: 25 | AI143: 61 | AJ143: 61 | AK143: 61 | AL143: 61 | AM143: 211.31 | AN143: 3490.711656 | AO143: 1163.570552 | AU143: 127.9927607 | AV143: 17.45355828 | AW143: 69.81423313 | AX143: 487.5705521 | AY143: =INDEX(Закупка!A:A,MATCH(A143,Закупка!F:F,0)) -> 520 | AZ143: 156 | BA143: 0.3 | BB143: 0.1340700826
A144: sonia_420_700_10650 | B144: 980493525 | C144: Конструктор Сити Город Грузовик для перевозки драгстера | D144: Готов к продаже | E144: да | F144: 1.8 | G144: OZN980493525 | H144: 4995 | I144: 1593 | J144: 69 | K144: 3402 | L144: 1593 | M144: 69 | N144: 3402 | O144: Не облагается | R144: НЕТ | S144: 0 | T144: 0 | U144: 0 | Y144: 0 | Z144: 0 | AA144: 0 | AB144: 11 | AC144: 21.35 | AD144: 70 | AE144: 70 | AF144: 87.62 | AG144: 10 | AH144: 25 | AI144: 70 | AJ144: 70 | AK144: 70 | AL144: 70 | AM144: 316.82 | AN144: 5397.496933 | AO144: 1799.165644 | AU144: 197.9082209 | AV144: 26.98748466 | AW144: 107.9499387 | AX144: 719.6656442 | AY144: =INDEX(Закупка!A:A,MATCH(A144,Закупка!F:F,0)) -> 850 | AZ144: 229.5 | BA144: 0.27 | BB144: 0.1275591276
A145: sonia_422_450_10638 | B145: 980499549 | C145: Конструктор. Сити, Город, Вулканический грузовик | D145: Готов к продаже | E145: да | F145: 1.2 | G145: OZN980499549 | H145: 1800 | I145: 828 | J145: 54 | K145: 972 | L145: 828 | M145: 54 | N145: 972 | O145: Не облагается | R145: НЕТ | S145: 0 | T145: 0 | U145: 0 | Y145: 0 | Z145: 0 | AA145: 0 | AB145: 11 | AC145: 11.1 | AD145: 57 | AE145: 57 | AF145: 45.54 | AG145: 10 | AH145: 25 | AI145: 57 | AJ145: 57 | AK145: 57 | AL145: 57 | AM145: 171.24 | AN145: 2849.96319 | AO145: 949.9877301 | AU145: 104.4986503 | AV145: 14.24981595 | AW145: 56.9992638 | AX145: 403.9877301 | AY145: =INDEX(Закупка!A:A,MATCH(A145,Закупка!F:F,0)) -> 420 | AZ145: 126 | BA145: 0.3 | BB145: 0.132633292
A146: sonia_423_350_10647 | B146: 980499414 | C146: Конструктор Urban , Внедорожник с прицепом для катамарана | D146: Готов к продаже | E146: да | F146: 1 | G146: OZN980499414 | H146: 2727 | I146: 877 | J146: 68 | K146: 1850 | L146: 877 | M146: 68 | N146: 1850 | O146: Не облагается | R146: НЕТ | S146: 0 | T146: 0 | U146: 0 | Y146: 0 | Z146: 0 | AA146: 0 | AB146: 11 | AC146: 11.75 | AD146: 51 | AE146: 51 | AF146: 48.24 | AG146: 10 | AH146: 25 | AI146: 51 | AJ146: 51 | AK146: 51 | AL146: 51 | AM146: 182.94 | AN146: 3014.503067 | AO146: 1004.834356 | AU146: 110.5317791 | AV146: 15.07251534 | AW146: 60.29006135 | AX146: 419.8343558 | AY146: =INDEX(Закупка!A:A,MATCH(A146,Закупка!F:F,0)) -> 450 | AZ146: 135 | BA146: 0.3 | BB146: 0.1343505019
A147: sonia_425_500_11222 | B147: 980499447 | C147: Конструктор City Снегоуборочная машина | D147: Готов к продаже | E147: да | F147: 0.9 | G147: OZN980499447 | H147: 2000 | I147: 900 | J147: 55 | K147: 1100 | L147: 900 | M147: 55 | N147: 1100 | O147: Не облагается | R147: НЕТ | S147: 0 | T147: 0 | U147: 0 | Y147: 0 | Z147: 0 | AA147: 0 | AB147: 11 | AC147: 12.06 | AD147: 49 | AE147: 49 | AF147: 49.5 | AG147: 10 | AH147: 25 | AI147: 49 | AJ147: 49 | AK147: 49 | AL147: 49 | AM147: 199.2 | AN147: 3306.257669 | AO147: 1102.08589 | AU147: 121.2294479 | AV147: 16.53128834 | AW147: 66.12515337 | AX147: 452.0858896 | AY147: =INDEX(Закупка!A:A,MATCH(A147,Закупка!F:F,0)) -> 500 | AZ147: 150 | BA147: 0.3 | BB147: 0.1361055444
A148: sonia_428_600_10862 | B148: 980498885 | C148: Конструктор,Cities Погоня по грунтовой дороге | D148: Готов к продаже | E148: да | F148: 1.5 | G148: OZN980498885 | H148: 2400 | I148: 1080 | J148: 55 | K148: 1320 | L148: 1080 | M148: 55 | N148: 1320 | O148: Не облагается | R148: НЕТ | S148: 0 | T148: 0 | U148: 0 | Y148: 0 | Z148: 0 | AA148: 0 | AB148: 11 | AC148: 14.47 | AD148: 65 | AE148: 65 | AF148: 59.4 | AG148: 10 | AH148: 25 | AI148: 65 | AJ148: 65 | AK148: 65 | AL148: 65 | AM148: 221.1 | AN148: 3858.03681 | AO148: 1286.01227 | AU148: 141.4613497 | AV148: 19.29018405 | AW148: 77.1607362 | AX148: 524.0122699 | AY148: =INDEX(Закупка!A:A,MATCH(A148,Закупка!F:F,0)) -> 600 | AZ148: 162 | BA148: 0.27 | BB148: 0.1259708043
A149: sonia_427_1000_10657 | B149: 980499410 | C149: Конструктор, City, Мобильный командный центр,10658 | D149: Готов к продаже | E149: да | F149: 2.1 | G149: OZN980499410 | H149: 4000 | I149: 4000 | J149: 0 | K149: 0 | L149: 4000 | M149: 0 | N149: 0 | O149: Не облагается | R149: НЕТ | S149: 0 | T149: 0 | U149: 0 | Y149: 0 | Z149: 0 | AA149: 0 | AB149: 11 | AC149: 53.6 | AD149: 79 | AE149: 79 | AF149: 220 | AG149: 10 | AH149: 25 | AI149: 79 | AJ149: 79 | AK149: 79 | AL149: 79 | AM149: 489.7 | AN149: 6768.220859 | AO149: 2256.07362 | AU149: 248.1680982 | AV149: 33.84110429 | AW149: 135.3644172 | AX149: 986.0736196 | AY149: =INDEX(Закупка!A:A,MATCH(A149,Закупка!F:F,0)) -> 1000 | AZ149: 270 | BA149: 0.27 | BB149: 0.1196769457
A150: sonia_429_500_60053 | B150: 980699623 | C150: Конструктор, Сити, Скейт-парк, Подарок ребенку | D150: Готов к продаже | E150: да | F150: 1.1 | G150: OZN980699623 | H150: 2906 | I150: 934 | J150: 68 | K150: 1972 | L150: 934 | M150: 68 | N150: 1972 | O150: Не облагается | R150: НЕТ | S150: 0 | T150: 0 | U150: 0 | Y150: 0 | Z150: 0 | AA150: 0 | AB150: 11 | AC150: 12.52 | AD150: 55 | AE150: 55 | AF150: 51.37 | AG150: 10 | AH150: 25 | AI150: 55 | AJ150: 55 | AK150: 55 | AL150: 55 | AM150: 195.07 | AN150: 3217.435583 | AO150: 1072.478528 | AU150: 117.972638 | AV150: 16.08717791 | AW150: 64.34871166 | AX150: 448.4785276 | AY150: =INDEX(Закупка!A:A,MATCH(A150,Закупка!F:F,0)) -> 480 | AZ150: 144 | BA150: 0.3 | BB150: 0.1342684224
A151: sonia_43_750_11138 | B151: 980498900 | C151: Конструктор, Майнкрафт Битва за сокровища | D151: Готов к продаже | E151: да | F151: 1 | G151: OZN980498900 | H151: 4408 | I151: 1406 | J151: 69 | K151: 3002 | L151: 1406 | M151: 69 | N151: 3002 | O151: Не облагается | R151: НЕТ | S151: 0 | T151: 0 | U151: 0 | Y151: 0 | Z151: 0 | AA151: 0 | AB151: 11 | AC151: 18.84 | AD151: 51 | AE151: 51 | AF151: 77.33 | AG151: 10 | AH151: 25 | AI151: 51 | AJ151: 51 | AK151: 51 | AL151: 51 | AM151: 279.53 | AN151: 4722.809816 | AO151: 1574.269939 | AU151: 173.1696933 | AV151: 23.61404908 | AW151: 94.45619632 | AX151: 621.7699387 | AY151: =INDEX(Закупка!A:A,MATCH(A151,Закупка!F:F,0)) -> 750 | AZ151: 202.5 | BA151: 0.27 | BB151: 0.1286310531
A152: sonia_426_450_11390 | B152: 980499418 | C152: Конструктор Cities , Грузовик начальника пожарной охраны | D152: Готов к продаже | E152: да | F152: 0.9 | G152: OZN980499418 | H152: 2591 | I152: 833 | J152: 68 | K152: 1758 | L152: 833 | M152: 68 | N152: 1758 | O152: Не облагается | R152: НЕТ | S152: 0 | T152: 0 | U152: 0 | Y152: 0 | Z152: 0 | AA152: 0 | AB152: 11 | AC152: 11.16 | AD152: 49 | AE152: 49 | AF152: 45.82 | AG152: 10 | AH152: 25 | AI152: 49 | AJ152: 49 | AK152: 49 | AL152: 49 | AM152: 174.52 | AN152: 2880.441718 | AO152: 960.1472393 | AU152: 105.6161963 | AV152: 14.40220859 | AW152: 57.60883436 | AX152: 401.1472393 | AY152: =INDEX(Закупка!A:A,MATCH(A152,Закупка!F:F,0)) -> 430 | AZ152: 129 | BA152: 0.3 | BB152: 0.1343543935
A153: sonia_430_2400_A19099 | B153: 980499419 | C153: Конструктор. Сити, Городская больница. 964 детали, 19099 | D153: Готов к продаже | E153: да | F153: 4.2 | G153: OZN980499419 | H153: 9600 | I153: 4128 | J153: 57 | K153: 5472 | L153: 4128 | M153: 57 | N153: 5472 | O153: Не облагается | R153: НЕТ | S153: 0 | T153: 0 | U153: 0 | Y153: 0 | Z153: 0 | AA153: 0 | AB153: 11 | AC153: 55.32 | AD153: 120 | AE153: 120 | AF153: 227.04 | AG153: 10 | AH153: 25 | AI153: 120 | AJ153: 120 | AK153: 120 | AL153: 120 | AM153: 850.74 | AN153: 14704.56442 | AO153: 4901.521472 | AU153: 539.167362 | AV153: 73.52282209 | AW153: 294.0912883 | AX153: 1877.521472 | AY153: =INDEX(Закупка!A:A,MATCH(A153,Закупка!F:F,0)) -> 2400 | AZ153: 624 | BA153: 0.26 | BB153: 0.1273074092
A154: sonia_431_2200_10424 | B154: 980493524 | C154: Конструктор. Urban Участок полиции 10424 | D154: Готов к продаже | E154: да | F154: 4.2 | G154: OZN980493524 | H154: 8800 | I154: 3784 | J154: 57 | K154: 5016 | L154: 3784 | M154: 57 | N154: 5016 | O154: Не облагается | R154: НЕТ | S154: 0 | T154: 0 | U154: 0 | Y154: 0 | Z154: 0 | AA154: 0 | AB154: 11 | AC154: 50.71 | AD154: 120 | AE154: 120 | AF154: 208.12 | AG154: 10 | AH154: 25 | AI154: 120 | AJ154: 120 | AK154: 120 | AL154: 120 | AM154: 779.82 | AN154: 13515.90184 | AO154: 4505.300613 | AU154: 495.5830675 | AV154: 67.5795092 | AW154: 270.3180368 | AX154: 1733.300613 | AY154: =INDEX(Закупка!A:A,MATCH(A154,Закупка!F:F,0)) -> 2200 | AZ154: 572 | BA154: 0.26 | BB154: 0.1269615613
A155: sonia_433_2800_670002 | B155: 980498918 | C155: Конструктор, Винтовка, 1086 деталей | D155: Готов к продаже | E155: да | F155: 3.1 | G155: OZN980498918 | H155: 16355 | I155: 5180 | J155: 69 | K155: 11175 | L155: 5180 | M155: 69 | N155: 11175 | O155: Не облагается | R155: НЕТ | S155: 0 | T155: 0 | U155: 0 | Y155: 0 | Z155: 0 | AA155: 0 | AB155: 11 | AC155: 69.41 | AD155: 100 | AE155: 100 | AF155: 284.9 | AG155: 10 | AH155: 25 | AI155: 100 | AJ155: 100 | AK155: 100 | AL155: 100 | AM155: 778.6 | AN155: 12046.38037 | AO155: 4015.460123 | AU155: 441.7006135 | AV155: 60.23190184 | AW155: 240.9276074 | AX155: 1621.460123 | AY155: =INDEX(Закупка!A:A,MATCH(A155,Закупка!F:F,0)) -> 1900 | AZ155: 494 | BA155: 0.26 | BB155: 0.1230245065
A156: sonia_438_2000_10831 | B156: 980493473 | C156: Конструктор , Сити Cities , Пожарная часть | D156: Готов к продаже | E156: да | F156: 5.2 | G156: OZN980493473 | H156: 12860 | I156: 4074 | J156: 69 | K156: 8786 | L156: 4074 | M156: 69 | N156: 8786 | O156: Не облагается | R156: НЕТ | S156: 0 | T156: 0 | U156: 0 | Y156: 0 | Z156: 0 | AA156: 0 | AB156: 11 | AC156: 54.59 | AD156: 135 | AE156: 135 | AF156: 224.07 | AG156: 10 | AH156: 25 | AI156: 135 | AJ156: 135 | AK156: 135 | AL156: 135 | AM156: 795.77 | AN156: 13629.82822 | AO156: 4543.276074 | AU156: 499.7603681 | AV156: 68.1491411 | AW156: 272.5965644 | AX156: 1771.276074 | AY156: =INDEX(Закупка!A:A,MATCH(A156,Закупка!F:F,0)) -> 2200 | AZ156: 572 | BA156: 0.26 | BB156: 0.1259003395
A157: sonia_435_2400_670012 | B157: 980499494 | C157: Конструктор Снайперская винтовка 98К , 98K Sniper Rifle | D157: Готов к продаже | E157: да | F157: 4 | G157: OZN980499494 | H157: 14018 | I157: 4440 | J157: 69 | K157: 9578 | L157: 4440 | M157: 69 | N157: 9578 | O157: Не облагается | R157: НЕТ | S157: 0 | T157: 0 | U157: 0 | Y157: 0 | Z157: 0 | AA157: 0 | AB157: 11 | AC157: 59.5 | AD157: 120 | AE157: 120 | AF157: 244.2 | AG157: 10 | AH157: 25 | AI157: 120 | AJ157: 120 | AK157: 120 | AL157: 120 | AM157: 867.9 | AN157: 14767.73006 | AO157: 4922.576687 | AU157: 541.4834356 | AV157: 73.83865031 | AW157: 295.3546012 | AX157: 1898.576687 | AY157: =INDEX(Закупка!A:A,MATCH(A157,Закупка!F:F,0)) -> 2400 | AZ157: 624 | BA157: 0.26 | BB157: 0.1267628804
A158: sonia_432_1200_COGO3622 | B158: 980498857 | C158: Конструктор Пожарная станция | D158: Готов к продаже | E158: да | F158: 3.2 | G158: OZN980498857 | H158: 7073 | I158: 2256 | J158: 69 | K158: 4817 | L158: 2256 | M158: 69 | N158: 4817 | O158: Не облагается | R158: НЕТ | S158: 0 | T158: 0 | U158: 0 | Y158: 0 | Z158: 0 | AA158: 0 | AB158: 11 | AC158: 30.23 | AD158: 100 | AE158: 100 | AF158: 124.08 | AG158: 10 | AH158: 25 | AI158: 100 | AJ158: 100 | AK158: 100 | AL158: 100 | AM158: 447.78 | AN158: 7626.184049 | AO158: 2542.06135 | AU158: 279.6267485 | AV158: 38.13092025 | AW158: 152.523681 | AX158: 1018.06135 | AY158: =INDEX(Закупка!A:A,MATCH(A158,Закупка!F:F,0)) -> 1200 | AZ158: 324 | BA158: 0.27 | BB158: 0.1274556179
A159: sonia_434_3600_670001 | B159: 980493543 | C159: Конструктор Винтовка 670001 | D159: Готов к продаже | E159: да | F159: 4.6 | G159: OZN980493543 | H159: 20772 | I159: 6619 | J159: 69 | K159: 14153 | L159: 6619 | M159: 69 | N159: 14153 | O159: Не облагается | R159: НЕТ | S159: 0 | T159: 0 | U159: 0 | Y159: 0 | Z159: 0 | AA159: 0 | AB159: 11 | AC159: 88.69 | AD159: 120 | AE159: 120 | AF159: 364.05 | AG159: 10 | AH159: 25 | AI159: 120 | AJ159: 120 | AK159: 120 | AL159: 120 | AM159: 1188.75 | AN159: 20001.53374 | AO159: 6667.177914 | AU159: 733.3895706 | AV159: 100.0076687 | AW159: 400.0306748 | AX159: 2542.177914 | AY159: =INDEX(Закупка!A:A,MATCH(A159,Закупка!F:F,0)) -> 3300 | AZ159: 825 | BA159: 0.25 | BB159: 0.1237405107
A160: sonia_439_1100_60058 | B160: 981275639 | C160: Конструктор, Сити Полиция: Перевозчик вертолёта 410 деталей | D160: Готов к продаже | E160: да | F160: 2.2 | G160: OZN981275639 | H160: 4400 | I160: 1936 | J160: 56 | K160: 2464 | L160: 1936 | M160: 56 | N160: 2464 | O160: Не облагается | R160: НЕТ | S160: 0 | T160: 0 | U160: 0 | Y160: 0 | Z160: 0 | AA160: 0 | AB160: 11 | AC160: 25.94 | AD160: 79 | AE160: 79 | AF160: 106.48 | AG160: 10 | AH160: 25 | AI160: 79 | AJ160: 79 | AK160: 79 | AL160: 79 | AM160: 403.18 | AN160: 6917.226994 | AO160: 2305.742331 | AU160: 253.6316564 | AV160: 34.58613497 | AW160: 138.3445399 | AX160: 908.7423313 | AY160: =INDEX(Закупка!A:A,MATCH(A160,Закупка!F:F,0)) -> 1100 | AZ160: 297 | BA160: 0.27 | BB160: 0.1288088422
A161: sonia_44_600_10619 | B161: 980499485 | C161: Конструктор, Мой Мир, Майнкрафт, Грибной остров | D161: Готов к продаже | E161: да | F161: 1 | G161: OZN980499485 | H161: 3537 | I161: 1128 | J161: 69 | K161: 2409 | L161: 1128 | M161: 69 | N161: 2409 | O161: Не облагается | R161: НЕТ | S161: 0 | T161: 0 | U161: 0 | Y161: 0 | Z161: 0 | AA161: 0 | AB161: 11 | AC161: 15.12 | AD161: 51 | AE161: 51 | AF161: 62.04 | AG161: 10 | AH161: 25 | AI161: 51 | AJ161: 51 | AK161: 51 | AL161: 51 | AM161: 223.74 | AN161: 3816.220859 | AO161: 1272.07362 | AU161: 139.9280982 | AV161: 19.08110429 | AW161: 76.32441718 | AX161: 510.0736196 | AY161: =INDEX(Закупка!A:A,MATCH(A161,Закупка!F:F,0)) -> 600 | AZ161: 162 | BA161: 0.27 | BB161: 0.1273511199
A162: sonia_440_2200_11535 | B162: 980499474 | C162: Конструктор Сити Тюнинг-мастерская 939 деталей 11535 | D162: Готов к продаже | E162: да | F162: 4.1 | G162: OZN980499474 | H162: 8800 | I162: 3784 | J162: 57 | K162: 5016 | L162: 3784 | M162: 57 | N162: 5016 | O162: Не облагается | R162: НЕТ | S162: 0 | T162: 0 | U162: 0 | Y162: 0 | Z162: 0 | AA162: 0 | AB162: 11 | AC162: 50.71 | AD162: 120 | AE162: 120 | AF162: 208.12 | AG162: 10 | AH162: 25 | AI162: 120 | AJ162: 120 | AK162: 120 | AL162: 120 | AM162: 779.82 | AN162: 13515.90184 | AO162: 4505.300613 | AU162: 495.5830675 | AV162: 67.5795092 | AW162: 270.3180368 | AX162: 1733.300613 | AY162: =INDEX(Закупка!A:A,MATCH(A162,Закупка!F:F,0)) -> 2200 | AZ162: 572 | BA162: 0.26 | BB162: 0.1269615613
A163: sonia_441_2400_10443 | B163: 980499562 | C163: Конструктор Urban Арктический ледокол,760 деталей | D163: Готов к продаже | E163: да | F163: 4.2 | G163: OZN980499562 | H163: 9600 | I163: 4128 | J163: 57 | K163: 5472 | L163: 4128 | M163: 57 | N163: 5472 | O163: Не облагается | R163: НЕТ | S163: 0 | T163: 0 | U163: 0 | Y163: 0 | Z163: 0 | AA163: 0 | AB163: 11 | AC163: 55.32 | AD163: 120 | AE163: 120 | AF163: 227.04 | AG163: 10 | AH163: 25 | AI163: 120 | AJ163: 120 | AK163: 120 | AL163: 120 | AM163: 850.74 | AN163: 14704.56442 | AO163: 4901.521472 | AU163: 539.167362 | AV163: 73.52282209 | AW163: 294.0912883 | AX163: 1877.521472 | AY163: =INDEX(Закупка!A:A,MATCH(A163,Закупка!F:F,0)) -> 2400 | AZ163: 624 | BA163: 0.26 | BB163: 0.1273074092
A164: sonia_442_2200_6065 | B164: 980493556 | C164: Конструктор Сити Полицейский участок 894 детали 6065 | D164: Готов к продаже | E164: да | F164: 4.2 | G164: OZN980493556 | H164: 12855 | I164: 4072 | J164: 69 | K164: 8783 | L164: 4072 | M164: 69 | N164: 8783 | O164: Не облагается | R164: НЕТ | S164: 0 | T164: 0 | U164: 0 | Y164: 0 | Z164: 0 | AA164: 0 | AB164: 11 | AC164: 54.56 | AD164: 120 | AE164: 120 | AF164: 223.96 | AG164: 10 | AH164: 25 | AI164: 120 | AJ164: 120 | AK164: 120 | AL164: 120 | AM164: 795.66 | AN164: 13574.20859 | AO164: 4524.736196 | AU164: 497.7209816 | AV164: 67.87104294 | AW164: 271.4841718 | AX164: 1752.736196 | AY164: =INDEX(Закупка!A:A,MATCH(A164,Закупка!F:F,0)) -> 2200 | AZ164: 572 | BA164: 0.26 | BB164: 0.1264162097
A165: sonia_448_1200_60059 | B165: 980499492 | C165: Конструктор. Сити, Торговая улица, 567 деталей, 60059 | D165: Готов к продаже | E165: да | F165: 3.1 | G165: OZN980499492 | H165: 4800 | I165: 2112 | J165: 56 | K165: 2688 | L165: 2112 | M165: 56 | N165: 2688 | O165: Не облагается | R165: НЕТ | S165: 0 | T165: 0 | U165: 0 | Y165: 0 | Z165: 0 | AA165: 0 | AB165: 11 | AC165: 28.3 | AD165: 100 | AE165: 100 | AF165: 116.16 | AG165: 10 | AH165: 25 | AI165: 100 | AJ165: 100 | AK165: 100 | AL165: 100 | AM165: 439.86 | AN165: 7597.030675 | AO165: 2532.343558 | AU165: 278.5577914 | AV165: 37.98515337 | AW165: 151.9406135 | AX165: 1008.343558 | AY165: =INDEX(Закупка!A:A,MATCH(A165,Закупка!F:F,0)) -> 1200 | AZ165: 324 | BA165: 0.27 | BB165: 0.1279447249
A166: sonia_443_1200_3621 | B166: 980493448 | C166: Конструктор,Город, Пожарная бригажа,3621 | D166: Готов к продаже | E166: да | F166: 2.9 | G166: OZN980493448 | H166: 7053 | I166: 2250 | J166: 69 | K166: 4803 | L166: 2250 | M166: 69 | N166: 4803 | O166: Не облагается | R166: НЕТ | S166: 0 | T166: 0 | U166: 0 | Y166: 0 | Z166: 0 | AA166: 0 | AB166: 11 | AC166: 30.15 | AD166: 79 | AE166: 79 | AF166: 123.75 | AG166: 10 | AH166: 25 | AI166: 79 | AJ166: 79 | AK166: 79 | AL166: 79 | AM166: 447.45 | AN166: 7547.668712 | AO166: 2515.889571 | AU166: 276.7478528 | AV166: 37.73834356 | AW166: 150.9533742 | AX166: 991.8895706 | AY166: =INDEX(Закупка!A:A,MATCH(A166,Закупка!F:F,0)) -> 1200 | AZ166: 324 | BA166: 0.27 | BB166: 0.128781487
A167: sonia_445_1400_10423 | B167: 980498889 | C167: Конструктор UrbanВертолётный патруль 528 деталей | D167: Готов к продаже | E167: да | F167: 2.8 | G167: OZN980498889 | H167: 8228 | I167: 2624 | J167: 69 | K167: 5604 | L167: 2624 | M167: 69 | N167: 5604 | O167: Не облагается | R167: НЕТ | S167: 0 | T167: 0 | U167: 0 | Y167: 0 | Z167: 0 | AA167: 0 | AB167: 11 | AC167: 35.16 | AD167: 79 | AE167: 79 | AF167: 144.32 | AG167: 10 | AH167: 25 | AI167: 79 | AJ167: 79 | AK167: 79 | AL167: 79 | AM167: 522.02 | AN167: 8757.128834 | AO167: 2919.042945 | AU167: 321.0947239 | AV167: 43.78564417 | AW167: 175.1425767 | AX167: 1141.042945 | AY167: =INDEX(Закупка!A:A,MATCH(A167,Закупка!F:F,0)) -> 1400 | AZ167: 378 | BA167: 0.27 | BB167: 0.1294944977
A168: sonia_447_3300_10642 | B168: 980499512 | C168: Конструктор Тяжелый вертолет Вулкан | D168: Готов к продаже | E168: да | F168: 5.2 | G168: OZN980499512 | H168: 13200 | I168: 5544 | J168: 58 | K168: 7656 | L168: 5544 | M168: 58 | N168: 7656 | O168: Не облагается | R168: НЕТ | S168: 0 | T168: 0 | U168: 0 | Y168: 0 | Z168: 0 | AA168: 0 | AB168: 11 | AC168: 74.29 | AD168: 135 | AE168: 135 | AF168: 304.92 | AG168: 10 | AH168: 25 | AI168: 135 | AJ168: 135 | AK168: 135 | AL168: 135 | AM168: 1129.62 | AN168: 19839.09202 | AO168: 6613.030675 | AU168: 727.4333742 | AV168: 99.19546012 | AW168: 396.7818405 | AX168: 2488.030675 | AY168: =INDEX(Закупка!A:A,MATCH(A168,Закупка!F:F,0)) -> 3300 | AZ168: 825 | BA168: 0.25 | BB168: 0.1247536932
A169: sonia_444_1900_10755 | B169: 980498895 | C169: Конструктор Сити Штаб береговой охраны | D169: Готов к продаже | E169: да | F169: 4.2 | G169: OZN980498895 | H169: 7600 | I169: 3344 | J169: 56 | K169: 4256 | L169: 3344 | M169: 56 | N169: 4256 | O169: Не облагается | R169: НЕТ | S169: 0 | T169: 0 | U169: 0 | Y169: 0 | Z169: 0 | AA169: 0 | AB169: 11 | AC169: 44.81 | AD169: 120 | AE169: 120 | AF169: 183.92 | AG169: 10 | AH169: 25 | AI169: 120 | AJ169: 120 | AK169: 120 | AL169: 120 | AM169: 677.62 | AN169: 11748.29448 | AO169: 3916.09816 | AU169: 430.7707975 | AV169: 58.74147239 | AW169: 234.9658896 | AX169: 1522.09816 | AY169: =INDEX(Закупка!A:A,MATCH(A169,Закупка!F:F,0)) -> 1900 | AZ169: 494 | BA169: 0.26 | BB169: 0.1261459698
A170: sonia_449_850_A19079 | B170: 980499436 | C170: Конструктор Город Сити Автобусная остановка | D170: Готов к продаже | E170: да | F170: 2.2 | G170: OZN980499436 | H170: 5010 | I170: 1598 | J170: 69 | K170: 3412 | L170: 1598 | M170: 69 | N170: 3412 | O170: Не облагается | R170: НЕТ | S170: 0 | T170: 0 | U170: 0 | Y170: 0 | Z170: 0 | AA170: 0 | AB170: 11 | AC170: 21.41 | AD170: 79 | AE170: 79 | AF170: 87.89 | AG170: 10 | AH170: 25 | AI170: 79 | AJ170: 79 | AK170: 79 | AL170: 79 | AM170: 317.09 | AN170: 5431.619632 | AO170: 1810.539877 | AU170: 199.1593865 | AV170: 27.15809816 | AW170: 108.6323926 | AX170: 731.0398773 | AY170: =INDEX(Закупка!A:A,MATCH(A170,Закупка!F:F,0)) -> 850 | AZ170: 229.5 | BA170: 0.27 | BB170: 0.1267577715
A171: sonia_45_700_10469 | B171: 980499505 | C171: Конструктор MY WORLD Иссушитель | D171: Готов к продаже | E171: да | F171: 0.8 | G171: OZN980499505 | H171: 4067 | I171: 1296 | J171: 69 | K171: 2771 | L171: 1296 | M171: 69 | N171: 2771 | O171: Не облагается | R171: НЕТ | S171: 0 | T171: 0 | U171: 0 | Y171: 0 | Z171: 0 | AA171: 0 | AB171: 11 | AC171: 17.37 | AD171: 47 | AE171: 47 | AF171: 71.28 | AG171: 10 | AH171: 25 | AI171: 47 | AJ171: 47 | AK171: 47 | AL171: 47 | AM171: 259.98 | AN171: 4402.380368 | AO171: 1467.460123 | AU171: 161.4206135 | AV171: 22.01190184 | AW171: 88.04760736 | AX171: 578.4601227 | AY171: =INDEX(Закупка!A:A,MATCH(A171,Закупка!F:F,0)) -> 700 | AZ171: 189 | BA171: 0.27 | BB171: 0.1287939598
A172: sonia_452_1400_672001 | B172: 980493459 | C172: Конструктор Мотоцикл Chic Block, 672001 | D172: Готов к продаже | E172: да | F172: 2.5 | G172: OZN980493459 | H172: 8228 | I172: 2624 | J172: 69 | K172: 5604 | L172: 2624 | M172: 69 | N172: 5604 | O172: Не облагается | R172: НЕТ | S172: 0 | T172: 0 | U172: 0 | Y172: 0 | Z172: 0 | AA172: 0 | AB172: 11 | AC172: 35.16 | AD172: 79 | AE172: 79 | AF172: 144.32 | AG172: 10 | AH172: 25 | AI172: 79 | AJ172: 79 | AK172: 79 | AL172: 79 | AM172: 522.02 | AN172: 8757.128834 | AO172: 2919.042945 | AU172: 321.0947239 | AV172: 43.78564417 | AW172: 175.1425767 | AX172: 1141.042945 | AY172: =INDEX(Закупка!A:A,MATCH(A172,Закупка!F:F,0)) -> 1400 | AZ172: 378 | BA172: 0.27 | BB172: 0.1294944977
A173: sonia_450_1_1800_33012 | B173: 980498977 | C173: Конструктор, Техник, BMW Ураган RR1000 33012 | D173: Готов к продаже | E173: да | F173: 3.6 | G173: OZN980498977 | H173: 10544 | I173: 3340 | J173: 69 | K173: 7204 | L173: 3340 | M173: 69 | N173: 7204 | O173: Не облагается | R173: НЕТ | S173: 0 | T173: 0 | U173: 0 | Y173: 0 | Z173: 0 | AA173: 0 | AB173: 11 | AC173: 44.76 | AD173: 100 | AE173: 100 | AF173: 183.7 | AG173: 10 | AH173: 25 | AI173: 100 | AJ173: 100 | AK173: 100 | AL173: 100 | AM173: 651.4 | AN173: 11114.35583 | AO173: 3704.785276 | AU173: 407.5263804 | AV173: 55.57177914 | AW173: 222.2871166 | AX173: 1436.785276 | AY173: =INDEX(Закупка!A:A,MATCH(A173,Закупка!F:F,0)) -> 1800 | AZ173: 468 | BA173: 0.26 | BB173: 0.1263231106
A174: sonia_451_2800_MY88013 | B174: 980498971 | C174: Конструктор Техник - Обратный трицикл , Мотоцикл трайк | D174: Готов к продаже | E174: да | F174: 3.8 | G174: OZN980498971 | H174: 16355 | I174: 5180 | J174: 69 | K174: 11175 | L174: 5180 | M174: 69 | N174: 11175 | O174: Не облагается | R174: НЕТ | S174: 0 | T174: 0 | U174: 0 | Y174: 0 | Z174: 0 | AA174: 0 | AB174: 11 | AC174: 69.41 | AD174: 100 | AE174: 100 | AF174: 284.9 | AG174: 10 | AH174: 25 | AI174: 100 | AJ174: 100 | AK174: 100 | AL174: 100 | AM174: 1012.6 | AN174: 17081.96319 | AO174: 5693.98773 | AU174: 626.3386503 | AV174: 85.40981595 | AW174: 341.6392638 | AX174: 2165.98773 | AY174: =INDEX(Закупка!A:A,MATCH(A174,Закупка!F:F,0)) -> 2800 | AZ174: 728 | BA174: 0.26 | BB174: 0.1278541568
A175: sonia_453_1400_672002 | B175: 980498978 | C175: Конструктор Мотоцикл Chic Block, 672002 | D175: Готов к продаже | E175: да | F175: 2.5 | G175: OZN980498978 | H175: 8228 | I175: 2624 | J175: 69 | K175: 5604 | L175: 2624 | M175: 69 | N175: 5604 | O175: Не облагается | R175: НЕТ | S175: 0 | T175: 0 | U175: 0 | Y175: 0 | Z175: 0 | AA175: 0 | AB175: 11 | AC175: 35.16 | AD175: 79 | AE175: 79 | AF175: 144.32 | AG175: 10 | AH175: 25 | AI175: 79 | AJ175: 79 | AK175: 79 | AL175: 79 | AM175: 522.02 | AN175: 8757.128834 | AO175: 2919.042945 | AU175: 321.0947239 | AV175: 43.78564417 | AW175: 175.1425767 | AX175: 1141.042945 | AY175: =INDEX(Закупка!A:A,MATCH(A175,Закупка!F:F,0)) -> 1400 | AZ175: 378 | BA175: 0.27 | BB175: 0.1294944977
A176: sonia_454_1400_672003 | B176: 981194526 | C176: Конструктор Мотоцикл Chic Block 672003 | D176: Готов к продаже | E176: да | F176: 2.5 | G176: OZN981194526 | H176: 5600 | I176: 2624 | J176: 54 | K176: 2976 | L176: 2624 | M176: 54 | N176: 2976 | O176: Не облагается | R176: НЕТ | S176: 0 | T176: 2240 | U176: 0 | V176: https://wildberries.ru/catalog/151576280/detail.aspx | X176: Невыгодный | Y176: 0 | Z176: 1.15 | AA176: 0 | AB176: 11 | AC176: 35.16 | AD176: 79 | AE176: 79 | AF176: 144.32 | AG176: 10 | AH176: 25 | AI176: 79 | AJ176: 79 | AK176: 79 | AL176: 79 | AM176: 522.02 | AN176: 8757.128834 | AO176: 2919.042945 | AU176: 321.0947239 | AV176: 43.78564417 | AW176: 175.1425767 | AX176: 1141.042945 | AY176: =INDEX(Закупка!A:A,MATCH(A176,Закупка!F:F,0)) -> 1400 | AZ176: 378 | BA176: 0.27 | BB176: 0.1294944977
A177: sonia_455_1600_6036 | B177: 980493446 | C177: Конструктор, Рапунцель, 6036 | D177: Готов к продаже | E177: да | F177: 3.3 | G177: OZN980493446 | H177: 6400 | I177: 6400 | J177: 0 | K177: 0 | L177: 6400 | M177: 0 | N177: 0 | O177: Не облагается | R177: НЕТ | S177: 0 | T177: 1364 | U177: 0 | V177: https://wildberries.ru/catalog/150055573/detail.aspx | X177: Невыгодный | Y177: 0 | Z177: 1.79 | AA177: 0 | AB177: 11 | AC177: 85.76 | AD177: 100 | AE177: 100 | AF177: 352 | AG177: 10 | AH177: 25 | AI177: 100 | AJ177: 100 | AK177: 100 | AL177: 100 | AM177: 767.7 | AN177: 10614.84663 | AO177: 3538.282209 | AU177: 389.2110429 | AV177: 53.07423313 | AW177: 212.2969325 | AX177: 1522.282209 | AY177: =INDEX(Закупка!A:A,MATCH(A177,Закупка!F:F,0)) -> 1600 | AZ177: 416 | BA177: 0.26 | BB177: 0.1175711759
A178: sonia_456_3200_MY88013 | B178: 980498874 | C178: Конструктор Обратный трицикл с ДУ, MY88013 | D178: Готов к продаже | E178: да | F178: 4.1 | G178: OZN980498874 | H178: 0 | I178: 12800 | J178: 0 | K178: 0 | L178: 12800 | M178: 0 | N178: 0 | O178: Не облагается | R178: НЕТ | S178: 0 | T178: 0 | U178: 0 | Y178: 0 | Z178: 0 | AA178: 0 | AB178: 11 | AC178: 171.52 | AD178: 120 | AE178: 120 | AF178: 500 | AG178: 10 | AH178: 25 | AI178: 120 | AJ178: 120 | AK178: 120 | AL178: 120 | AM178: 1299.7 | AN178: 19949.81595 | AO178: 6649.93865 | AU178: 731.4932515 | AV178: 99.74907975 | AW178: 398.996319 | AX178: 2649.93865 | AY178: 3200 | AZ178: 800 | BA178: 0.25 | BB178: 0.1203018617
A179: sonia_457_1650_T3035 | B179: 980499452 | C179: Конструктор Мотоцикл, Т3035 | D179: Готов к продаже | E179: да | F179: 3.3 | G179: OZN980499452 | H179: 9665 | I179: 3062 | J179: 69 | K179: 6603 | L179: 3062 | M179: 69 | N179: 6603 | O179: Не облагается | R179: НЕТ | S179: 0 | T179: 0 | U179: 0 | Y179: 0 | Z179: 0 | AA179: 0 | AB179: 11 | AC179: 41.03 | AD179: 100 | AE179: 100 | AF179: 168.41 | AG179: 10 | AH179: 25 | AI179: 100 | AJ179: 100 | AK179: 100 | AL179: 100 | AM179: 597.11 | AN179: 10218.80982 | AO179: 3406.269939 | AU179: 374.6896933 | AV179: 51.09404908 | AW179: 204.3761963 | AX179: 1327.269939 | AY179: =INDEX(Закупка!A:A,MATCH(A179,Закупка!F:F,0)) -> 1650 | AZ179: 429 | BA179: 0.26 | BB179: 0.1259442169
A180: sonia_459_3300_28686 | B180: 980499483 | C180: Конструктор Мотоцикл BMW, 28686 | D180: Готов к продаже | E180: да | F180: 4.1 | G180: OZN980499483 | H180: 19090 | I180: 6084 | J180: 69 | K180: 13006 | L180: 6084 | M180: 69 | N180: 13006 | O180: Не облагается | R180: НЕТ | S180: 0 | T180: 0 | U180: 0 | Y180: 0 | Z180: 0 | AA180: 0 | AB180: 11 | AC180: 81.53 | AD180: 120 | AE180: 120 | AF180: 334.62 | AG180: 10 | AH180: 25 | AI180: 120 | AJ180: 120 | AK180: 120 | AL180: 120 | AM180: 1159.32 | AN180: 19893.20245 | AO180: 6631.067485 | AU180: 729.4174233 | AV180: 99.46601227 | AW180: 397.8640491 | AX180: 2506.067485 | AY180: =INDEX(Закупка!A:A,MATCH(A180,Закупка!F:F,0)) -> 3300 | AZ180: 825 | BA180: 0.25 | BB180: 0.1244143574
A181: sonia_462_500_8107 | B181: 981202393 | C181: Конструктор, Техник, Сборный мотоцикл BMW Z1000RR | D181: Готов к продаже | E181: да | F181: 3.1 | G181: OZN981202393 | H181: 2000 | I181: 940 | J181: 53 | K181: 1060 | L181: 940 | M181: 53 | N181: 1060 | O181: Не облагается | R181: НЕТ | S181: 984 | T181: 977 | U181: 977 | V181: https://wildberries.ru/catalog/81514894/detail.aspx | W181: https://wildberries.ru/catalog/81514894/detail.aspx | X181: Выгодный | Y181: 0.96 | Z181: 0.96 | AA181: 0.96 | AB181: 11 | AC181: 12.6 | AD181: 100 | AE181: 100 | AF181: 51.7 | AG181: 10 | AH181: 25 | AI181: 100 | AJ181: 100 | AK181: 100 | AL181: 100 | AM181: 201.4 | AN181: 3502.08589 | AO181: 1167.361963 | AU181: 128.409816 | AV181: 17.51042945 | AW181: 70.04171779 | AX181: 517.3619632 | AY181: =INDEX(Закупка!A:A,MATCH(A181,Закупка!F:F,0)) -> 500 | AZ181: 150 | BA181: 0.3 | BB181: 0.1284948497
A182: sonia_460_500_8106 | B182: 980498992 | C182: Конструктор, Сборный Ямаха Yamaha R1 A синий | D182: Готов к продаже | E182: да | F182: 3.1 | G182: OZN980498992 | H182: 2000 | I182: 940 | J182: 53 | K182: 1060 | L182: 940 | M182: 53 | N182: 1060 | O182: Не облагается | R182: НЕТ | S182: 0 | T182: 0 | U182: 0 | Y182: 0 | Z182: 0 | AA182: 0 | AB182: 11 | AC182: 12.6 | AD182: 100 | AE182: 100 | AF182: 51.7 | AG182: 10 | AH182: 25 | AI182: 100 | AJ182: 100 | AK182: 100 | AL182: 100 | AM182: 201.4 | AN182: 3502.08589 | AO182: 1167.361963 | AU182: 128.409816 | AV182: 17.51042945 | AW182: 70.04171779 | AX182: 517.3619632 | AY182: =INDEX(Закупка!A:A,MATCH(A182,Закупка!F:F,0)) -> 500 | AZ182: 150 | BA182: 0.3 | BB182: 0.1284948497
A183: sonia_461_500_8103 | B183: 980498974 | C183: Конструктор, Сборный мотоцикл Suzuki GSX-R1000 8103 > | D183: Готов к продаже | E183: да | F183: 3.6 | G183: OZN980498974 | H183: 2000 | I183: 940 | J183: 53 | K183: 1060 | L183: 940 | M183: 53 | N183: 1060 | O183: Не облагается | R183: НЕТ | S183: 0 | T183: 0 | U183: 0 | Y183: 0 | Z183: 0 | AA183: 0 | AB183: 11 | AC183: 12.6 | AD183: 100 | AE183: 100 | AF183: 51.7 | AG183: 10 | AH183: 25 | AI183: 100 | AJ183: 100 | AK183: 100 | AL183: 100 | AM183: 201.4 | AN183: 3502.08589 | AO183: 1167.361963 | AU183: 128.409816 | AV183: 17.51042945 | AW183: 70.04171779 | AX183: 517.3619632 | AY183: =INDEX(Закупка!A:A,MATCH(A183,Закупка!F:F,0)) -> 500 | AZ183: 150 | BA183: 0.3 | BB183: 0.1284948497
A184: sonia_46_700_11362 | B184: 980504224 | C184: Конструктор My World Мост Ифрита | D184: Готов к продаже | E184: да | F184: 0.8 | G184: OZN980504224 | H184: 2800 | I184: 1232 | J184: 56 | K184: 1568 | L184: 1232 | M184: 56 | N184: 1568 | O184: Не облагается | R184: НЕТ | S184: 0 | T184: 0 | U184: 0 | Y184: 0 | Z184: 0 | AA184: 0 | AB184: 11 | AC184: 16.51 | AD184: 47 | AE184: 47 | AF184: 67.76 | AG184: 10 | AH184: 25 | AI184: 47 | AJ184: 47 | AK184: 47 | AL184: 47 | AM184: 256.39695 | AN184: 4389.191227 | AO184: 1463.063742 | AU184: 160.9370117 | AV184: 21.94595613 | AW184: 87.78382454 | AX184: 574.0637423 | AY184: =INDEX(Закупка!A:A,MATCH(A184,Закупка!F:F,0)) -> 700 | AZ184: 189 | BA184: 0.27 | BB184: 0.1291809745
A185: sonia_467_5100_3333D | B185: 980493454 | C185: Конструктор Спорткар, 3333D | D185: Готов к продаже | E185: да | F185: 6.4 | G185: OZN980493454 | H185: 20400 | I185: 20400 | J185: 0 | K185: 0 | L185: 20400 | M185: 0 | N185: 0 | O185: Не облагается | R185: НЕТ | S185: 0 | T185: 0 | U185: 0 | Y185: 0 | Z185: 0 | AA185: 0 | AB185: 11 | AC185: 273.36 | AD185: 160 | AE185: 160 | AF185: 500 | AG185: 10 | AH185: 25 | AI185: 160 | AJ185: 160 | AK185: 160 | AL185: 160 | AM185: 1774.7 | AN185: 30587.85276 | AO185: 10195.95092 | AU185: 1121.554601 | AV185: 152.9392638 | AW185: 611.7570552 | AX185: 3820.95092 | AY185: =INDEX(Закупка!A:A,MATCH(A185,Закупка!F:F,0)) -> 5100 | AZ185: 1275 | BA185: 0.25 | BB185: 0.1250496408
A186: sonia_468_1400_7900 | B186: 980493466 | C186: Конструктор Сити Большой грузовик и мост, 7900 | D186: Готов к продаже | E186: да | F186: 1.8 | G186: OZN980493466 | H186: 5600 | I186: 5600 | J186: 0 | K186: 0 | L186: 5600 | M186: 0 | N186: 0 | O186: Не облагается | R186: НЕТ | S186: 0 | T186: 0 | U186: 0 | Y186: 0 | Z186: 0 | AA186: 0 | AB186: 11 | AC186: 75.04 | AD186: 70 | AE186: 70 | AF186: 308 | AG186: 10 | AH186: 25 | AI186: 70 | AJ186: 70 | AK186: 70 | AL186: 70 | AM186: 685.7 | AN186: 9326.503067 | AO186: 3108.834356 | AU186: 341.9717791 | AV186: 46.63251534 | AW186: 186.5300613 | AX186: 1330.834356 | AY186: =INDEX(Закупка!A:A,MATCH(A186,Закупка!F:F,0)) -> 1400 | AZ186: 378 | BA186: 0.27 | BB186: 0.1215889805
A187: sonia_464_3600_22038 | B187: 980499442 | C187: Конструктор, Cities Городская площадь Urban 22038,Подарок | D187: Готов к продаже | E187: да | F187: 4 | G187: OZN980499442 | H187: 14400 | I187: 6048 | J187: 58 | K187: 8352 | L187: 6048 | M187: 58 | N187: 8352 | O187: Не облагается | R187: НЕТ | S187: 0 | T187: 0 | U187: 0 | Y187: 0 | Z187: 0 | AA187: 0 | AB187: 11 | AC187: 81.04 | AD187: 120 | AE187: 120 | AF187: 332.64 | AG187: 10 | AH187: 25 | AI187: 120 | AJ187: 120 | AK187: 120 | AL187: 120 | AM187: 1232.34 | AN187: 21542.35583 | AO187: 7180.785276 | AU187: 789.8863804 | AV187: 107.7117791 | AW187: 430.8471166 | AX187: 2680.785276 | AY187: =INDEX(Закупка!A:A,MATCH(A187,Закупка!F:F,0)) -> 3600 | AZ187: 900 | BA187: 0.25 | BB187: 0.1253344816
A188: sonia_466_8500_30261 | B188: 980493467 | C188: Конструктор Американские горки, 30261 | D188: Готов к продаже | E188: да | F188: 12.9 | G188: OZN980493467 | H188: 47891 | I188: 14522 | J188: 70 | K188: 33369 | L188: 14522 | M188: 70 | N188: 33369 | O188: Не облагается | R188: НЕТ | S188: 0 | T188: 0 | U188: 0 | Y188: 0 | Z188: 0 | AA188: 0 | AB188: 11 | AC188: 194.59 | AD188: 315 | AE188: 315 | AF188: 500 | AG188: 10 | AH188: 25 | AI188: 315 | AJ188: 315 | AK188: 315 | AL188: 315 | AM188: 2454.7 | AN188: 48679.8773 | AO188: 16226.62577 | AU188: 1784.928834 | AV188: 243.3993865 | AW188: 973.597546 | AX188: 5771.625767 | AY188: =INDEX(Закупка!A:A,MATCH(A188,Закупка!F:F,0)) -> 8500 | AZ188: 1955 | BA188: 0.23 | BB188: 0.1204809939
A189: sonia_463_1500_40019 | B189: 980498891 | C189: Конструктор Сити Пожарный катер | D189: Готов к продаже | E189: да | F189: 4.5 | G189: OZN980498891 | H189: 8841 | I189: 2820 | J189: 69 | K189: 6021 | L189: 2820 | M189: 69 | N189: 6021 | O189: Не облагается | R189: НЕТ | S189: 0 | T189: 0 | U189: 0 | Y189: 0 | Z189: 0 | AA189: 0 | AB189: 11 | AC189: 37.79 | AD189: 120 | AE189: 120 | AF189: 155.1 | AG189: 10 | AH189: 25 | AI189: 120 | AJ189: 120 | AK189: 120 | AL189: 120 | AM189: 559.8 | AN189: 9514.601227 | AO189: 3171.533742 | AU189: 348.8687117 | AV189: 47.57300613 | AW189: 190.2920245 | AX189: 1266.533742 | AY189: =INDEX(Закупка!A:A,MATCH(A189,Закупка!F:F,0)) -> 1500 | AZ189: 405 | BA189: 0.27 | BB189: 0.127698468
A190: sonia_469_1200_31039 | B190: 980498995 | C190: Конструктор, Техник, Криэйтор Военный Корабль Крейсер | D190: Готов к продаже | E190: да | F190: 3.7 | G190: OZN980498995 | H190: 7642 | I190: 2437 | J190: 69 | K190: 5205 | L190: 2437 | M190: 69 | N190: 5205 | O190: Не облагается | R190: НЕТ | S190: 0 | T190: 0 | U190: 0 | Y190: 0 | Z190: 0 | AA190: 0 | AB190: 11 | AC190: 32.66 | AD190: 100 | AE190: 100 | AF190: 134.04 | AG190: 10 | AH190: 25 | AI190: 100 | AJ190: 100 | AK190: 100 | AL190: 100 | AM190: 484.74 | AN190: 8229.717791 | AO190: 2743.239264 | AU190: 301.756319 | AV190: 41.14858896 | AW190: 164.5943558 | AX190: 1092.239264 | AY190: =INDEX(Закупка!A:A,MATCH(A190,Закупка!F:F,0)) -> 1300 | AZ190: 351 | BA190: 0.27 | BB190: 0.1279509245
A191: sonia_47_700_10810 | B191: 980498986 | C191: Конструктор Мой Мир Майнкрафт Пещера Зомби | D191: Готов к продаже | E191: да | F191: 0.9 | G191: OZN980498986 | H191: 3493 | I191: 1114 | J191: 69 | K191: 2379 | L191: 1114 | M191: 69 | N191: 2379 | O191: Не облагается | R191: НЕТ | S191: 0 | T191: 0 | U191: 0 | Y191: 0 | Z191: 0 | AA191: 0 | AB191: 11 | AC191: 14.93 | AD191: 49 | AE191: 49 | AF191: 61.27 | AG191: 10 | AH191: 25 | AI191: 49 | AJ191: 49 | AK191: 49 | AL191: 49 | AM191: 222.97 | AN191: 3806.02454 | AO191: 1268.674847 | AU191: 139.5542331 | AV191: 19.0301227 | AW191: 76.1204908 | AX191: 506.6748466 | AY191: =INDEX(Закупка!A:A,MATCH(A191,Закупка!F:F,0)) -> 600 | AZ191: 162 | BA191: 0.27 | BB191: 0.1276922928
A192: sonia_471_9700_20002 | B192: 980498996 | C192: Конструктор Грузовой вертолет, 20002 | D192: Готов к продаже | E192: да | F192: 5.2 | G192: OZN980498996 | H192: 38800 | I192: 15908 | J192: 59 | K192: 22892 | L192: 15908 | M192: 59 | N192: 22892 | O192: Не облагается | R192: НЕТ | S192: 0 | T192: 0 | U192: 0 | Y192: 0 | Z192: 0 | AA192: 0 | AB192: 11 | AC192: 213.17 | AD192: 135 | AE192: 135 | AF192: 500 | AG192: 10 | AH192: 25 | AI192: 135 | AJ192: 135 | AK192: 135 | AL192: 135 | AM192: 2730.7 | AN192: 54466.38037 | AO192: 18155.46012 | AU192: 1997.100613 | AV192: 272.3319018 | AW192: 1089.327607 | AX192: 6224.460123 | AY192: =INDEX(Закупка!A:A,MATCH(A192,Закупка!F:F,0)) -> 9700 | AZ192: 2231 | BA192: 0.23 | BB192: 0.1228831429
A193: sonia_470_800_6823 | B193: 980498887 | C193: Конструктор, Военная техника, Военное судно | D193: Готов к продаже | E193: да | F193: 3.3 | G193: OZN980498887 | H193: 5018 | I193: 1601 | J193: 69 | K193: 3417 | L193: 1601 | M193: 69 | N193: 3417 | O193: Не облагается | R193: НЕТ | S193: 0 | T193: 1710 | U193: 0 | V193: https://market.yandex.ru/product--/1769685666/?sku=101816891042 | X193: Выгодный | Y193: 0 | Z193: 0.94 | AA193: 0 | AB193: 11 | AC193: 21.45 | AD193: 100 | AE193: 100 | AF193: 88.06 | AG193: 10 | AH193: 25 | AI193: 100 | AJ193: 100 | AK193: 100 | AL193: 100 | AM193: 317.26 | AN193: 5509.546012 | AO193: 1836.515337 | AU193: 202.0166871 | AV193: 27.54773006 | AW193: 110.1909202 | AX193: 757.0153374 | AY193: =INDEX(Закупка!A:A,MATCH(A193,Закупка!F:F,0)) -> 850 | AZ193: 229.5 | BA193: 0.27 | BB193: 0.1249649242
A194: sonia_472_1400_XB-06055 | B194: 983427602 | C194: Конструктор Бронетранспортер Dingo ATF, XB-06055 | D194: Готов к продаже | E194: да | F194: 2.9 | G194: OZN983427602 | H194: 8228 | I194: 2624 | J194: 69 | K194: 5604 | L194: 2624 | M194: 69 | N194: 5604 | O194: Не облагается | R194: НЕТ | S194: 2456 | T194: 2128 | U194: 2691 | V194: https://wildberries.ru/catalog/140751413/detail.aspx | W194: https://wildberries.ru/catalog/66517169/detail.aspx | X194: Невыгодный | Y194: 1.06 | Z194: 1.19 | AA194: 0.98 | AB194: 11 | AC194: 35.16 | AD194: 79 | AE194: 79 | AF194: 144.32 | AG194: 10 | AH194: 25 | AI194: 79 | AJ194: 79 | AK194: 79 | AL194: 79 | AM194: 522.02 | AN194: 8757.128834 | AO194: 2919.042945 | AU194: 321.0947239 | AV194: 43.78564417 | AW194: 175.1425767 | AX194: 1141.042945 | AY194: =INDEX(Закупка!A:A,MATCH(A194,Закупка!F:F,0)) -> 1400 | AZ194: 378 | BA194: 0.27 | BB194: 0.1294944977
A195: sonia_473_1000_XB-06800 | B195: 980498956 | C195: Конструктор Медицинская бронемашина, XB-06800 | D195: Готов к продаже | E195: да | F195: 2.5 | G195: OZN980498956 | H195: 0 | I195: 4000 | J195: 0 | K195: 0 | L195: 4000 | M195: 0 | N195: 0 | O195: Не облагается | R195: НЕТ | S195: 0 | T195: 0 | U195: 0 | Y195: 0 | Z195: 0 | AA195: 0 | AB195: 11 | AC195: 53.6 | AD195: 79 | AE195: 79 | AF195: 220 | AG195: 10 | AH195: 25 | AI195: 79 | AJ195: 79 | AK195: 79 | AL195: 79 | AM195: 484.3 | AN195: 6654.846626 | AO195: 2218.282209 | AU195: 244.0110429 | AV195: 33.27423313 | AW195: 133.0969325 | AX195: 973.6822086 | AY195: =INDEX(Закупка!A:A,MATCH(A195,Закупка!F:F,0)) -> 980 | AZ195: 264.6 | BA195: 0.27 | BB195: 0.1192814868
A196: sonia_474_1000_XB-06044 | B196: 980498933 | C196: Конструктор Военный грузовик Unimog LKW 2T GL, XB-06044 | D196: Готов к продаже | E196: да | F196: 2.5 | G196: OZN980498933 | H196: 5590 | I196: 1783 | J196: 69 | K196: 3807 | L196: 1783 | M196: 69 | N196: 3807 | O196: Не облагается | R196: НЕТ | S196: 0 | T196: 0 | U196: 0 | Y196: 0 | Z196: 0 | AA196: 0 | AB196: 11 | AC196: 23.89 | AD196: 79 | AE196: 79 | AF196: 98.07 | AG196: 10 | AH196: 25 | AI196: 79 | AJ196: 79 | AK196: 79 | AL196: 79 | AM196: 354.27 | AN196: 6035.96319 | AO196: 2011.98773 | AU196: 221.3186503 | AV196: 30.17981595 | AW196: 120.7192638 | AX196: 805.4877301 | AY196: =INDEX(Закупка!A:A,MATCH(A196,Закупка!F:F,0)) -> 950 | AZ196: 256.5 | BA196: 0.27 | BB196: 0.1274858669
A197: sonia_476_1000_100100 | B197: 980498980 | C197: Конструктор Немецкий Танк Pz.Kpfw.II Ausf. L Luch, 100100 | D197: Готов к продаже | E197: да | F197: 2.5 | G197: OZN980498980 | H197: 5776 | I197: 1842 | J197: 69 | K197: 3934 | L197: 1842 | M197: 69 | N197: 3934 | O197: Не облагается | R197: НЕТ | S197: 0 | T197: 0 | U197: 0 | Y197: 0 | Z197: 0 | AA197: 0 | AB197: 11 | AC197: 24.68 | AD197: 79 | AE197: 79 | AF197: 101.31 | AG197: 10 | AH197: 25 | AI197: 79 | AJ197: 79 | AK197: 79 | AL197: 79 | AM197: 365.61 | AN197: =AO197*3 -> 6217.95092 | AO197: 2072.650307 | AU197: 227.9915337 | AV197: 31.0897546 | AW197: 124.3590184 | AX197: 828.0503067 | AY197: =INDEX(Закупка!A:A,MATCH(A197,Закупка!F:F,0)) -> 980 | AZ197: 264.6 | BA197: 0.27 | BB197: 0.1276626352
A198: sonia_475_1000_100082 | B198: 980500709 | C198: Конструктор Военная техника Легкий немецкий танк 535 деталей | D198: Готов к продаже | E198: да | F198: 2.5 | G198: OZN980500709 | H198: 5776 | I198: 1842 | J198: 69 | K198: 3934 | L198: 1842 | M198: 69 | N198: 3934 | O198: Не облагается | R198: НЕТ | S198: 0 | T198: 0 | U198: 0 | Y198: 0 | Z198: 0 | AA198: 0 | AB198: 11 | AC198: 24.68 | AD198: 79 | AE198: 79 | AF198: 101.31 | AG198: 10 | AH198: 25 | AI198: 79 | AJ198: 79 | AK198: 79 | AL198: 79 | AM198: 365.61 | AN198: 6217.95092 | AO198: 2072.650307 | AU198: 227.9915337 | AV198: 31.0897546 | AW198: 124.3590184 | AX198: 828.0503067 | AY198: =INDEX(Закупка!A:A,MATCH(A198,Закупка!F:F,0)) -> 980 | AZ198: 264.6 | BA198: 0.27 | BB198: 0.1276626352
A199: sonia_477_2600_676002 | B199: 980499010 | C199: Конструктор, Военная техника Танк Leopard 2A4 с ДУ 676002 | D199: Готов к продаже | E199: да | F199: 2.9 | G199: OZN980499010 | H199: 15156 | I199: 4800 | J199: 69 | K199: 10356 | L199: 4800 | M199: 69 | N199: 10356 | O199: Не облагается | R199: НЕТ | S199: 0 | T199: 0 | U199: 0 | Y199: 0 | Z199: 0 | AA199: 0 | AB199: 11 | AC199: 64.32 | AD199: 79 | AE199: 79 | AF199: 264 | AG199: 10 | AH199: 25 | AI199: 79 | AJ199: 79 | AK199: 79 | AL199: 79 | AM199: 939.7 | AN199: 15808.71166 | AO199: 5269.570552 | AU199: =AO199*AB199% -> 579.6527607 | AV199: =AO199*1.5% -> 79.04355828 | AW199: =AO199*6% -> 316.1742331 | AX199: =SUM(AL199+AM199+AU199+AV199+AW199) -> 1993.570552 | AY199: =INDEX(Закупка!A:A,MATCH(A199,Закупка!F:F,0)) -> 2600 | AZ199: =AO199-AX199-AY199 -> 676 | BA199: =AZ199/AY199 -> 0.26 | BB199: =AZ199/AO199*100% -> 0.1282836985
A200: sonia_479_800_98100 | B200: 980501999 | C200: Конструктор Военная техника 411 деталей | D200: Готов к продаже | E200: да | F200: 1.8 | G200: OZN980501999 | H200: 3540 | I200: 1129 | J200: 69 | K200: 2411 | L200: 1129 | M200: 69 | N200: 2411 | O200: Не облагается | R200: НЕТ | S200: 0 | T200: 0 | U200: 0 | Y200: 0 | Z200: 0 | AA200: 0 | AB200: 11 | AC200: 15.13 | AD200: 70 | AE200: 70 | AF200: 62.1 | AG200: 10 | AH200: 25 | AI200: 70 | AJ200: 70 | AK200: 70 | AL200: 70 | AM200: 223.8 | AN200: 3886.380368 | AO200: 1295.460123 | AU200: 142.5006135 | AV200: 19.43190184 | AW200: 77.72760736 | AX200: 533.4601227 | AY200: =INDEX(Закупка!A:A,MATCH(A200,Закупка!F:F,0)) -> 600 | AZ200: 162 | BA200: 0.27 | BB200: 0.1250520932
... 380 more rows

Sheet Закупка
A1: Цена | B1: Детали | C1: Артикул | F1: ИП: - Матвеева - OZON
A2: 2000 | B2: 1600 | C2: 10531 | F2: нет
A3: 3000 | B3: 1622 | C3: 10531 | F3: нет
A4: 600 | B4: 451 | C4: LB313 | F4: Nataha758_600_LB313
A5: 1400 | B5: 692 | C5: 99918 | F5: нет
A6: 1600 | B6: 851 | C6: A19070 | F6: нет
A7: 900 | B7: - | C7: 93093 | F7: нет
A8: 1050 | B8: 528 | C8: 11514 | F8: нет
A9: 900 | B9: 399 | C9: 10620 | F9: нет
A10: 900 | B10: 562 | C10: 1010 | F10: Nataha929_900_1010
A11: 2200 | B11: 1023 | C11: 66016 | F11: Nataha967_2200_66016
A12: 350 | B12: 180 | C12: 57003 | F12: Nataha22_350_57003
A13: 230 | B13: 141 | C13: 1022 | F13: Nataha1095_230_1022
A14: 450 | B14: 257 | C14: 87086 | F14: Nataha1112_500_87086
A15: 450 | B15: 297 | C15: 87085 | F15: Nataha1113_500_87085
A16: 320 | B16: 132 | C16: 611-1 | F16: Nataha213_320_611-1
A17: 1100 | B17: 868 | C17: 3012 | F17: Nataha921_1100_3012
A18: 1400 | B18: 986 | C18: 63039 | F18: Nataha322_1400_63039
A19: 2500 | B19: 1391 | C19: 99922 | F19: sonia_718_3400_99922
A20: 1100 | B20: 387 | C20: QL1252 | F20: Nataha35_1100_QL1252
A21: 800 | B21: 620 | C21: QL1258 | F21: Nataha979_800_QL1258
A22: 350 | B22: 294 | C22: 8157 | F22: Nataha981_350_8157
A23: 350 | B23: 289 | C23: 8158 | F23: Nataha982_350_8158
A24: 350 | B24: 294 | C24: 8155 | F24: Nataha983_350_8155
A25: 1200 | B25: 675 | C25: QL0450 | F25: Nataha678_1200_QL0450
A26: 320 | B26: 94 | C26: 613-1 | F26: Nataha952_320_613-1
A27: 480 | B27: 203 | C27: 11133 | F27: Nataha834_480_11133
A28: 1200 | B28: 610 | C28: QL0555 | F28: Nataha331_1200_QL0555
A29: 1100 | B29: 760 | C29: 1013-1 | F29: Nataha1160_1000_1013-1
A30: 450 | B30: 246 | C30: ZM640 | F30: нет
A31: 650 | B31: 308 | C31: 11470 | F31: нет
A32: 700 | B32: 297 | C32: 10435 | F32: нет
A33: 1700 | B33: 739 | C33: 10497 | F33: нет
A34: 400 | B34: 181 | C34: 10557 | F34: нет
A35: 1000 | B35: 415 | C35: 10925 | F35: нет
A36: 750 | B36: 378 | C36: 10924 | F36: нет
A37: 2000 | B37: 938 | C37: 11007 | F37: нет
A38: 400 | B38: 185 | C38: 11264 | F38: нет
A39: 400 | B39: 201 | C39: 1018 | F39: Nataha930_400_1018
A40: 550 | B40: 260 | C40: 11582 | F40: нет
A41: 850 | B41: 343 | C41: 10639 | F41: нет
A42: 800 | B42: 394 | C42: 10440 | F42: нет
A43: 1400 | B43: 842 | C43: LX.A483 | F43: нет
A44: 400 | B44: 197 | C44: 11526 | F44: нет
A45: 400 | B45: 197 | C45: 11620 | F45: нет
A46: 900 | B46: 400 | C46: 10905 | F46: нет
A47: 280 | B47: 92 | C47: 0323-2-1 | F47: нет
A48: 600 | B48: 310 | C48: 1020 | F48: нет
A49: 1150 | B49: 444 | C49: 10496 | F49: нет
A50: 1200 | B50: 530 | C50: 11471 | F50: нет
A51: 1250 | B51: 647 | C51: 11379 | F51: нет
A52: 550 | B52: 193 | C52: 612-1 | F52: Nataha228_550_612-1
A53: 1500 | B53: 885 | C53: 6048 | F53: нет
A54: 2000 | B54: 814 | C54: 60120 | F54: нет
A55: 430 | B55: 176 | C55: 11577 | F55: нет
A56: 10000 | B56: 6044 | C56: 11025 | F56: нет
A57: 1550 | B57: 789 | C57: 11005 | F57: нет
A58: 1400 | B58: 718 | C58: 11009 | F58: нет
A59: 1150 | B59: 634 | C59: 11570 | F59: нет
A60: 1800 | B60: 922 | C60: A19065 | F60: нет
A61: 400 | B61: 199 | C61: 11134 | F61: нет
A62: 850 | B62: 470 | C62: QL0557 | F62: нет
A63: 750 | B63: 324 | C63: 10469 | F63: нет
A64: 950 | B64: 445 | C64: 11267 | F64: нет
A65: 1000 | B65: 477 | C65: 10812 | F65: нет
A66: 750 | B66: 284 | C66: 10811 | F66: нет
A67: 700 | B67: 378 | C67: 11362 | F67: нет
A68: 600 | B68: 250 | C68: 10810 | F68: нет
A69: 500 | B69: 248 | C69: 11136 | F69: нет
A70: 480 | B70: 251 | C70: 10174 | F70: нет
A71: 500 | B71: 388 | C71: 6032 | F71: нет
A72: 450 | B72: 381 | C72: 6016 | F72: нет
A73: 400 | B73: 285 | C73: 6011 | F73: нет
A74: 800 | B74: 637 | C74: 6013 | F74: нет
A75: 1400 | B75: 666 | C75: 10990 | F75: нет
A76: 2200 | B76: 890 | C76: 10424 | F76: нет
A77: 8500 | B77: 4221 | C77: 77016 | F77: нет
A78: 750 | B78: 345 | C78: 11213 | F78: нет
A79: 450 | B79: 210 | C79: 11207 | F79: нет
A80: 500 | B80: 259 | C80: 11389 | F80: нет
A81: 470 | B81: 217 | C81: 60053 | F81: нет
A82: 600 | B82: 250 | C82: 11530 | F82: нет
A83: 950 | B83: 436 | C83: 11386 | F83: нет
A84: 7000 | B84: 3772 | C84: 1299 | F84: нет
A85: 1450 | B85: 450 | C85: 10830 | F85: нет
A86: 1400 | B86: 461 | C86: 40019 | F86: нет
A87: 1900 | B87: 785 | C87: 11534 | F87: нет
A88: 700 | B88: 288 | C88: 60069 | F88: нет
A89: 180 | B89: 47 | C89: 511 | F89: нет
A90: 220 | B90: 82 | C90: 605-4 | F90: нет
A91: 300 | B91: 106 | C91: 616 (75121) | F91: нет
A92: 1100 | B92: 401 | C92: QL1251 | F92: нет
A93: 1100 | B93: 505 | C93: KY1029 | F93: нет
A94: 300 | B94: 257 | C94: 708 | F94: нет
A95: 3000 | B95: 2054 | C95: 11019 | F95: нет
A96: 420 | B96: 281 | C96: FC1602 | F96: нет
A97: 500 | B97: 290 | C97: 10057 | F97: нет
A98: 1900 | B98: 1439 | C98: 71046 | F98: нет
A99: 2500 | B99: 2079 | C99: 912 | F99: нет
A100: 1400 | B100: 660 | C100: 3904 | F100: нет
A101: 900 | B101: 791 | C101: LX.A462 | F101: нет
A102: 550 | B102: 496 | C102: 6833 | F102: нет
A103: 1200 | B103: 675 | C103: 66018 | F103: нет
A104: 1000 | B104: 497 | C104: 60089 | F104: нет
A105: 450 | B105: 310 | C105: 1002 | F105: нет
A106: 3600 | B106: 2150 | C106: A19038 | F106: нет
A107: 700 | B107: 504 | C107: 76021 | F107: нет
A108: 1500 | B108: 1068 | C108: 76055 | F108: нет
A109: 1400 | B109: 816 | C109: 60040 | F109: нет
A110: 400 | B110: 221 | C110: 60041 | F110: нет
A111: 1200 | B111: 686 | C111: 60129 | F111: нет
A112: 900 | B112: 645 | C112: A328 | F112: нет
A113: 650 | B113: 563 | C113: A324 | F113: нет
A114: 500 | B114: 194 | C114: 10492 | F114: нет
A115: 350 | B115: 129 | C115: 8009 | F115: нет
A116: 750 | B116: 313 | C116: 10730 | F116: нет
A117: 850 | B117: 356 | C117: 10854 | F117: нет
A118: 1200 | B118: 493 | C118: 10858 | F118: нет
A119: 1200 | B119: 591 | C119: 10732 | F119: нет
A120: 800 | B120: 463 | C120: 3030 | F120: нет
A121: 850 | B121: 2607 | C121: 20074 | F121: нет
A122: 1200 | B122: 3341 | C122: 20075 | F122: нет
A123: 1600 | B123: 709 | C123: 10664 | F123: нет
A124: 1500 | B124: 659 | C124: 3066 | F124: нет
A125: 2500 | B125: 1676 | C125: 9072 | F125: нет
A126: 1000 | B126: 848 | C126: 3016 | F126: нет
A127: 1450 | B127: 876 | C127: A1028 | F127: нет
A128: 1100 | B128: 520 | C128: 11343 | F128: нет
A129: 300 | B129: 108 | C129: 708-1 | F129: нет
A130: 300 | B130: 87 | C130: 610-3 | F130: нет
A131: 300 | B131: 90 | C131: 610-2 | F131: нет
A132: 250 | B132: 131 | C132: 611-4 | F132: нет
A133: 250 | B133: 108 | C133: 710-4 | F133: нет
A134: 1700 | B134: 1047 | C134: 6047 | F134: нет
A135: 6500 | B135: 3658 | C135: 31013 | F135: нет
A136: 7500 | B136: 3018 | C136: 60143 | F136: нет
A137: 280 | C137: 10728 | F137: нет
A138: 260 | B138: 176 | C138: 10554 | F138: нет
A139: 700 | B139: 370 | C139: 11602 | F139: нет
A140: 600 | B140: 326 | C140: 11032 | F140: нет
A141: 550 | B141: 228 | C141: 10853 | F141: нет
A142: 1500 | B142: 594 | C142: 10562 | F142: нет
A143: 1600 | B143: 684 | C143: 10407 | F143: нет
A144: 3300 | B144: 1889 | C144: K89 | F144: нет
A145: 950 | B145: 409 | C145: 11579 | F145: нет
A146: 1050 | B146: 471 | C146: 11336 | F146: нет
A147: 650 | B147: 354 | C147: LB640 | F147: нет
A148: 400 | B148: 184 | C148: 11334 | F148: нет
A149: 6000 | B149: 3156 | C149: 11338 | F149: нет
A150: 3300 | B150: 1889 | C150: K89 | F150: нет
A151: 2000 | B151: 1046 | C151: 10928 | F151: нет
A152: 800 | B152: 438 | C152: 69031 | F152: нет
A153: 1600 | B153: 901 | C153: 1513 | F153: нет
A154: 1700 | B154: 988 | C154: 1512 | F154: нет
A155: 2300 | B155: 1103 | C155: 11573 | F155: нет
A156: 1800 | B156: 878 | C156: A19032 | F156: нет
A157: 2600 | B157: 1226 | C157: 60141 | F157: нет
A158: 780 | B158: 419 | C158: 11342 | F158: нет
A159: 300 | B159: 144 | C159: 11008 | F159: нет
A160: 150 | B160: 78 | C160: 60153 | F160: нет
A161: 200 | B161: 104 | C161: 11584 | F161: нет
A162: 300 | B162: 142 | C162: 11168 | F162: нет
A163: 350 | B163: 180 | C163: 11263 | F163: нет
A164: 400 | B164: 238 | C164: 1016 | F164: нет
A165: 450 | B165: 281 | C165: QL0558 | F165: нет
A166: 850 | B166: 463 | C166: 10989 | F166: нет
A167: 400 | B167: 239 | C167: 63087 | F167: нет
A168: 750 | B168: 443 | C168: 63122 | F168: нет
A169: 950 | B169: 512 | C169: 63098 | F169: нет
A170: 1300 | B170: 883 | C170: 6007 | F170: нет
A171: 700 | B171: 503 | C171: LB606 | F171: нет
A172: 650 | B172: 352 | C172: 60157 | F172: нет
A173: 600 | B173: 283 | C173: 11265 | F173: нет
A174: 480 | B174: 220 | C174: 10468 | F174: нет
A175: 500 | B175: 262 | C175: 10175 | F175: нет
A176: 650 | B176: 463 | C176: 6017 | F176: нет
A177: 600 | B177: 438 | C177: 6067 | F177: нет
A178: 450 | B178: 279 | C178: 6009 | F178: нет
A179: 800 | B179: 423 | C179: 6010 | F179: нет
A180: 1600 | B180: 729 | C180: 829 | F180: нет
A181: 900 | B181: 435 | C181: QL0559 | F181: нет
A182: 2100 | B182: 844 | C182: 10755 | F182: нет
A183: 630 | B183: 274 | C183: 10829 | F183: нет
A184: 950 | B184: 394 | C184: 10420 | F184: нет
A185: 620 | B185: 315 | C185: 10862 | F185: нет
A186: 750 | B186: 397 | C186: 10710 | F186: нет
A187: 700 | B187: 310 | C187: 11614 | F187: нет
A188: 1300 | B188: 982 | C188: A463 | F188: нет
A189: 1100 | B189: 845 | C189: A461 | F189: нет
A190: 300 | B190: 111 | C190: 11523 | F190: нет
A191: 400 | B191: 153 | C191: 10751 | F191: нет
A192: 500 | B192: 209 | C192: 11222 | F192: нет
A193: 380 | B193: 160 | C193: 11221 | F193: нет
A194: 450 | B194: 214 | C194: 11383 | F194: нет
A195: 400 | B195: 198 | C195: 10418 | F195: нет
A196: 900 | B196: 391 | C196: 10441 | F196: нет
A197: 2200 | B197: 760 | C197: 10443 | F197: нет
A198: 1500 | B198: 941 | C198: LX.A468 | F198: нет
A199: 1500 | B199: 941 | C199: LX.A468 | F199: нет
A200: 10000 | B200: 3449 | C200: 88828 | F200: нет
... 3192 more rows

Sheet Лист1
A1: ИП: - Смирнов - OZON
A2: нет
A3: нет | B3: kjhg
A4: sonia_718_3400_99922 | B4: =MATCH(A4,Лист2!A:A,0) -> 300
A5: nataha238-1 | B5: =MATCH(A5,Лист2!A:A,0) -> 1484
A6: nataha670 | B6: =MATCH(A6,Лист2!A:A,0) -> 1393
A7: Nataha1065 | B7: =MATCH(A7,Лист2!A:A,0) -> 1320
A8: nataha600 | B8: =MATCH(A8,Лист2!A:A,0) -> 1332
A9: Nataha1030 | B9: =MATCH(A9,Лист2!A:A,0) -> 1494
A10: nataha115 | B10: =MATCH(A10,Лист2!A:A,0) -> 741
A11: nataha673 | B11: =MATCH(A11,Лист2!A:A,0) -> 713
A12: Nataha840 | B12: =MATCH(A12,Лист2!A:A,0) -> 702
A13: nataha153 | B13: =MATCH(A13,Лист2!A:A,0) -> 1465
A14: Nataha830 | B14: =MATCH(A14,Лист2!A:A,0) -> 595
A15: Nataha939 | B15: =MATCH(A15,Лист2!A:A,0) -> 1117
A16: Nataha1075_600_826.3 | B16: =MATCH(A16,Лист2!A:A,0) -> 1104
A17: Nataha1076_450_826-5 | B17: =MATCH(A17,Лист2!A:A,0) -> 1145
A18: Nataha1082_1400_60012 | B18: =MATCH(A18,Лист2!A:A,0) -> 598
A19: Nataha1087_1850_4025 | B19: =MATCH(A19,Лист2!A:A,0) -> 1150
A20: Nataha1088_1750_4020 | B20: =MATCH(A20,Лист2!A:A,0) -> 1120
A21: Nataha1111_900_FC3726 | B21: =MATCH(A21,Лист2!A:A,0) -> 1253
A22: Nataha1132_200_SL89204_1 | B22: =MATCH(A22,Лист2!A:A,0) -> 471
A23: Nataha1153_2300_70666 | B23: =MATCH(A23,Лист2!A:A,0) -> 1110
A24: Nataha1162_380_1077 | B24: =MATCH(A24,Лист2!A:A,0) -> 545
A25: nataha20 | B25: =MATCH(A25,Лист2!A:A,0) -> 644
A26: Nataha1170_300_708-3 | B26: =MATCH(A26,Лист2!A:A,0) -> 1118
A27: nataha620 | B27: =MATCH(A27,Лист2!A:A,0) -> 1388
A28: Nataha1367_400_7569 | B28: =MATCH(A28,Лист2!A:A,0) -> 2300
A29: Nataha1366_6500_7903 | B29: =MATCH(A29,Лист2!A:A,0) -> 2302
A30: nataha660 | B30: =MATCH(A30,Лист2!A:A,0) -> 397
A31: nataha343 | B31: =MATCH(A31,Лист2!A:A,0) -> 446
A32: Vetnamcia125 | B32: =MATCH(A32,Лист2!A:A,0) -> 434
A33: Nataha778 | B33: =MATCH(A33,Лист2!A:A,0) -> 129
A34: Nataha960 | B34: =MATCH(A34,Лист2!A:A,0) -> 364
A35: Nataha1117_6500_T5020 чер. | B35: =MATCH(A35,Лист2!A:A,0) -> 345
A36: Nataha1118_6500_T5020 бел. | B36: =MATCH(A36,Лист2!A:A,0) -> 353
A37: Nataha1168_2500_А55355 | B37: =MATCH(A37,Лист2!A:A,0) -> 524
A38: Nataha1238_300_98279-1 | B38: =MATCH(A38,Лист2!A:A,0) -> 956
A39: Nataha1255_350_8156 | B39: =MATCH(A39,Лист2!A:A,0) -> 939
A40: Nataha1266_300_с12-черн | B40: =MATCH(A40,Лист2!A:A,0) -> 961
A41: sonia_15_750_1080 | B41: =MATCH(A41,Лист2!A:A,0) -> 564
A42: sonia_18_550_1077 | B42: =MATCH(A42,Лист2!A:A,0) -> 770
A43: sonia_20_550_10809 | B43: =MATCH(A43,Лист2!A:A,0) -> 1608
A44: sonia_42_550_10468 | B44: =MATCH(A44,Лист2!A:A,0) -> 1683
A45: sonia_44_600_10619 | B45: =MATCH(A45,Лист2!A:A,0) -> 781
A46: sonia_776_1600_33111 | B46: =MATCH(A46,Лист2!A:A,0) -> 1502
A47: sonia_778_1100_1019 | B47: =MATCH(A47,Лист2!A:A,0) -> 1069
A48: sonia_779_1100_841 | B48: =MATCH(A48,Лист2!A:A,0) -> 195
A49: Vetnamcia125 | B49: =MATCH(A49,Лист2!A:A,0) -> 434
A50: sonia_784_400_1018 | B50: =MATCH(A50,Лист2!A:A,0) -> 535
A51: sonia_787_600_LB551 | B51: =MATCH(A51,Лист2!A:A,0) -> 1100
A52: sonia_789_650_LB318 | B52: =MATCH(A52,Лист2!A:A,0) -> 1536
A53: sonia_790_700_LB593 | B53: =MATCH(A53,Лист2!A:A,0) -> 1054
A54: sonia_802_2600_QL2507 | B54: =MATCH(A54,Лист2!A:A,0) -> 349
A55: sonia_810_2200_10472 | B55: =MATCH(A55,Лист2!A:A,0) -> 1552
A56: sonia_814_1600_10177 | B56: =MATCH(A56,Лист2!A:A,0) -> 205
A57: sonia_820_850_*070 | B57: =MATCH(A57,Лист2!A:A,0) -> 686
A58: sonia_822_1400_1035 | B58: =MATCH(A58,Лист2!A:A,0) -> 224
A59: sonia_883_1900_10471 | B59: =MATCH(A59,Лист2!A:A,0) -> 1248
A60: sonia_65_300_11008 | B60: =MATCH(A60,Лист2!A:A,0) -> 1664
A61: sonia_69_450_87080 | B61: =MATCH(A61,Лист2!A:A,0) -> 1695
A62: sonia_73_450_87081 | B62: =MATCH(A62,Лист2!A:A,0) -> 802
A63: sonia_640_1000_11004 | B63: =MATCH(A63,Лист2!A:A,0) -> 815
A64: sonia_657_2000_11007 | B64: =MATCH(A64,Лист2!A:A,0) -> 721
A65: sonia_877_2600_MY92032 | B65: =MATCH(A65,Лист2!A:A,0) -> 1224
A66: sonia_212_6800_T5022 | B66: =MATCH(A66,Лист2!A:A,0) -> 359
A67: sonia_215_450_100139 | B67: =MATCH(A67,Лист2!A:A,0) -> 1685
A68: sonia_216_500_5122 | B68: =MATCH(A68,Лист2!A:A,0) -> 216
A69: sonia_220_4200_10220 | B69: =MATCH(A69,Лист2!A:A,0) -> 1213
A70: sonia_230_750_10021 | B70: =MATCH(A70,Лист2!A:A,0) -> 1511
A71: sonia_233_550_50013-1 | B71: =MATCH(A71,Лист2!A:A,0) -> 789
A72: sonia_241_950_XB-03033 | B72: =MATCH(A72,Лист2!A:A,0) -> 1080
A73: sonia_247_1600_KY1074 | B73: =MATCH(A73,Лист2!A:A,0) -> 267
A74: sonia_252_4500_92008 | B74: =MATCH(A74,Лист2!A:A,0) -> 1534
A75: sonia_253_4500_92015 | B75: =MATCH(A75,Лист2!A:A,0) -> 1544
A76: sonia_255_1500_49001 | B76: =MATCH(A76,Лист2!A:A,0) -> 1584
A77: sonia_260_1800_10566 | B77: =MATCH(A77,Лист2!A:A,0) -> 860
A78: sonia_261_2200_10568 | B78: =MATCH(A78,Лист2!A:A,0) -> 1182
A79: sonia_267_2100_10569 | B79: =MATCH(A79,Лист2!A:A,0) -> 1569
A80: sonia_268_3900_3366 | B80: =MATCH(A80,Лист2!A:A,0) -> 1227
A81: sonia_331_600_100142 | B81: =MATCH(A81,Лист2!A:A,0) -> 1468
A82: sonia_332_400_Car 096 (все цвета) | B82: =MATCH(A82,Лист2!A:A,0) -> 509
A83: sonia_347_1600_KY1037 | B83: =MATCH(A83,Лист2!A:A,0) -> 1556
A84: sonia_351_4100_T5017 | B84: =MATCH(A84,Лист2!A:A,0) -> 1085
A85: sonia_352_4900_MY88010B | B85: =MATCH(A85,Лист2!A:A,0) -> 1067
A86: sonia_356_6800_T5020 бел. | B86: =MATCH(A86,Лист2!A:A,0) -> 332
A87: sonia_357_6800_T5020 чер. | B87: =MATCH(A87,Лист2!A:A,0) -> 386
A88: sonia_359_6100_T5014 кр. | B88: =MATCH(A88,Лист2!A:A,0) -> 55
A89: sonia_360_6100_T5014 оран. | B89: =MATCH(A89,Лист2!A:A,0) -> 30
A90: sonia_361_6900_T5013 | B90: =MATCH(A90,Лист2!A:A,0) -> 11
A91: sonia_462_500_8107 | B91: =MATCH(A91,Лист2!A:A,0) -> 1066
A92: sonia_467_5100_3333D | B92: =MATCH(A92,Лист2!A:A,0) -> 1269
A93: sonia_537_2800_11020 | B93: =MATCH(A93,Лист2!A:A,0) -> 1548
A94: sonia_930_1600_MY88306 | B94: =MATCH(A94,Лист2!A:A,0) -> 1164
A95: sonia_933_1800_Т19047 | B95: =MATCH(A95,Лист2!A:A,0) -> 1231
A96: sonia_471_9700_20002 | B96: =MATCH(A96,Лист2!A:A,0) -> 1058
A97: sonia_278_180_11519 | B97: =MATCH(A97,Лист2!A:A,0) -> 1576
A98: sonia_414_750_11213 | B98: =MATCH(A98,Лист2!A:A,0) -> 199
A99: sonia_547_2400_60018 | B99: =MATCH(A99,Лист2!A:A,0) -> 822
A100: sonia_557_2400_3902 | B100: =MATCH(A100,Лист2!A:A,0) -> 760
A101: sonia_560_2400_15066 | B101: =MATCH(A101,Лист2!A:A,0) -> 1607
A102: sonia_575_350_1005 | B102: =MATCH(A102,Лист2!A:A,0) -> 173
A103: sonia_577_350_1014 | B103: =MATCH(A103,Лист2!A:A,0) -> 107
A104: sonia_581_500_1020 | B104: =MATCH(A104,Лист2!A:A,0) -> 791
A105: sonia_595_1900_70104 | B105: =MATCH(A105,Лист2!A:A,0) -> 793
A106: sonia_612_2200_19010 | B106: =MATCH(A106,Лист2!A:A,0) -> 836
A107: sonia_687_950_76139 | B107: =MATCH(A107,Лист2!A:A,0) -> 1626
A108: sonia_702_8900_21023 | B108: =MATCH(A108,Лист2!A:A,0) -> 72
A109: sonia_710_3800_19046 | B109: =MATCH(A109,Лист2!A:A,0) -> 1518
A110: sonia_716_2050_66016 | B110: =MATCH(A110,Лист2!A:A,0) -> 1546
A111: sonia_723_5100_19014 | B111: =MATCH(A111,Лист2!A:A,0) -> 705
A112: sonia_724_3700_99914 | B112: =MATCH(A112,Лист2!A:A,0) -> 1504
A113: sonia_730_700_JX90124 | B113: =MATCH(A113,Лист2!A:A,0) -> 737
A114: sonia_742_1200_83040 | B114: =MATCH(A114,Лист2!A:A,0) -> 441
A115: sonia_101_450_711-1 | B115: =MATCH(A115,Лист2!A:A,0) -> 1606
A116: sonia_111_260_327-2 | B116: =MATCH(A116,Лист2!A:A,0) -> 1587
A117: sonia_112_250_323-2 | B117: =MATCH(A117,Лист2!A:A,0) -> 1140
A118: sonia_114_250_616 | B118: =MATCH(A118,Лист2!A:A,0) -> 1341
A119: sonia_116_200_605-4 | B119: =MATCH(A119,Лист2!A:A,0) -> 1591
A120: sonia_125_250_613-4 | B120: =MATCH(A120,Лист2!A:A,0) -> 2297
A121: sonia_131_250_710-3 | B121: =MATCH(A121,Лист2!A:A,0) -> 1063
A122: sonia_135_650_2B574 | B122: =MATCH(A122,Лист2!A:A,0) -> 1600
A123: sonia_137_600_4508 | B123: =MATCH(A123,Лист2!A:A,0) -> 404
A124: sonia_163_1400_4579 | B124: =MATCH(A124,Лист2!A:A,0) -> 1509
A125: sonia_179_1900_703900 | B125: =MATCH(A125,Лист2!A:A,0) -> 312
A126: sonia_185_950_88039 | B126: =MATCH(A126,Лист2!A:A,0) -> 1602
A127: sonia_377_1200_7009 | B127: =MATCH(A127,Лист2!A:A,0) -> 1137
A128: sonia_209_1200_049-2 | B128: =MATCH(A128,Лист2!A:A,0) -> 1565
A129: sonia_286_650_10008-4 | B129: =MATCH(A129,Лист2!A:A,0) -> 1586
A130: sonia_287_650_10008-6 | B130: =MATCH(A130,Лист2!A:A,0) -> 1689
A131: sonia_295_1800_6002 | B131: =MATCH(A131,Лист2!A:A,0) -> 1555
A132: sonia_300_3800_99024 | B132: =MATCH(A132,Лист2!A:A,0) -> 746
A133: sonia_301_4000_35002 | B133: =MATCH(A133,Лист2!A:A,0) -> 1551
A134: sonia_302_6900_66011 | B134: =MATCH(A134,Лист2!A:A,0) -> 1105
A135: sonia_318_1100_4143 | B135: =MATCH(A135,Лист2!A:A,0) -> 282
A136: sonia_663_4500_1927.8.1 (105049) | B136: =MATCH(A136,Лист2!A:A,0) -> 518
A137: sonia_668_4800_YC-20002 (TOWER) | B137: =MATCH(A137,Лист2!A:A,0) -> 19
A138: sonia_678_9700_*031003 | B138: =MATCH(A138,Лист2!A:A,0) -> 365
A139: sonia_922_750_670006 | B139: =MATCH(A139,Лист2!A:A,0) -> 1245
A140: sonia_1083_970_563610 | B140: =MATCH(A140,Лист2!A:A,0) -> 2298
A141: sonia_1112_600_98294 | B141: =MATCH(A141,Лист2!A:A,0) -> 2301
A142: sonia_1113_750_82105-2 | B142: =MATCH(A142,Лист2!A:A,0) -> 2303
A143: sonia_1114_850_10259 | B143: =MATCH(A143,Лист2!A:A,0) -> 2305
A144: sonia_1115_850_10263 | B144: =MATCH(A144,Лист2!A:A,0) -> 2306
A145: sonia_1116_420_ХВ-53007 | B145: =MATCH(A145,Лист2!A:A,0) -> 2307
A146: sonia_1117_2400_10012 | B146: =MATCH(A146,Лист2!A:A,0) -> 2308
A147: sonia_1118_600_64137 | B147: =MATCH(A147,Лист2!A:A,0) -> 2309
A148: Vetnamcia_512 | B148: =MATCH(A148,Лист2!A:A,0) -> 1739
A149: Vetnamcia_546 | B149: =MATCH(A149,Лист2!A:A,0) -> 1711
A150: Vetnamcia_550 | B150: =MATCH(A150,Лист2!A:A,0) -> 1165
A151: Vetnamcia124 | B151: =MATCH(A151,Лист2!A:A,0) -> 25
A152: Vetnamcia_517 | B152: =MATCH(A152,Лист2!A:A,0) -> 1700
A153: Vetnamcia30 | B153: =MATCH(A153,Лист2!A:A,0) -> 1722
A154: Vetnamcia31 | B154: =MATCH(A154,Лист2!A:A,0) -> 1093
A155: Vetnamcia12 | B155: =MATCH(A155,Лист2!A:A,0) -> 1708
A156: Vetnamcia15 | B156: =MATCH(A156,Лист2!A:A,0) -> 143
A157: Vetnamcia25 | B157: =MATCH(A157,Лист2!A:A,0) -> 1704
A158: Vetnamcia26 | B158: =MATCH(A158,Лист2!A:A,0) -> 1718
A159: Vetnamcia10 | B159: =MATCH(A159,Лист2!A:A,0) -> 1713
A160: Vetnamcia62 | B160: =MATCH(A160,Лист2!A:A,0) -> 1727
A161: Viet6 | B161: =MATCH(A161,Лист2!A:A,0) -> 230
A162: Vetnamcia10 | B162: =MATCH(A162,Лист2!A:A,0) -> 1713
A163: Vetnamcia55 | B163: =MATCH(A163,Лист2!A:A,0) -> 1763
A164: Vetnamcia_58 | B164: =MATCH(A164,Лист2!A:A,0) -> 1710
A165: Vetnamcia707_480_61105 | B165: =MATCH(A165,Лист2!A:A,0) -> 2304
A166: Vetnamcia707_480_61105 | B166: =MATCH(A166,Лист2!A:A,0) -> 2304
A167: Vetnamcia157 | B167: =MATCH(A167,Лист2!A:A,0) -> 864
A168: Vetnamcia_152 | B168: =MATCH(A168,Лист2!A:A,0) -> 1654
A169: Vetnamcia157 | B169: =MATCH(A169,Лист2!A:A,0) -> 864
A170: 2gruhu_365583653654323825 | B170: =MATCH(A170,Лист2!A:A,0) -> 659
A171: Vetnamcia_561 | B171: =MATCH(A171,Лист2!A:A,0) -> 1707
A172: Vetnamcia564 | B172: =MATCH(A172,Лист2!A:A,0) -> 877
A173: Vetnamcia568_720_6031 | B173: =MATCH(A173,Лист2!A:A,0) -> 1296
A174: Vetnamcia570_820_33006 | B174: =MATCH(A174,Лист2!A:A,0) -> 248
A175: Vetnamcia575_780_6069 | B175: =MATCH(A175,Лист2!A:A,0) -> 1211
A176: Vetnamcia578_1800_9099 | B176: =MATCH(A176,Лист2!A:A,0) -> 1254
A177: Vetnamcia580_450_LB1107 | B177: =MATCH(A177,Лист2!A:A,0) -> 172
A178: Vetnamcia588_550_8557-1 | B178: =MATCH(A178,Лист2!A:A,0) -> 1184
A179: Vetnamcia598_420_3812 | B179: =MATCH(A179,Лист2!A:A,0) -> 619
A180: Vetnamcia603_250_31030 | B180: =MATCH(A180,Лист2!A:A,0) -> 135
A181: Vetnamcia605_250_31029 | B181: =MATCH(A181,Лист2!A:A,0) -> 1056
A182: Vetnamcia637_380_8854 | B182: =MATCH(A182,Лист2!A:A,0) -> 2310
A183: Vetnamcia651_290_1027 | B183: =MATCH(A183,Лист2!A:A,0) -> 1822
A184: GM-6171 | B184: =MATCH(A184,Лист2!A:A,0) -> 2083
A185: V-320 | B185: =MATCH(A185,Лист2!A:A,0) -> 2113
A186: V-682 | B186: =MATCH(A186,Лист2!A:A,0) -> 2178
A187: V-170 | B187: =MATCH(A187,Лист2!A:A,0) -> 2215
A188: V-275 | B188: =MATCH(A188,Лист2!A:A,0) -> 2225
A189: V-393 | B189: =MATCH(A189,Лист2!A:A,0) -> 2232
A190: V-029 | B190: =MATCH(A190,Лист2!A:A,0) -> 2169
A191: V-720 | B191: =MATCH(A191,Лист2!A:A,0) -> 2258
A192: V-700 | B192: =MATCH(A192,Лист2!A:A,0) -> 2259
A193: V-932 | B193: =MATCH(A193,Лист2!A:A,0) -> 977
A194: V-013 | B194: =MATCH(A194,Лист2!A:A,0) -> 2171
A195: KM-6650 | B195: =MATCH(A195,Лист2!A:A,0) -> 2245
A196: GM-7761 | B196: =MATCH(A196,Лист2!A:A,0) -> 2034
A197: GM-7755 | B197: =MATCH(A197,Лист2!A:A,0) -> 2037
A198: GM-7760 | B198: =MATCH(A198,Лист2!A:A,0) -> 989
A199: GM-7300 | B199: =MATCH(A199,Лист2!A:A,0) -> 2038
A200: GM-6650 | B200: =MATCH(A200,Лист2!A:A,0) -> 2069
... 44 more rows

Sheet Лист2
A1: Nataha1195_1700_10104черный
A2: Nataha1198_550_66019
A3: nataha702
A4: sonia_227_750_KY6115
A5: 2gruhu_580583653654324040
A6: sonia_608_2100_203030
A7: Nataha742
A8: Nataha1186_900_LX.A870
A9: Vetnamcia123
A10: dob_sam45698653654546545
A11: sonia_361_6900_T5013
A12: Nataha1182_2500_20033
A13: sonia_419_750_60067
A14: Nataha1194_1700_10104салатовый
A15: sonia_258_2600_88009
A16: Nataha1197_1700_10104синий
A17: sonia_173_950_918
A18: sonia_605_1000_203301
A19: sonia_668_4800_YC-20002 (TOWER)
A20: sonia_727_6500_80666
A21: Nataha1151_750_69048
A22: Vetnamcia600_420_3811
A23: sonia_571_750_1021
A24: Vetnamcia19
A25: Vetnamcia124
A26: sonia_145_550_100171
A27: Nataha1199_550_66018
A28: sonia_570_900_60089
A29: Nataha1054
A30: sonia_360_6100_T5014 оран.
A31: sonia_314_650_23003
A32: nataha250
A33: sonia_186_900_10803
A34: Nataha1154_800_QL1261
A35: Nataha1183_420_FC1601
A36: sonia_705_26000_13135
A37: Vetnamcia_533
A38: sonia_228_750_KY6116
A39: sonia_506_430_KY1075-4
A40: sonia_322_3800_X19049
A41: Nataha1191_1700_10065синий
A42: nataha551
A43: sonia_645_750_11339
A44: Vetnamcia8
A45: 2gruhu_203583653654323663
A46: sonia_475_1000_100082
A47: 2gruhu_564583653654324024
A48: Vetnamcia611_1600_60085
A49: sonia_728_19500_99886
A50: sonia_553_350_11318
A51: sonia_684_4500_83663
A52: nataha296
A53: sonia_218_450_FC1603
A54: sonia_519_2000_100063
A55: sonia_359_6100_T5014 кр.
A56: sonia_33_150_10190
A57: sonia_546_150_PGC011
A58: sonia_264_2800_T60666
A59: sonia_320_5100_12010
A60: sonia_168_1200_4558
A61: sonia_411_750_10639
A62: 2gruhu_674583653654324134
A63: sonia_598_2700_X19046
A64: sonia_256_2600_6045
A65: Nataha1159_1000_LB.600
A66: Nataha1200_500_85002
A67: sonia_17_400_1064
A68: Nataha1181_1750_11298
A69: sonia_59_1700_99903
A70: sonia_317_1100_7008
A71: Nataha834
A72: sonia_702_8900_21023
A73: nataha91
A74: Nataha1193_1700_10104серый
A75: sonia_315_1100_XB-03038
A76: sonia_588_1800_11261
A77: Vetnamcia_565
A78: sonia_760_1700_MG210
A79: 2gruhu_448583653654323908
A80: nataha124
A81: Nataha1163_450_ZM640
A82: Nataha892
A83: Nataha1184_1500_10472
A84: sonia_162_1000_604001
A85: sonia_763_1900_10583
A86: Nataha1196_1700_10104зеленый
A87: Nataha1188_1700_LX.A848
A88: Vetnamcia_90
A89: sonia_671_8700_S7302
A90: dob_sam30698653654546530
A91: Nataha1192_1700_10065зеленый
A92: Nataha1185_650_LX.A858
A93: Vetnamcia_560
A94: sonia_95_350_042-2
A95: sonia_26_300_11167
A96: sonia_124_250_613-3
A97: Vetnamcia612_420_LB551
A98: sonia_479_800_98100
A99: sonia_31_220_1015
A100: nataha316
A101: sonia_182_320_10693
A102: sonia_840_750_68006
A103: Nataha1147_450_3424
A104: sonia_496_750_KY84079
A105: sonia_130_250_710-2
A106: Nataha1046
A107: sonia_577_350_1014
A108: sonia_54_150_60153
A109: Nataha1141_450_3420
A110: Nataha1139_450_3422
A111: Nataha1148_450_3415
A112: Vetnamcia589_420_LB640
A113: sonia_623_180_60068
A114: sonia_329_600_100136
A115: Nataha1056
A116: Nataha1120_550_JX90072
A117: Vetnamcia602_420_3810
A118: nataha530
A119: sonia_783_480_1017
A120: sonia_338_450_11527
A121: sonia_110_340_713
A122: nataha534
A123: sonia_690_480_OG3130
A124: Nataha1121_550_JX90135
A125: Nataha1078_500_66016
A126: sonia_93_350_047-2
A127: sonia_147_550_100178
A128: sonia_41_650_11582
A129: Nataha778
A130: Nataha1129_700_659010
A131: sonia_333_350_10873
A132: Nataha1138_450_3413
A133: Vetnamcia_4
A134: sonia_413_800_11531
A135: Vetnamcia603_250_31030
A136: sonia_827_400_1038
A137: sonia_328_750_4189
A138: nataha265
A139: nataha317
A140: Nataha931
A141: Vetnamcia_540
A142: sonia_195_150_70001-4
A143: Vetnamcia15
A144: sonia_498_750_KY84095
A145: sonia_289_550_KY81047
A146: Vetnamcia584_180_10543
A147: Nataha968
A148: sonia_492_750_KY84092
A149: sonia_19_750_60105
A150: nleg200575653654323938
A151: sonia_574_150_11634
A152: sonia_22_450_11134
A153: sonia_119_200_334
A154: nataha312
A155: sonia_499_700_KY84090
A156: sonia_494_750_KY80528
A157: sonia_548_630_DG3303
A158: Vetnamcia_513
A159: Nataha1079_500_66017
A160: sonia_237_550_4207
A161: sonia_244_600_10274
A162: sonia_238_650_4188
A163: sonia_572_450_60088
A164: sonia_500_750_KY84094
A165: sonia_841_450_65003
A166: Nataha1108_200_56002
A167: sonia_543_750_T1022
A168: Nataha1150_450_3411
A169: sonia_113_250_516
A170: Nataha916
A171: sonia_807_700_63072
A172: Vetnamcia580_450_LB1107
A173: sonia_575_350_1005
A174: sonia_828_700_6032
A175: sonia_622_200_10359
A176: sonia_60_550_*064
A177: sonia_576_350_11635
A178: sonia_96_350_044-1
A179: sonia_619_600_10574
A180: Nataha1128_700_659012
A181: sonia_648_750_60137
A182: sonia_327_330_3920
A183: sonia_149_320_11466
A184: sonia_551_200_11316
A185: Vetnamcia_8
A186: sonia_832_550_JX90135
A187: sonia_148_550_100164
A188: sonia_838_650_JX90072
A189: Nataha1127_300_606-2
A190: sonia_277_180_11521
A191: sonia_808_900_LB582
A192: sonia_167_950_30010
A193: sonia_833_1050_JX90073
A194: sonia_166_950_30011
A195: sonia_779_1100_841
A196: sonia_476_1000_100100
A197: sonia_781_1350_60106
A198: Vetnamcia59
A199: sonia_414_750_11213
A200: sonia_6_1200_680
... 2110 more rows
